{"text_format":"1","workbook":"xlsx","n_sheets":70,"sheets":["TitlePage","Disclaimer","General Notes","Chemical Notes","Revisions","Contents","A01","A02a","A02b","A02c","A02d","A03","B01","B02","B03a","B03b","B04Rt","B04a","B04b","C01a","C01b","C01c","C01d_Ac","C01d_Ch","C02aD","C02aW","C02bD","C02bW","C03a","C03b","D01a","D01b","D01c","D05","D06","D07","D08a","D08b","D09a","D09b","D09c","D09d","D10","E01","E02","E03","E04","F01","F02","F03","F04","F05a","F05b","F05c","F06a","F06b","F06c","F07a","F07b","F07c","F08a","F08b","F08c","F09a","F09b","G01","G02","G03","G04","References"],"not_rendered":{"charts":9,"images":21,"macros":1,"external_links":0,"defined_names":679,"comments":0,"pivot_tables":0},"unopened":[],"bounds":{"document_bytes":16777216,"sheet_cells":100000,"rows_first":2000,"rows_last":500,"rows_between":2000,"halvings":0,"cell_chars":16384,"cell_head_chars":4096},"cells_cut":0,"cells_raw":0,"read":"whole","date_system":"1900"}

{"sheet":"TitlePage","index":0,"n_rows":51,"n_cols":6,"rows_kept":51,"cut":false,"hidden":false,"merged":[[0,1,4,7],[5,2,7,6],[50,0,50,8]]}
["Title page","See Revisions worksheet for note on customizaton."]
[]
[]
[]
[]
[null,null,"Borate Stump Application"]
[]
[]
[]
[]
[]
[]
[]
[]
[]
[]
[null,null,null,null,"WorksheetMaker Version ","6.01.17"]
[]
[]
[]
[]
[]
[]
[]
[]
[]
[]
[]
[]
[]
[]
[]
[]
[]
[]
[]
[]
[]
[]
[]
[]
[]
[]
[]
[]
[]
[]
[]
[]
[]
["2016-10-14"]

{"sheet":"Disclaimer","index":1,"n_rows":1,"n_cols":1,"rows_kept":1,"cut":false,"hidden":false,"merged":[]}
["DISCLAIMER"]

{"sheet":"General Notes","index":2,"n_rows":59,"n_cols":3,"rows_kept":59,"cut":false,"hidden":false,"merged":[[0,0,0,2]]}
["General Notes"]
[null,"Prepared by:","Patrick R. Durkin"]
[null,"Program Version:","6.01.17"]
[null,"Database Used:","FS WsMkr V06-01-02.mdb"]
[null,"Template Workbook:","FS WsMkr V06-01-02.mdb"]
[null,"Base Workbook:","FS WSMkr Blank V06-01-01.xlsm"]
[]
["Color Codes in WorksheetMaker"]
[]
[]
[]
[]
["Color Codes used in Workbook for Front Matter, Data and Calculation Worksheets"]
[null,"Green shading ","This is a default value or a user specified a value.  You can change these values as you see fit but you should have a reason for doing so."]
[null,"Yellow shading ","This is a source for a link in other parts of the workbook.  If you have good reason to change the value, you should note the change (with your reason) in the “Revisions” page."]
[null,"Blue shading ","This cell is linked to another cell in the workbook.  Do not change this value.  If you change any of these values, the workbook may not update correctly."]
[null,"Blue shading blue border ","This cell is linked to a Program parameter in Worksheet A01.  Do not change this value.  If you want the value to change, go to Worksheet A01 and change the value in that worksheet."]
[null,"Purple Shading","Indicates (for information only) that the typical of order of Lower and Upper values is intentionally reversed.  This is only used in the second (label) column."]
[null,"Italics, no shading","The value in this cell is generated by a formula (the number that you see is the result of an equation).  This cell is linked only to other cells in the worksheet.  Do not change this value."]
[]
[]
[]
[]
[]
["Color Codes used in Workbook for Risk Characterization Worksheets"]
[null,"HQ ≥ 2","For hazard quotient greater than 2, the number is in bold font with a red background and rounded to the nearest integer."]
[null,"HQ > 1 but < 2","For hazard quotient greater than 1 but less than two, the number is in bold font with a white background and rounded to one significant place after the decimal."]
[null,"HQ ≥ 0.1 but <1","For hazard quotient greater than 0.1 but less than one, the number is in regular font with a white background and rounded to one significant place after the decimal."]
[null,"HQ < 0.1","For hazard quotient less than 0.1, the number is in regular font with a white background.   The number is expressed in scientific notation and rounded to one significant place -- e.g., 2E-02 rather than 0.02."]
[]
[]
[]
[]
[]
[]
[]
[]
[]
[]
[]
[]
[]
[]
[]
[]
[]
[]
[]
[]
[]
[]
[]
[]
[]
[null,"Prepared by:","Patrick R. Durkin"]
[null,"Program Version:","6.01.17"]
[null,"Database Used:","FS WsMkr V06-01-02.mdb"]
[null,"Template Workbook:","FS WsMkr V06-01-02.mdb"]
[null,"Base Workbook:","FS WSMkr Blank V06-01-01.xlsm"]

{"sheet":"Chemical Notes","index":3,"n_rows":6,"n_cols":4,"rows_kept":6,"cut":false,"hidden":false,"merged":[[0,0,0,2],[1,0,1,2],[1,3,1,5],[2,0,2,2],[2,3,2,4]]}
["Chemical specific notes"]
["Risk Assessment:",null,null,"SERA TR-056-15-03b"]
["Report Date:",null,null,"2016-10-14"]
[]
[]
["The area below is an embedded MS Word Document.  Add chemical-specific notes as appropriate."]

{"sheet":"Revisions","index":4,"n_rows":8,"n_cols":1,"rows_kept":8,"cut":false,"hidden":false,"merged":[]}
["Revision Histroy"]
[]
[]
[]
[]
[]
[]
["The area below is an embedded MS Word Document.  Add revision notes as appropriate."]

{"sheet":"Contents","index":5,"n_rows":72,"n_cols":3,"rows_kept":72,"cut":false,"hidden":false,"merged":[[0,0,0,1]]}
["Table of Contents",null,"Toc"]
["Work-sheet No.","Worksheet Title"]
["TitlePage","Title page"]
["Disclaimer","DISCLAIMER"]
["General Notes","General Notes"]
["Chemical Notes","Chemical specific notes"]
["Revisions","Revision Histroy"]
["Contents","Table of Contents"]
["A01","Program Data: Application rates, application volumns, and concentrations in field solutions"]
["A02a","General reference values and exposure factors used in worksheets."]
["A02b","General reference values and exposure factors used in worksheets."]
["A02c","General reference values and exposure factors used in worksheets."]
["A02d","General reference values and exposure factors used in worksheets."]
["A03","Food items for terrestrial animals"]
["B01","Chemical and Physical Properties for  Borates"]
["B02","Toxicity values for  Borates"]
["B03a","Calculation of Zero-Order Dermal Permeability Rate (Kp) in cm/hour"]
["B03b","Calculation of First-Order Dermal Absorption Rate"]
["B04Rt","Estimates of Water Contamination Rates -- i.e., the concentration in ambient water per pound applied per acre"]
["B04a","Expected Concentrations in Surface Water"]
["B04b","Pond: Concentration of pesticide in pond water after an accidental spill"]
["C01a","Exposure estimates for Stump Applicator based on the amount of material handled per day"]
["C01b","Exposure estimates based on Pesticide Handlers Exposure Database (PHED) Method"]
["C01c","Exposure estimates based on Pesticide Handlers Exposure Database (PHED) Method"]
["C01d_Ac","Exposure estimates based on Pesticide Handlers Exposure Database (PHED) Method"]
["C01d_Ch","Exposure estimates based on Pesticide Handlers Exposure Database (PHED) Method"]
["C02aD","Dermal Exposure Assessment for a Granular Exposure Using Zero-Order Absorption, Worker, Surface Area, Hands, for 1 minute(s)"]
["C02aW","Accidental Dermal Exposure Assessment Using Zero-Order Absorption, Worker, Surface Area, Hands, for 1 minute(s)"]
["C02bD","Dermal Exposure Assessment for a Granular Exposure Using Zero-Order Absorption, Worker, Surface Area, Hands, for 60 minute(s)"]
["C02bW","Accidental Dermal Exposure Assessment Using Zero-Order Absorption, Worker, Surface Area, Hands, for 60 minute(s)"]
["C03a","Accidental Dermal Exposure Assessment Using First-Order Absorption, Worker, Surface Area, Hands, for 60 minute(s)"]
["C03b","Accidental Dermal Exposure Assessment Using First-Order Absorption, Worker, Surface Area, Lower legs, for 60 minute(s)"]
["D01a","Accidental Dermal Exposure Assessment Using First-Order Absorption, Child, Surface Area, Whole body, for 60 minute(s)"]
["D01b","Accidental Dermal Exposure Assessment Using First-Order Absorption, Adult Female, Surface Area, Feet and lower Legs, for 60 minute(s)"]
["D01c","Consumption of Fixed Amount of Compound by a Child, acute exposure"]
["D05","Consumption of contaminated water by Child, Accidental Spill "]
["D06","Consumption of contaminated water by Child, Peak Conentrations "]
["D07","Consumption of contaminated water by Adult Male, Longer-term Conentrations "]
["D08a","Consumption of Contaminated Fish (Accidental Spill), Adult Male, acute exposure"]
["D08b","Consumption of Contaminated Fish (Accidental Spill), Subsistence Populations, acute exposure"]
["D09a","Consumption of Contaminated Fish (Longer-term), Adult Male, chronic exposure"]
["D09b","Consumption of Contaminated Fish (Longer-term), Subsistence Populations, chronic exposure"]
["D09c","Consumption of Contaminated Fish (Peak Exposure), Adult Male, acute exposure"]
["D09d","Consumption of Contaminated Fish (Peak Exposure), Subsistence Populations, acute exposure"]
["D10","Swimming Exposure Assessment Using Zero-Order Absorption, Adult Female, Surface Area, Whole body, for 60 minute(s)"]
["E01","Summary of Worker Exposure Assessments"]
["E02","Summary of Worker Hazard Quotients (Toxicity)"]
["E03","Summary of Exposure Assessments for the General Public"]
["E04","Summary of Hazard Quotients (Toxicity) for the General Public"]
["F01","Consumption of Fixed Amount of Compound by a Mammal, large, acute exposure"]
["F02","Consumption of Fixed Amount of Compound by a Bird, large, acute exposure"]
["F03","Consumption of Fixed Amount of Compound by a Mammal, small, acute exposure"]
["F04","Consumption of Fixed Amount of Compound by a Bird, small, acute exposure"]
["F05a","Consumption of contaminated water by Mammal, small, Accidental Spill "]
["F05b","Consumption of contaminated water by Mammal, small, Peak Concentrations "]
["F05c","Consumption of contaminated water by Mammal, small, Longer-term Concentrations "]
["F06a","Consumption of contaminated water by Bird, small, Accidental Spill "]
["F06b","Consumption of contaminated water by Bird, small, Peak Concentrations "]
["F06c","Consumption of contaminated water by Bird, small, Longer-term Concentrations "]
["F07a","Acute scenario for the consumption of Contaminated Fish (Accidental Spill) by Mammal, carnivorous "]
["F07b","Acute scenario for the consumption of Contaminated Fish (Peak) by Mammal, carnivorous "]
["F07c","Chronic scenario for the consumption of Contaminated Fish (Longer-term) by Mammal, carnivorous "]
["F08a","Acute scenario for the consumption of Contaminated Fish (Accidental Spill) by Bird, piscivorous "]
["F08b","Acute scenario for the consumption of Contaminated Fish (Peak) by Bird, piscivorous "]
["F08c","Chronic scenario for the consumption of Contaminated Fish (Longer-term) by Bird, piscivorous "]
["F09a","Direct spray of Mammal, small assuming first-order absorption kinetics with spray of 0.5 of the body surface"]
["F09b","Direct spray of Mammal, small assuming 100% absorption"]
["G01","Summary of Exposure Assessments for the Terrestrial Animals"]
["G02","Summary of Hazard Quotients (Toxicity) for the Terrestrial Animals"]
["G03","Worksheet G03: Summary of Hazard Quotients for Aquatic Species"]
["G04","Summary of Exposure Assessment and Risk Characterization for Terrestrial Plants from Drift"]
["References","References cited in workbook"]

{"sheet":"A01","index":6,"n_rows":60,"n_cols":10,"rows_kept":60,"cut":false,"hidden":false,"merged":[[56,0,59,0],[0,0,0,4],[6,0,9,0],[10,0,13,0],[15,0,18,0],[19,0,21,0],[22,0,25,0],[36,0,39,0],[40,0,43,0],[44,0,47,0],[48,0,51,0],[52,0,55,0]]}
["Program Data: Application rates, application volumns, and concentrations in field solutions"]
["Parameter/Assumption","Code / Range","Equation/ Value","Units","Reference/ Equation"]
["Application Rate for Formulation","ApRtForm",0.5,"lb formulation/acre","Program Input",null,null,null,null,"Select Formulation"]
["Stump Application Rate","StumpRate",5.2499999999999997E-4,"lb B/ft2","Program Input",null,null,null,null,"Select Application Type"]
["Boron Equivalents for Formulation","B Equiv",0.21,"Proportion"]
["Application Rate","ApRt",{"$f":"C3*C5","v":0.105},"lb boron/acre","Eq"]
["Application Volume","ApVol"]
[null,"Central ",1,"gal/acre","Program Input"]
[null,"Upper ",1,null,"Program Input"]
[null,"Lower ",1,null,"Program Input"]
["Concentration in field solution (lb/gal)","Concppg","ApRt (lb/acre) / ApVol (gal/acre)",null,"Note 1"]
[null,"Central ",{"$f":"IF(C8>0, C$6/C8, \"N/A\")","v":0.105},"lb/gal","Eq"]
[null,"Lower ",{"$f":"IF(C9>0, C$6/C9, \"N/A\")","v":0.105},null,"Eq"]
[null,"Upper ",{"$f":"IF(C10>0, C$6/C10, \"N/A\")","v":0.105},null,"Eq"]
["Conversion Factor for lbs/gal to mg/mL","CnvF",119.8,"mg/mL per lb/gal"]
["Concentration in field solution (mg/mL)","FldConc","Concppg * CnvF",null,"Note 2"]
[null,"Central ",{"$f":"IF(C8>0, DigitRound( C12*C$15, C$20), \"NA\")","v":13},"mg/mL","Eq"]
[null,"Lower ",{"$f":"IF(C9>0, DigitRound( C13*C$15, C$20), \"NA\")","v":13},null,"Eq"]
[null,"Upper ",{"$f":"IF(C10>0, DigitRound( C14*C$15, C$20), \"NA\")","v":13},null,"Eq"]
["Number of significant figures  used for FldConc.","NSig",2]
[]
[]
["Number of Square Feet of Stump that a worker will treat per day.","StumpFt"]
[null,"Central ",500,null,"Program Input"]
[null,"Lower ",200,null,"Program Input"]
[null,"Upper ",1000,null,"Program Input"]
["Number of Applications","nApps",1,"Unitless","Program Input"]
["Application Interval","ApIntv",1,"Days","Program Input"]
["Standard Values/Options for Scenarios"]
["Surface area of pond for spill","PondSA_M",1000,"Sq. Meters","Risk assessment."]
["Pond depth","PondDepthM",1,"Meters","Risk assessment."]
["Stream flow rate for drift scenario","StreamFlowLD",710000,"Liters/day","Risk assessment."]
["Stream length for drift scenario","StreamLengthFt",1038,"Feet","Risk assessment."]
["Stream width for drift scenario","StreamWidthFt",6,"Feet","Risk assessment."]
["Duration for longer-term exposures","SubChDays",90,"Days","Risk assessment."]
["Duration for swimming scenarios","SwimMin",60,"Minutes","Risk assessment."]
["Protection factor for workers based on PPE.","WrkProtectFact"]
[null,"Central",0,null,"Risk assessment."]
[null,"Lower",0]
[null,"Upper",0]
["Toxic Equivalency Factor for formulation","TEF"]
[null,"Central",1,null,"Risk assessment."]
[null,"Lower",1]
[null,"Upper",1]
["Acres treated per day by worker","WrkAcresPerDy"]
[null,"Central",2.2999999999999998,"Acres/Day","Risk assessment."]
[null,"Lower",2.2999999999999998]
[null,"Upper",2.2999999999999998]
["Worker Exposure Rate","WrkExpRate"]
[null,"Central",6.0000000000000002E-5,"Mg/kg bw per lb","Risk assessment."]
[null,"Lower",1.0000000000000001E-5]
[null,"Upper",4.0000000000000002E-4]
["Amount spilled into ponds","PondSpillAmntLbs"]
[null,"Central",1.4,"Lbs","Risk assessment."]
[null,"Lower",0.7]
[null,"Upper",2.8]
["Number of acre equivalents spilled into a pond.","SpillAcres"]
[null,"Central",5,"Acres","Risk assessment."]
[null,"Lower",1]
[null,"Upper",10]

{"sheet":"A02a","index":7,"n_rows":41,"n_cols":6,"rows_kept":41,"cut":false,"hidden":false,"merged":[[0,0,0,4]]}
["General reference values and exposure factors used in worksheets."]
[]
["Receptor","Factor","Value","Units"," Reference","Reference Note"]
["Adult Female","Body weight",64,"kg","U.S. EPA/ORD 1985","page 5, Table 2-2"]
["Adult Female","Surface Area, Feet and lower Legs",2915,"cm2","U.S. EPA/ORD 1992","p. 8-11, Table 8-3, total for feet and lower legs"]
["Adult Female","Surface Area, Wearing shorts and T-shirt",5300,"cm2","U.S. EPA/ORD 1992","p. 8-11, Table 8-3, total for arms, hands, lower legs, and feet."]
["Adult Female","Surface Area, Whole body",16900,"cm2","U.S. EPA/ORD 1997","p. 6-13, Table 6-3, whole body, 50th percentile"]
["Adult Male","Body weight",70,"kg","ICRP 1975","p. 13."]
["Subsistence Populations","Body weight",70,"kg","ICRP 1975","p. 13"]
["Worker, Aerial Spray","Absorbed dose rate, central estimate",3.0000000000000001E-5,"(mg/kg bw)/(lbs handled per day)","SERA 2007","Acres treated per hour"]
["Worker, Aerial Spray","Absorbed dose rate, lower range",9.9999999999999995E-7,"(mg/kg bw)/(lbs handled per day)","SERA 2007","Acres treated per hour"]
["Worker, Aerial Spray","Absorbed dose rate, upper range",1E-4,"(mg/kg bw)/(lbs handled per day)","SERA 2007","Acres treated per hour"]
["Worker, Aerial Spray","Hours of application per day, central estimate",7,"Hours per day","USDA 1989a","N/A"]
["Worker, Aerial Spray","Hours of application per day, lower range",6,"Hours per day","USDA 1989a","N/A"]
["Worker, Aerial Spray","Hours of application per day, upper range",8,"Hours per day","USDA 1989a","N/A"]
["Worker, Aerial Spray","Acres treated per hour, central estimate",70,"acres/hour","USDA 1989a","Acres treated per hour"]
["Worker, Aerial Spray","Acres treated per hour, lower range",40,"acres/hour","USDA 1989a","Acres treated per hour"]
["Worker, Aerial Spray","Acres treated per hour, upper range",100,"acres/hour","USDA 1989a","Acres treated per hour"]
["Worker, Backpack","Absorbed dose rate, central estimate",3.0000000000000001E-3,"(mg/kg bw)/(lbs handled per day)","SERA 2007","Acres treated per hour"]
["Worker, Backpack","Absorbed dose rate, lower range",2.9999999999999997E-4,"(mg/kg bw)/(lbs handled per day)","SERA 2007","Acres treated per hour"]
["Worker, Backpack","Absorbed dose rate, upper range",0.01,"(mg/kg bw)/(lbs handled per day)","SERA 2007","Acres treated per hour"]
["Worker, Backpack","Hours of application per day, central estimate",7,"Hours per day","USDA 1989a","N/A"]
["Worker, Backpack","Hours of application per day, lower range",6,"Hours per day","USDA 1989a","N/A"]
["Worker, Backpack","Hours of application per day, upper range",8,"Hours per day","USDA 1989a","N/A"]
["Worker, Backpack","Acres treated per hour, central estimate",0.625,"acres/hour","USDA 1989a","Acres treated per hour"]
["Worker, Backpack","Acres treated per hour, lower range",0.25,"acres/hour","USDA 1989a","Acres treated per hour"]
["Worker, Backpack","Acres treated per hour, upper range",1,"acres/hour","USDA 1989a","Acres treated per hour"]
["Child","Body weight",13.3,"kg","U.S. EPA/ORD 1996","p. 7-1, Table 7-2"]
["Child","Surface Area, Whole body",6030,"cm2","U.S. EPA/ORD 1996","p. 6-15, Table 6-6, 50th percentile."]
["Worker, Ground Spray","Absorbed dose rate, central estimate",2.0000000000000001E-4,"(mg/kg bw)/(lbs handled per day)","SERA 2007","Acres treated per hour"]
["Worker, Ground Spray","Absorbed dose rate, lower range",1.0000000000000001E-5,"(mg/kg bw)/(lbs handled per day)","SERA 2007","Acres treated per hour"]
["Worker, Ground Spray","Absorbed dose rate, upper range",8.9999999999999998E-4,"(mg/kg bw)/(lbs handled per day)","SERA 2007","Acres treated per hour"]
["Worker, Ground Spray","Hours of application per day, central estimate",7,"Hours per day","USDA 1989a","N/A"]
["Worker, Ground Spray","Hours of application per day, lower range",6,"Hours per day","USDA 1989a","N/A"]
["Worker, Ground Spray","Hours of application per day, upper range",8,"Hours per day","USDA 1989a","N/A"]
["Worker, Ground Spray","Acres treated per hour, central estimate",16,"acres/hour","USDA 1989a","Acres treated per hour"]
["Worker, Ground Spray","Acres treated per hour, lower range",11,"acres/hour","USDA 1989a","Acres treated per hour"]
["Worker, Ground Spray","Acres treated per hour, upper range",21,"acres/hour","USDA 1989a","Acres treated per hour"]
["Worker","Body weight",70,"kg","ICRP 1975","p. 13"]
["Worker","Surface Area, Hands",840,"cm2","U.S. EPA/ORD 1992"," p. 8-11"]
["Worker","Surface Area, Lower legs",2070,"cm2","U.S. EPA/ORD 1992","p. 8-11"]

{"sheet":"A02b","index":8,"n_rows":80,"n_cols":6,"rows_kept":80,"cut":false,"hidden":false,"merged":[[0,0,0,4]]}
["General reference values and exposure factors used in worksheets."]
[]
["Receptor","Factor","Value","Units"," Reference","Reference Note"]
["Amphibian","Kilocalories, alpha parameter for allometric equation",5.3999999999999999E-2,"BW(g),Kcal (kcal/day)","U.S. EPA/ORD 1993","p. 3-7, equation 3-14"]
["Amphibian","Kilocalories, beta parameter for allometric equation",0.79900000000000004,"BW(g),Kcal (kcal/day)","U.S. EPA/ORD 1993","p. 3-7, equation 3-14"]
["Amphibian, bull frog","Food consumption, alpha parameter for allometric equation",1.0900000000000001,"BW(g),FC(g)","SERA 2010","Figure 15"]
["Amphibian, bull frog","Food consumption, beta parameter for allometric equation",0.17230000000000001,"BW(g),FC(g)","SERA 2010","Figure 15"]
["Bird, NOS","Food consumption, alpha parameter for allometric equation",0.64800000000000002,"BW(g),FC(g)","U.S. EPA/ORD 1993","Eq. 3-3, p. 3-4, all birds"]
["Bird, NOS","Food consumption, beta parameter for allometric equation",0.65100000000000002,"BW(g),FC(g)","U.S. EPA/ORD 1993","Eq. 3-3, p. 3-4, all birds"]
["Bird, carnivorous","Body weight",0.64,"kg","Dunning 1993","p. 97. Female Spotted Owl (Strix occidentalis).  Range of 548 to 760 g."]
["Bird, carnivorous","Kilocalories, alpha parameter for allometric equation",1.1459999999999999,"BW(g),KCal(kcal/day)","U.S. EPA/ORD 1993","Eq. 3-37, nonpasserines"]
["Bird, carnivorous","Kilocalories, beta parameter for allometric equation",0.749,"BW(g),KCal(kcal/day)","U.S. EPA/ORD 1993","Eq. 3-37, nonpasserines"]
["Bird, carnivorous","Water consumption, alpha parameter for allometric equation",5.8999999999999997E-2,"BW(kg), WC(L)","U.S. EPA/ORD 1993","Eq. 3-15, p. 3-8"]
["Bird, carnivorous","Water consumption, beta parameter for allometric equation",0.67,"BW(kg), WC(L)","U.S. EPA/ORD 1993","Eq. 3-15, p. 3-8"]
["Bird, large","Body weight",4,"kg","Default","Canada goose"]
["Bird, large","Kilocalories, alpha parameter for allometric equation",1.1459999999999999,"BW(g),KCal(kcal/day)","U.S. EPA/ORD 1993","Eq. 3-37, non-passerines"]
["Bird, large","Kilocalories, beta parameter for allometric equation",0.749,"BW(g),KCal(kcal/day)","U.S. EPA/ORD 1993","Eq. 3-37, non-passerines"]
["Bird, large","Water consumption, alpha parameter for allometric equation",5.8999999999999997E-2,"BW(kg), WC(L)","U.S. EPA/ORD 1993","Eq. 3-15, p. 3-8"]
["Bird, large","Water consumption, beta parameter for allometric equation",0.67,"BW(kg), WC(L)","U.S. EPA/ORD 1993","Eq. 3-15, p. 3-8"]
["Bird, non-Passerine","Food consumption, alpha parameter for allometric equation",0.30099999999999999,"BW(g),FC(g)","U.S. EPA/ORD 1993","Eq. 3-5, p. 3-5, non-passerines"]
["Bird, non-Passerine","Food consumption, beta parameter for allometric equation",0.751,"BW(g),FC(g)","U.S. EPA/ORD 1993","Eq. 3-5, p. 3-5, non-passerines"]
["Bird, Passerine","Food consumption, alpha parameter for allometric equation",0.39800000000000002,"BW(g),FC(g)","U.S. EPA/ORD 1993","Eq. 3-4, p. 3-4, passerines"]
["Bird, Passerine","Food consumption, beta parameter for allometric equation",0.85,"BW(g),FC(g)","U.S. EPA/ORD 1993","Eq. 3-4, p. 3-4, passerines"]
["Bird, piscivorous","Body weight",2.4,"kg","Sibley 2000","p. 60. Great Blue Heron"]
["Bird, piscivorous","Food consumption, alpha parameter for allometric equation",0.495,"BW(g), FC(g)","U.S. EPA/ORD 1993","Eq. 3-6, p. 3-5, seabird"]
["Bird, piscivorous","Food consumption, beta parameter for allometric equation",0.70399999999999996,"BW(g), FC(g)","U.S. EPA/ORD 1993","Eq. 3-6, p. 3-5, seabird"]
["Bird, piscivorous","Kilocalories, alpha parameter for allometric equation",1.9159999999999999,"BW(g),KCal(kcal/day)","U.S. EPA/ORD 1993","Eq. 3-38, p. 3-23, seabird"]
["Bird, piscivorous","Kilocalories, beta parameter for allometric equation",0.70399999999999996,"BW(g),KCal(kcal/day)","U.S. EPA/ORD 1993","Eq. 3-38, p. 3-23, seabird"]
["Bird, piscivorous","Water consumption, alpha parameter for allometric equation",5.8999999999999997E-2,"BW(kg), WC(L)","U.S. EPA/ORD 1993","Eq. 3-15, p. 3-8"]
["Bird, piscivorous","Water consumption, beta parameter for allometric equation",0.67,"BW(kg), WC(L)","U.S. EPA/ORD 1993","Eq. 3-15, p. 3-8"]
["Bird, small","Body weight",0.01,"kg","Default","N/A"]
["Bird, small","Kilocalories, alpha parameter for allometric equation",3.12,"BW(g),KCal(kcal/day)","U.S. EPA/ORD 1993","Equation 3-36, passerines"]
["Bird, small","Kilocalories, beta parameter for allometric equation",0.60499999999999998,"BW(g),KCal(kcal/day)","U.S. EPA/ORD 1993","Equation 3-36, passerines"]
["Bird, small","Water consumption, alpha parameter for allometric equation",5.8999999999999997E-2,"BW(kg), WC(L)","U.S. EPA/ORD 1993","Eq. 3-15, p. 3-8"]
["Bird, small","Water consumption, beta parameter for allometric equation",0.67,"BW(kg), WC(L)","U.S. EPA/ORD 1993","Eq. 3-15, p. 3-8"]
["Honeybee","Body weight",1.16E-4,"kg","Winston 1987","p. 54. Arithmetic average of range: 81 to 151 mg/bee."]
["Honeybee","Surface Area, Whole body",1.42,"cm2","Humphery and Dykes 2008","Based on a bee with a body length of 1.44 cm."]
["Mammal, Nos","Food consumption, alpha parameter for allometric equation",0.23499999999999999,"BW(g),FC(g)","U.S. EPA/ORD 1993","Eq. 3-7 ,p. 3-6, all mammals"]
["Mammal, Nos","Food consumption, beta parameter for allometric equation",0.82199999999999995,"BW(g),FC(g)","U.S. EPA/ORD 1993","Eq. 3-7 ,p. 3-6, all mammals"]
["Mammal, 400 g","Body weight",0.4,"kg","Default","N/A"]
["Mammal, 400 g","Food consumption, alpha parameter for allometric equation",0.621,"BW(g),FC(g)","U.S. EPA/ORD 1993","Eq. 3-8, p. 3-6, equation for rodents"]
["Mammal, 400 g","Food consumption, beta parameter for allometric equation",0.56399999999999995,"BW(g),FC(g)","U.S. EPA/ORD 1993","Eq. 3-8, p. 3-6, equation for rodents"]
["Mammal, 400 g","Kilocalories, alpha parameter for allometric equation",2.5139999999999998,"BW(g),KCal(kcal/day)","U.S. EPA/ORD 1993","Equation 3-48, rodent"]
["Mammal, 400 g","Kilocalories, beta parameter for allometric equation",0.50700000000000001,"BW(g),KCal(kcal/day)","U.S. EPA/ORD 1993","Equation 3-48, rodent"]
["Mammal, 400 g","Water consumption, alpha parameter for allometric equation",9.9000000000000005E-2,"BW(kg),WC(L)","U.S. EPA/ORD 1993","Eq. 3-17, p. 3-10, all mammals"]
["Mammal, 400 g","Water consumption, beta parameter for allometric equation",0.9,"BW(kg),WC(L)","U.S. EPA/ORD 1993","Eq. 3-17, p. 3-10, all mammals"]
["Mammal, carnivorous","Body weight",5,"kg","U.S. EPA/ORD 1993","p. 2-221.  Central value for red fox with a range of 3 to 7 kg."]
["Mammal, carnivorous","Kilocalories, alpha parameter for allometric equation",0.61670000000000003,"BW(g),KCal(kcal/day)","U.S. EPA/ORD 1993","Equation 3-47, non-herbivore"]
["Mammal, carnivorous","Kilocalories, beta parameter for allometric equation",0.86199999999999999,"BW(g),KCal(kcal/day)","U.S. EPA/ORD 1993","Equation 3-47, non-herbivore"]
["Mammal, carnivorous","Water consumption, alpha parameter for allometric equation",9.9000000000000005E-2,"BW(kg),WC(L)","U.S. EPA/ORD 1993","Eq. 3-17, p. 3-10, all mammals"]
["Mammal, carnivorous","Water consumption, beta parameter for allometric equation",0.9,"BW(kg), WC(L)","U.S. EPA/ORD 1993","Eq. 3-17, p. 3-10, all mammals"]
["Mammal, large carnivorous","Body weight",70,"kg","Reid 2006"," pp. 451-453.  Black bear or small grizzly."]
["Mammal, large carnivorous","Kilocalories, alpha parameter for allometric equation",0.61670000000000003,"BW(g),KCal(kcal/day)","U.S. EPA/ORD 1993","Equation 3-47, non-herbivore"]
["Mammal, large carnivorous","Kilocalories, beta parameter for allometric equation",0.86199999999999999,"BW(g),KCal(kcal/day)","U.S. EPA/ORD 1993","Equation 3-47, non-herbivore"]
["Mammal, large carnivorous","Water consumption, alpha parameter for allometric equation",9.9000000000000005E-2,"BW(kg),WC(L)","U.S. EPA/ORD 1993","Eq. 3-17, p. 3-10, all mammals"]
["Mammal, large carnivorous","Water consumption, beta parameter for allometric equation",0.9,"BW(kg), WC(L)","U.S. EPA/ORD 1993","Eq. 3-17, p. 3-10, all mammals"]
["Mammal, herbivorous","Food consumption, alpha parameter for allometric equation",0.57699999999999996,"BW(g),FC(g)","U.S. EPA/ORD 1993","Eq. 3-9, p. 3-6, equation for herbivores"]
["Mammal, herbivorous","Food consumption, beta parameter for allometric equation",0.72699999999999998,"BW(g),FC(g)","U.S. EPA/ORD 1993","Eq. 3-9, p. 3-6, equation for herbivores"]
["Mammal, herbivorous","Kilocalories, alpha parameter for allometric equation",1.518,"BW(g),KCal(kcal/day)","U.S. EPA/ORD 1993","Equation 3-46, herbivores"]
["Mammal, herbivorous","Kilocalories, beta parameter for allometric equation",0.73,"BW(g),KCal(kcal/day)","U.S. EPA/ORD 1993","Equation 3-46, herbivores"]
["Mammal, large","Body weight",70,"kg","Default","N/A"]
["Mammal, large","Kilocalories, alpha parameter for allometric equation",1.518,"BW(g),KCal(kcal/day)","U.S. EPA/ORD 1993","p. 3-6, Eq. 3-10, herbivores"]
["Mammal, large","Kilocalories, beta parameter for allometric equation",0.73,"BW(g),KCal(kcal/day)","U.S. EPA/ORD 1993","p. 3-6, Eq. 3-10, herbivores"]
["Mammal, large","Water consumption, alpha parameter for allometric equation",9.9000000000000005E-2,"BW(kg),WC(L)","U.S. EPA/ORD 1993","Eq. 3-17, p. 3-10, all mammals"]
["Mammal, large","Water consumption, beta parameter for allometric equation",0.9,"BW(kg), WC(L)","U.S. EPA/ORD 1993","Eq. 3-17, p. 3-10, all mammals"]
["Mammal, rabbit","Body weight",1.3,"kg","Default","N/A"]
["Mammal, rabbit","Surface Area, alpha parameter for allometric equation",0.11,"BW(kg),SA(m2)","U.S. EPA/ORD 1993","p. 3-14, Eq. 3-22, for all mammals"]
["Mammal, rabbit","Surface Area, beta parameter for allometric equation",0.65,"BW(kg),SA(m2)","U.S. EPA/ORD 1993","p. 3-14, Eq. 3-22, for all mammals"]
["Mammal, rodent","Food consumption, alpha parameter for allometric equation",0.621,"BW(g),FC(g)","U.S. EPA/ORD 1993","Eq. 3-8, p. 3-6, equation for rodents"]
["Mammal, rodent","Food consumption, beta parameter for allometric equation",0.58399999999999996,"BW(g),FC(g)","U.S. EPA/ORD 1993","Eq. 3-8,p. 3-6, equation for rodents"]
["Mammal, small","Body weight",0.02,"kg","Default","N/A"]
["Mammal, small","Caloric content (wet weight)",1.7,"kcal/g  (wet weight)","U.S. EPA/ORD 1993","Table 4-1, p. 4-13. Value for small mammals. Wet weight."]
["Mammal, small","Food consumption, alpha parameter for allometric equation",0.621,"BW(g),FC(g)","U.S. EPA/ORD 1993","Eq. 3-8, p. 3-6, equation for rodents"]
["Mammal, small","Food consumption, beta parameter for allometric equation",0.56399999999999995,"BW(g),FC(g)","U.S. EPA/ORD 1993","Eq. 3-8, p. 3-6, equation for rodents"]
["Mammal, small","Kilocalories, alpha parameter for allometric equation",2.5139999999999998,"BW(g),KCal(kcal/day)","U.S. EPA/ORD 1993","Equation 3-48, rodent"]
["Mammal, small","Kilocalories, beta parameter for allometric equation",0.50700000000000001,"BW(g),KCal(kcal/day)","U.S. EPA/ORD 1993","Equation 3-48, rodent"]
["Mammal, small","Surface Area, alpha parameter for allometric equation",0.11,"BW(kg),SA(m2)","U.S. EPA/ORD 1993","p. 3-14, Eq. 3-22, for all mammals"]
["Mammal, small","Surface Area, beta parameter for allometric equation",0.65,"BW(kg),SA(m2)","U.S. EPA/ORD 1993","p. 3-14, Eq. 3-22, for all mammals"]
["Mammal, small","Water consumption, alpha parameter for allometric equation",9.9000000000000005E-2,"BW(kg),WC(L)","U.S. EPA/ORD 1993","Eq. 3-17, p. 3-10, all mammals"]
["Mammal, small","Water consumption, beta parameter for allometric equation",0.9,"BW(kg),WC(L)","U.S. EPA/ORD 1993","Eq. 3-17, p. 3-10, all mammals"]

{"sheet":"A02c","index":9,"n_rows":24,"n_cols":6,"rows_kept":24,"cut":false,"hidden":false,"merged":[[0,0,0,4]]}
["General reference values and exposure factors used in worksheets."]
[]
["Receptor","Factor","Value","Units"," Reference","Reference Note"]
["Small Insects","Caloric content (wet weight)",1.5,"kcal/g (wet weight)","U.S. EPA/ORD 1993","Table 4-1, p. 4-13.  Value for beetles. Wet weight"]
["Fish","Caloric content (wet weight)",1.2,"kcal/g (wet weight)","U.S. EPA/ORD 1993","Table 4-1, p. 4-13.  Value for bony fish. Wet weight"]
["Vegetation","Caloric content (dry weight)",2.2599999999999998,"kcal/g","U.S. EPA/ORD 1993","p. 3-5, Table 3-1"]
["Vegetation","Water content (proportion)",0.85,"unitless","U.S. EPA/ORD 1993","p. 4-14"]
["VegRR","Broadleaf/forage plants and small insects, central estimate",45,"mg chem/kg veg","Fletcher et al. 1994","Broadleaf/forage plants and small insects"]
["VegRR","Broadleaf/forage plants and small insects, upper range",135,"mg chem/kg veg","Fletcher et al. 1994","Broadleaf/forage plants and small insects"]
["VegRR","Fruits, pods, seeds, and large insects, central estimate",7,"mg chem/kg veg","Fletcher et al. 1994","Fruits, pods, seeds, and large insects"]
["VegRR","Fruits, pods, seeds, and large insects, upper range",15,"mg chem/kg veg","Fletcher et al. 1994","Fruits, pods, seeds, and large insects"]
["VegRR","Broadleaf plants and small insects, granular applications, central estimate",1.8,"mg chem/kg veg","SERA 2005","Broadleaf forage plants and contaminated insects after granular application"]
["VegRR","Broadleaf plants and small insects, granular applications, upper range",5.4,"mg chem/kg veg","SERA 2005","Broadleaf forage plants and contaminated insects after granular application"]
["VegRR","Fruits, granular applications, central estimate",0.28000000000000003,"mg chem/kg veg","SERA 2005","Fruit after granular application"]
["VegRR","Fruits, granular applications, upper range",0.6,"mg chem/kg veg","SERA 2005","Fruit after granular application"]
["VegRR","Short grass, granular applications, lower range",1.2,"mg chem/kg veg","SERA 2005","Short grass after granular application"]
["VegRR","Short grass, granular applications, upper range",9.6,"mg chem/kg veg","SERA 2005","Short grass after granular application"]
["VegRR","Tall grass, granular applications, central estimate",1.44,"mg chem/kg veg","SERA 2005","Tall grass after granular application"]
["VegRR","Tall grass, granular applications, upper range",4.4000000000000004,"mg chem/kg veg","SERA 2005","Tall grass after granular application"]
["VegRR","Short grass, central estimate",85,"mg chem/kg veg","Fletcher et al. 1994","Short grass"]
["VegRR","Short grass, lower range",30,"mg chem/kg veg","SERA 2007","Short grass"]
["VegRR","Short grass, upper range",240,"mg chem/kg veg","Fletcher et al. 1994","Short grass"]
["VegRR","Tall grass, central estimate",36,"mg chem/kg veg","Fletcher et al. 1994","Tall grass"]
["VegRR","Tall grass, upper range",110,"mg chem/kg veg","Fletcher et al. 1994","Tall grass"]

{"sheet":"A02d","index":10,"n_rows":24,"n_cols":6,"rows_kept":24,"cut":false,"hidden":false,"merged":[[0,0,0,4]]}
["General reference values and exposure factors used in worksheets."]
[]
["Receptor","Factor","Value","Units"," Reference","Reference Note"]
["Conversion Factors","acrefoot2gal",325900,"gal/acre-foot","Budavari  1989","N/A"]
["Conversion Factors","liters per gal",3.7850000000000001,"L/gal","Budavari  1989","N/A"]
["Conversion Factors","pound per milligram",453600,"mg/lb","Budavari  1989","N/A"]
["Conversion Factors","lbac2mgcm2",1.1209999999999999E-2,"mg/cm2 per lb/acre","Budavari  1989","N/A"]
["Conversion Factors","lbac2ugcm2",11.21,"ug/cm2 per lb/acre","Budavari  1989","N/A"]
["Conversion Factors","conversion for milligrams to pounds",2.204E-6,"lb/mg","Budavari  1989","N/A"]
["Conversion Factors","conversion for milliliters to gallons",3785,"ml/gal","Budavari  1989","N/A"]
["Misc","Liquid adhering to skin",8.0000000000000002E-3,"mL/cm2","Mason and Johnson 1987","Weight of liquid adhering to surface of skin after a spill"]
["Misc","Dislodgeable residue as proportion",0.1,"none","Harris and Solomon 1992","Estimate of dislodgeable residue as a proportion of application rate shortly after application based on 2,4-D."]
["Standard Pond","Depth",1,"m","Default","Depth of pond"]
["Standard Pond","Surface Area",1000,"m^2","Default","Surface Area"]
["Standard Pond","Volume of Spill ",200,"gallons","Default","Volume of spill"]
["VegRR","Broadleaf/forage plants and small insects, lower range",15,"mg chem/kg veg","SERA 2007","Broadleaf/forage plants and small insects"]
["VegRR","Fruits, pods, seeds, and large insects, lower range",3.2,"mg chem/kg veg","SERA 2007","Fruits, pods, seeds, and large insects"]
["VegRR","Broadleaf plants and small insects, granular applications, lower range",0.6,"mg chem/kg veg","SERA 2007","Broadleaf/forage plants after granular application"]
["VegRR","Fruits, granular applications, lower range",0.13,"mg chem/kg veg","SERA 2007","Fruit after granular application"]
["VegRR","Short grass, granular applications, central estimate",3.4,"mg chem/kg veg","SERA 2005","Short grass after granular application"]
["VegRR","Short grass, granular applications, lower range",1.2,"mg chem/kg veg","SERA 2007","Short grass after granular application"]
["VegRR","Tall grass, granular applications, lower range",0.48,"mg chem/kg veg","SERA 2007","Tall grass after granular application"]
["VegRR","Short grass, lower range",30,"mg chem/kg veg","Fletcher et al. 1994","Short grass"]
["VegRR","Tall grass, lower range",12,"mg chem/kg veg","SERA 2007","Tall grass"]

{"sheet":"A03","index":11,"n_rows":66,"n_cols":8,"rows_kept":66,"cut":false,"hidden":false,"merged":[[0,0,0,6]]}
["Food items for terrestrial animals"]
[]
["Receptor","Consumer","Qualifier","Modifier","Value","Units"," Reference","Reference Note"]
["Adult Female","Fish","Amount","central estimate",0.01,"kg/day","U.S. EPA/ORD 1996","p. 10-51, average of means from four studies rounded to one significant place."]
["Adult Female","Fish","Amount","upper range",0.158,"kg/day","Ruffle et al. 1994","N/A"]
["Adult Female","Fruit","Proportion of body weight","central estimate",1.6800000000000001E-3,"kg fruit/kg bw/day","U.S. EPA/ORD 1996","Table 9-3, p. 9-11, mean value."]
["Adult Female","Fruit","Proportion of body weight","lower range",1.6800000000000001E-3,"kg fruit/kg bw/day","U.S. EPA/ORD 1996","Table 9-3, p. 9-11. The 5th percentile is given as zero.  For these worksheets, the central estimate is used for the lower bound."]
["Adult Female","Fruit","Proportion of body weight","upper range",1.244E-2,"kg fruit/kg bw/day","U.S. EPA/ORD 1996","Table 9-3, p. 9-11, 95th percentile value."]
["Adult Female","Vegetation, home grown","Proportion of body weight","central estimate",7.6000000000000004E-4,"kg veg/kg bw/day","U.S. EPA/ORD 1996","Table 12-15, p. 9-14, mean for individuals between 20 and 39 years old."]
["Adult Female","Vegetation, home grown","Proportion of body weight","lower range",8.0000000000000007E-5,"kg veg/kg bw/day","U.S. EPA/ORD 1996","Table 12-15, p. 9-14, 5th percentile for individuals between 20 and 39 years old."]
["Adult Female","Vegetation, home grown","Proportion of body weight","upper range",4.9199999999999999E-3,"kg veg/kg bw/day","U.S. EPA/ORD 1996","Table 12-15, p. 9-14, 95th percentile for individuals between 20 and 39 years old."]
["Adult Female","Vegetation","Amount","Extreme",0.45400000000000001,"kg food","U.S. EPA/ORD 1996","1 lb.  The approximate mid range of the above typical and upper limits based on the 64 kg body weight."]
["Adult Female","Vegetation","Proportion of body weight","central estimate",3.5999999999999999E-3,"kg veg/kg bw/day","U.S. EPA/ORD 1996","Table 9-12, p. 9-12, mean."]
["Adult Female","Vegetation","Proportion of body weight","lower range",7.5000000000000002E-4,"kg veg/kg bw/day","U.S. EPA/ORD 1996","Table 9-12, p. 9-12, 5th percentile."]
["Adult Female","Vegetation","Proportion of body weight","upper range",0.01,"kg veg/kg bw/day","U.S. EPA/ORD 1996","Table 9-12, p. 9-12, 95th percentile."]
["Adult Female","Water","Amount","central estimate",2,"L/day","U.S. EPA/ORD 1996","p. 3-28, Table 3-30, midpoint of mean (1.4 L/day) and 90th percentile (2.4 L/day) rounded to one significant place."]
["Adult Female","Water","Amount","lower range",1.4,"L/day","U.S. EPA/ORD 1996","p. 3-28, Table 3-30, mean"]
["Adult Female","Water","Amount","upper range",2.4,"L/day","U.S. EPA/ORD 1996","p. 3-28, Table 3-30, 90th percentile"]
["Adult Male","Fish","Amount","central estimate",0.01,"kg/day","U.S. EPA/ORD 1996","p. 10-51, average of means from four studies rounded to one significant place."]
["Adult Male","Fish","Amount","upper range",0.158,"kg/day","Ruffle et al. 1994","N/A"]
["Adult Male","Fruit","Proportion of body weight","central estimate",1.6800000000000001E-3,"unitless","U.S. EPA/ORD 1996","Table 9-3, p. 9-11, mean value."]
["Adult Male","Fruit","Proportion of body weight","lower range",1.6800000000000001E-3,"unitless","U.S. EPA/ORD 1996","Table 9-3, p. 9-11. The 5th percentile is given as zero.  For these worksheets, the central estimate is used for the lower bound."]
["Adult Male","Fruit","Proportion of body weight","upper range",1.244E-2,"unitless","U.S. EPA/ORD 1996","Table 9-3, p. 9-11, 95th percentile value."]
["Adult Male","Vegetation, home grown","Proportion of body weight","central estimate",7.6000000000000004E-4,"unitless","U.S. EPA/ORD 1996","Table 12-15, p. 9-14, mean for individuals between 20 and 39 years old."]
["Adult Male","Vegetation, home grown","Proportion of body weight","lower range",8.0000000000000007E-5,"unitless","U.S. EPA/ORD 1996","Table 12-15, p. 9-14, 5th percentile for individuals between 20 and 39 years old."]
["Adult Male","Vegetation, home grown","Proportion of body weight","upper range",4.9199999999999999E-3,"unitless","U.S. EPA/ORD 1996","Table 12-15, p. 9-14, 95th percentile for individuals between 20 and 39 years old."]
["Adult Male","Vegetation","Amount","Extreme",0.45400000000000001,"kg/day","U.S. EPA/ORD 1996","1 lb.  The approximate mid range of the above typical and upper limits based on the 64 kg body weight."]
["Adult Male","Vegetation","Proportion of body weight","central estimate",3.5999999999999999E-3,"unitless","U.S. EPA/ORD 1996","Table 9-12, p. 9-12, mean."]
["Adult Male","Vegetation","Proportion of body weight","lower range",7.5000000000000002E-4,"unitless","U.S. EPA/ORD 1996","Table 9-12, p. 9-12, 5th percentile."]
["Adult Male","Vegetation","Proportion of body weight","upper range",0.01,"unitless","U.S. EPA/ORD 1996","Table 9-12, p. 9-12, 95th percentile."]
["Adult Male","Water","Amount","central estimate",2,"L/day","U.S. EPA/ORD 1996","p. 3-28, Table 3-30, midpoint of mean (1.4 L/day) and 90th percentile (2.4 L/day) rounded to one significant place."]
["Adult Male","Water","Amount","lower range",1.4,"L/day","U.S. EPA/ORD 1996","p. 3-28, Table 3-30, mean"]
["Adult Male","Water","Amount","upper range",2.4,"L/day","U.S. EPA/ORD 1996","p. 3-28, Table 3-30, 90th percentile"]
["Subsistence Populations","Fish","Amount","central estimate",8.1000000000000003E-2,"kg/day","U.S. EPA/ORD 1996","p. 10-51, median value of 94 individuals"]
["Subsistence Populations","Fish","Amount","upper range",0.77,"kg/day","U.S. EPA/ORD 1993","p. 10-51, highest value of 94 individuals"]
["Bird, NOS","Fish","Kilocalories","FoodVal",3.87,"Kcal/gram (dw)","U.S. EPA/ORD 1993","Table 3-1, p. 3-5"]
["Bird, NOS","Fish","Wat","FoodVal",0.7,"Unitless","Ali et al. 2005","N/A"]
["Bird, NOS","Fruit","Kilocalories","FoodVal",1.1000000000000001,"Kcal/gram (dw)","U.S. EPA/ORD 1993","Gross caloric value of 2.2 kcal/g dw (U.S. EPA/ORD 1993, Table 4-2) with assim fact of 0.51"]
["Bird, NOS","Fruit","Wat","FoodVal",0.77,"Unitless","U.S. EPA/ORD 1993","Table 4-2, p. 4-14"]
["Bird, NOS","Insect","Kilocalories","FoodVal",4.3,"Kcal/gram (dw)","U.S. EPA/ORD 1993","Table 4-2, p. 4-14"]
["Bird, NOS","Insect","Wat","FoodVal",0.7,"Unitless","Chapman 1998","Typrical range 60-80%"]
["Bird, NOS","Vegetation","Kilocalories","FoodVal",2,"Kcal/gram (dw)","U.S. EPA/ORD 1993","gross caloric value of 4.2 kcal/g dw for dicot leaves (U.S. EPA/ORD 1993, Table 4-2) with assim fact of 0.47"]
["Bird, NOS","Vegetation","Wat","FoodVal",0.85,"Unitless","U.S. EPA/ORD 1993","Table 4-2, p. 4-14"]
["Child","Water","Amount","central estimate",1,"L/day","U.S. EPA/ORD 1996","p. 3-28, Table 3-30, midpoint of mean (0.61L/day) and 90th percentile (1.5 L/day) rounded to one significant place."]
["Child","Water","Amount","lower range",0.61,"L/day","U.S. EPA/ORD 1996","p. 3-28, Table 3-30, mean"]
["Child","Water","Amount","upper range",1.5,"L/day","U.S. EPA/ORD 1996","p. 3-28, Table 3-30, 90th percentile"]
["Herbivorous Insect","Broadleaf/Small Insects","Proportion of body weight","central estimate",1.3,"kg food/kg bw/day","Waldbauer 1968","N/A"]
["Herbivorous Insect","Broadleaf/Small Insects","Proportion of body weight","lower range",0.6,"kg food/kg bw/day","Reichle et al. 1973","N/A"]
["Herbivorous Insect","Broadleaf/Small Insects","Proportion of body weight","upper range",2.2000000000000002,"kg food/kg bw/day","Waldbauer 1968","N/A"]
["Herbivorous Insect","Fruit","Proportion of body weight","central estimate",1.3,"kg food/kg bw/day","Waldbauer 1968","N/A"]
["Herbivorous Insect","Fruit","Proportion of body weight","lower range",0.6,"kg food/kg bw/day","Reichle et al. 1973","N/A"]
["Herbivorous Insect","Fruit","Proportion of body weight","upper range",2.2000000000000002,"kg food/kg bw/day","Waldbauer 1968","N/A"]
["Herbivorous Insect","Short grass","Proportion of body weight","central estimate",1.3,"kg food/kg bw/day","Waldbauer 1968","N/A"]
["Herbivorous Insect","Short grass","Proportion of body weight","lower range",0.6,"kg food/kg bw/day","Reichle et al. 1973","N/A"]
["Herbivorous Insect","Short grass","Proportion of body weight","upper range",2.2000000000000002,"kg food/kg bw/day","Waldbauer 1968","N/A"]
["Herbivorous Insect","Tall Grass","Proportion of body weight","central estimate",1.3,"kg food/kg bw/day","Waldbauer 1968","N/A"]
["Herbivorous Insect","Tall Grass","Proportion of body weight","lower range",0.6,"kg food/kg bw/day","Reichle et al. 1973","N/A"]
["Herbivorous Insect","Tall Grass","Proportion of body weight","upper range",2.2000000000000002,"kg food/kg bw/day","Waldbauer 1968","N/A"]
["Mammal, Nos","Fish","Kilocalories","FoodVal",4.47,"Kcal/gram (dw)","U.S. EPA/ORD 1993","Table 3-1, p. 3-5"]
["Mammal, Nos","Fish","Wat","FoodVal",0.7,"Unitless","Ali et al. 2005","N/A"]
["Mammal, Nos","Fruit","Kilocalories","FoodVal",1.1000000000000001,"Kcal/gram (dw)","U.S. EPA/ORD 1993","Gross caloric value of 2.2 kcal/g dw (U.S. EPA/ORD 1993, Table 4-2) with assim fact of 0.51"]
["Mammal, Nos","Fruit","Wat","FoodVal",0.77,"Unitless","U.S. EPA/ORD 1993","Table 4-2, p. 4-14"]
["Mammal, Nos","Insect","Kilocalories","FoodVal",4.47,"Kcal/gram (dw)","U.S. EPA/ORD 1993","Table 4-2, p. 4-14"]
["Mammal, Nos","Insect","Wat","FoodVal",0.7,"Unitless","Chapman 1998","Typrical range 60-80%"]
["Mammal, Nos","Vegetation","Kilocalories","FoodVal",2.2599999999999998,"Kcal/gram (dw)","U.S. EPA/ORD 1993","Table 3-1, p. 3-5"]
["Mammal, Nos","Vegetation","Wat","FoodVal",0.85,"Unitless","U.S. EPA/ORD 1993","Table 4-2, p. 4-14"]

{"sheet":"B01","index":12,"n_rows":22,"n_cols":5,"rows_kept":22,"cut":false,"hidden":false,"merged":[[0,0,0,4]]}
["Chemical and Physical Properties for  Borates"]
[]
["Property","Receptor","Value","Units","Document Reference"]
["Bioconcentration Factor (BCF), edible, acute","N/A",1,"L/kg fish","Section 3.2.3.5"]
["Bioconcentration Factor (BCF), edible, chronic","N/A",1,"L/kg fish","Section 3.2.3.5"]
["Bioconcentration Factor (BCF), whole fish, acute","N/A",1,"L/kg fish","Section 3.2.3.5"]
["Bioconcentration Factor (BCF), whole fish, chronic","N/A",1,"L/kg fish","Section 3.2.3.5"]
["Kow (Octanol-water partition coefficient)","N/A",0.17499999999999999,"unitless","Table 1"]
["Molecular weight","N/A",61.831699999999998,"grams/mole","Table 1"]
["Water Solubility","N/A",54300,"mg/L","Table 12"]
["First order dermal absorption rate (ka), central estimate","N/A",8.7999999999999998E-5,"per hour","Section 3.2.2.2"]
["First order dermal absorption rate (ka), lower range","N/A",2.0000000000000002E-5,"per hour","Section 3.2.2.2"]
["First order dermal absorption rate (ka), upper range","N/A",1.6000000000000001E-4,"per hour","Section 3.2.2.2"]
["Dermal permeability (Kp), central estimate","N/A",1.8E-7,"cm/hour","Section 3.2.2.2"]
["Dermal permeability (Kp), lower range","N/A",4.1000000000000003E-8,"cm/hour","Section 3.2.2.2"]
["Dermal permeability (Kp), upper range","N/A",3.2000000000000001E-7,"cm/hour","Section 3.2.2.2"]
["Halftime, central estimate","Fruit",10000,"days","Placeholder.  Not used."]
["Halftime, lower range","Fruit",10000,"days","Placeholder.  Not used."]
["Halftime, upper range","Fruit",10000,"days","Placeholder.  Not used."]
["Halftime, central estimate","Vegetation",10000,"days","Placeholder.  Not used."]
["Halftime, lower range","Vegetation",10000,"days","Placeholder.  Not used."]
["Halftime, upper range","Vegetation",10000,"days","Placeholder.  Not used."]

{"sheet":"B02","index":13,"n_rows":28,"n_cols":7,"rows_kept":28,"cut":false,"hidden":false,"merged":[[0,0,0,6]]}
["Toxicity values for  Borates"]
[]
["Receptor","Receptor","Qualifier","Endpoint","Value","Units","Document Reference"]
["Human","acute","N/A","Reference Dose (RfD)",3.5,"mg/kg bw","Section 3.3.3."]
["Human","chronic","N/A","Reference Dose (RfD)",8.7999999999999995E-2,"mg/kg bw/day","Section 3.3.2."]
["Mammal, Nos","acute","N/A","NOAEL",350,"mg/kg bw","Section 4.3.2.1."]
["Mammal, Nos","chronic","N/A","NOAEL",8.8000000000000007,"mg/kg bw/day","Section 4.3.2.1."]
["Bird, NOS","acute","N/A","NOAEL",113,"mg/kg bw","Section 4.3.2.2."]
["Bird, NOS","chronic","N/A","NOAEL",3.7,"mg/kg bw/day","Section 4.3.2.2."]
["Honeybee","acute","N/A","NOAEL",540,"mg/kg bw","Section 4.3.2.3."]
["Fish","acute","sensitive species","NOAEC*",3.53,"mg/L","Section 4.3.3.1."]
["Fish","acute","tolerant species","NOAEC",192,"mg/L","Section 4.3.3.1."]
["Fish","chronic","sensitive species","LC01",1.1000000000000001,"mg/L","Section 4.3.3.1."]
["Fish","chronic","tolerant species","NOAEC",7.4,"mg/L","Section 4.3.3.1."]
["Amphibian","acute","sensitive species","NOEC",5,"mg/L","Section 4.3.3.2"]
["Amphibian","acute","tolerant species","NOEC",25,"mg/L","Section 4.3.3.2"]
["Amphibian","chronic","sensitive species","NOEC",1.75,"mg/L","Section 4.3.3.2"]
["Amphibian","chronic","tolerant species","NOEC",25,"mg/L","Section 4.3.3.2"]
["Aquatic invertebrate","acute","sensitive species","NOAEC",0.7,"mg/L","Section 4.3.3.2."]
["Aquatic invertebrate","acute","tolerant species","NOAEC",10,"mg/L","Section 4.3.3.2."]
["Aquatic invertebrate","chronic","sensitive species","NOAEC",0.7,"mg/L","Section 4.3.3.2."]
["Aquatic invertebrate","chronic","tolerant species","NOAEC",10,"mg/L","Section 4.3.3.2."]
["Algae","N/A","sensitive species","NOAEC",1.6,"mg/L","Section 4.3.3.4."]
["Algae","N/A","tolerant species","NOAEC",47.1,"mg/L","Section 4.3.3.4."]
["Macrophyte, aquatic","N/A","sensitive species","NOEC",4,"mg/L","Section 4.3.3.4."]
["Macrophyte, aquatic","N/A","tolerant species","NOEC",11,"mg/L","Section 4.3.3.4."]
["Aquatic Microorganism","N/A","sensitive species","NOEC",0.3,"mg/L","Section 4.3.3.4."]
["Aquatic Microorganism","N/A","tolerant species","NOEC",291,"mg/L","Section 4.3.3.4."]

{"sheet":"B03a","index":14,"n_rows":28,"n_cols":5,"rows_kept":28,"cut":false,"hidden":false,"merged":[[24,0,27,0],[0,0,0,4],[1,1,1,3],[5,0,7,0],[9,0,12,0],[20,0,23,0]]}
["Calculation of Zero-Order Dermal Permeability Rate (Kp) in cm/hour"]
["Short Title","Calculation of Kp",null,null,"ChemDrmKp"]
["Parameter/Assumption","Code / Range","Equation/   Value","Units","Reference/Designation"]
["Molecular weight","MW",{"$f":"'B01'!$C$9","v":61.831699999999998},"g/mole","Table 1"]
["Ko/w","Kow",{"$f":"'B01'!$C$8","v":0.17499999999999999},"unitless","Table 1"]
["Vector a[]","a[1]",1]
[null,"a[2]",{"$f":"C4","v":61.831699999999998}]
[null,"a[3]",{"$f":"LOG10(C5)","v":-0.75696195131370558}]
["Transpose of a[] (a')",{"$f":"$C$6","v":1},{"$f":"$C$7","v":61.831699999999998},{"$f":"$C$8","v":-0.75696195131370558}]
["X'X Cross Product Matrix","X'X"]
[null,5.5931000000000002E-2,-9.4154599999999995E-5,-1.0344300000000001E-2]
[null,-9.4154599999999995E-5,5.9780000000000002E-7,-2.22508E-5]
[null,-1.0344300000000001E-2,-2.22508E-5,7.40677E-3]
["a'X'X a","a'X'X a",{"$f":"MMULT(B9:D9,MMULT(B11:D13, C6:C8))","v":6.8560368826843632E-2}]
["Coefficients for model"]
["Intercept","K0",-2.7257600000000002]
["Coeff for MW","K1",-6.1510000000000002E-3]
["Coeff for Log10(Kow)","K2",0.70664800000000005]
["Standard deviation of model","s",0.72712900000000003]
["Critical value at 0.025 with 87 d.f.","t0.025",1.96]
["Log10 of Estimated dermal permeability rate (Kp)","Log(Kp) = ","K0 + K1  MW + K2 Log10(Kow) "]
[null,"Central",{"$f":" $C$16 + ($C$17*$C$4) + ($C$18*LOG10($C$5))","v":-3.6409924356719277},null,"Eq"]
[null,"Lower 95% CI",{"$f":"$C$22 - ($C$20 * $C$19 * ($C$14^0.5))","v":-4.0141601907412543},null,"Eq"]
[null,"Upper 95% CI",{"$f":"$C$22 + ($C$20 * $C$19 * ($C$14^0.5))","v":-3.2678246806026015},null,"Eq"]
["Estimated dermal permeability rate (Kp)","Kp = ","10Log(Kp)"]
[null,"Central",{"$f":"10^C22","v":2.2856386131599803E-4},"cm/hour","Eq"]
[null,"Lower 95% CI",{"$f":"10^C23","v":9.6792077011051308E-5},null,"Eq"]
[null,"Upper 95% CI",{"$f":"10^C24","v":5.3972846035439583E-4},null,"Eq"]

{"sheet":"B03b","index":15,"n_rows":28,"n_cols":5,"rows_kept":28,"cut":false,"hidden":false,"merged":[[24,0,27,0],[0,0,0,4],[1,1,1,3],[5,0,7,0],[9,0,12,0],[20,0,23,0]]}
["Calculation of First-Order Dermal Absorption Rate"]
["Short Title","Calculation of ka",null,null,"ChemDrmKa"]
["Parameter/Assumption","Code / Range","Equation/   Value","Units","Reference/Designation"]
["Molecular weight","MW",{"$f":"'B01'!$C$9","v":61.831699999999998},"g/mole","Table 1"]
["Ko/w","Kow",{"$f":"'B01'!$C$8","v":0.17499999999999999},"unitless","Table 1"]
["Vector a[]","a[1]",1]
[null,"a[2]",{"$f":"C4","v":61.831699999999998}]
[null,"a[3]",{"$f":"LOG10(C5)","v":-0.75696195131370558}]
["Transpose of a[] (a')",{"$f":"$C$6","v":1},{"$f":"$C$7","v":61.831699999999998},{"$f":"$C$8","v":-0.75696195131370558}]
["X'X Cross Product Matrix","X'X"]
[null,0.307537,-1.03089E-3,8.2276899999999993E-3]
[null,-1.03089E-3,4.3769999999999998E-6,-9.4435899999999995E-5]
[null,8.2276899999999993E-3,-9.4435899999999995E-5,8.5286000000000008E-3]
["a'X'X a","a'X'X a",{"$f":"MMULT(B9:D9,MMULT(B11:D13, C6:C8))","v":0.19805832479267052}]
["Coefficients for model"]
["Intercept","K0",-1.4961500000000001]
["Coeff for MW","K1",-5.6569999999999997E-3]
["Coeff for Log10(Kow)","K2",0.23325499999999999]
["Standard deviation of model","s",0.78721799999999997]
["Critical value at 0.025 with 26 d.f.","t0.025",2.056]
["Log10 of Estimated first-order absorption rate","Log(ka) = ","K0 + K1  MW + K2 Log10(Kow) "]
[null,"Central",{"$f":"  $C$16 + ($C$17*$C$4) + ($C$18*LOG10($C$5))","v":-2.0224970868536785},null,"Eq"]
[null,"Lower 95% CI",{"$f":"$C$22 - ($C$20 * $C$19 * ($C$14^0.5))","v":-2.7427991800668856},null,"Eq"]
[null,"Upper 95% CI",{"$f":"$C$22 + ($C$20 * $C$19 * ($C$14^0.5))","v":-1.3021949936404713},null,"Eq"]
["Estimated first-order absorption rate","ka = ","10Log(ka)"]
[null,"Central",{"$f":"10^C22","v":9.4951736832238464E-3},"hour-1","Eq"]
[null,"Lower 95% CI",{"$f":"10^C23","v":1.8080099655677056E-3},null,"Eq"]
[null,"Upper 95% CI",{"$f":"10^C24","v":4.9866054386640227E-2},null,"Eq"]

{"sheet":"B04Rt","index":16,"n_rows":11,"n_cols":5,"rows_kept":11,"cut":false,"hidden":false,"merged":[[0,0,0,4],[2,0,5,0],[6,0,9,0],[10,1,10,4]]}
["Estimates of Water Contamination Rates -- i.e., the concentration in ambient water per pound applied per acre"]
["Parameter/Assumption","Code / Range","Equation/ Value","Units","WCRV6"]
["Short-term peak concentrations","Peak",null,null,"WCRV6"]
[null,"Central ",4.1000000000000002E-2,"mg/L","Section 3.2.3.4.6"]
[null,"Lower ",1.2E-9,null,"Section 3.2.3.4.6"]
[null,"Upper ",0.43,null,"Section 3.2.3.4.6"]
["Longer-term average concentrations","Average"]
[null,"Central ",1.7999999999999999E-2,"mg/L","Section 3.2.3.4.6"]
[null,"Lower ",6E-10,null,"Section 3.2.3.4.6"]
[null,"Upper ",0.23,null,"Section 3.2.3.4.6"]
["User Specified Gleams-Driver File:","None"]

{"sheet":"B04a","index":17,"n_rows":21,"n_cols":5,"rows_kept":21,"cut":false,"hidden":false,"merged":[[21,1,21,4],[0,0,0,3],[4,0,7,0],[8,0,11,0],[13,0,16,0],[17,0,20,0]]}
["Expected Concentrations in Surface Water",null,null,null,"EECRtV6"]
["Parameter/Assumption","Code / Range","Equation/ Value","Units","EECRtV6"]
["Application Rate","ApRt",{"$f":"'A01'!ApRt_C","v":0.105},"lb/acre","Worksheet A01"]
["Water Contamination Rates"]
["Short-term peak water contamination rates (WCR)","Peak"]
[null,"Central ",{"$f":"B04Rt!$C$4","v":4.1000000000000002E-2},"mg/L","Section 3.2.3.4.6"]
[null,"Lower ",{"$f":"B04Rt!$C$5","v":1.2E-9},null,"Section 3.2.3.4.6"]
[null,"Upper ",{"$f":"B04Rt!$C$6","v":0.43},null,"Section 3.2.3.4.6"]
["Longer-term average water contamination rates (WCR)","Average"]
[null,"Central ",{"$f":"B04Rt!$C$8","v":1.7999999999999999E-2},"mg/L","Section 3.2.3.4.6"]
[null,"Lower ",{"$f":"B04Rt!$C$9","v":6E-10},null,"Section 3.2.3.4.6"]
[null,"Upper ",{"$f":"B04Rt!$C$10","v":0.23},null,"Section 3.2.3.4.6"]
["EECs in Surface Water"]
["Short-term peak concentrations","Peak"]
[null,"Central ",{"$f":"$C$3*C6","v":4.3049999999999998E-3},"mg/L","Eq"]
[null,"Lower ",{"$f":"$C$3*C7","v":1.26E-10},null,"Eq"]
[null,"Upper ",4.5149999999999996E-2,null,"Eq"]
["Longer-term average concentrations","Average"]
[null,"Central ",{"$f":"$C$3*C10","v":1.8899999999999998E-3},"mg/L","Eq"]
[null,"Lower ",{"$f":"$C$3*C11","v":6.3000000000000002E-11},null,"Eq"]
[null,"Upper ",2.4150000000000001E-2,null,"Eq"]

{"sheet":"B04b","index":18,"n_rows":27,"n_cols":5,"rows_kept":27,"cut":false,"hidden":false,"merged":[[19,0,22,0],[23,0,26,0],[0,0,0,4],[1,1,1,3],[2,1,2,3],[3,1,3,3],[10,0,13,0],[14,0,17,0]]}
["Pond: Concentration of pesticide in pond water after an accidental spill"]
["Short Title","Pond Spill",null,null,"PondSpillApRt"]
["Receptor","Pond"]
["Duration","Acute "]
["Parameter/Assumption","Code / Range","Equation/   Value","Units","Reference/Designation"]
["Surface Area of Pond","SA",{"$f":"'A01'!C$30","v":1000},"m2","Worksheet A01"]
["Depth of Pond","Depth",{"$f":"'A01'!C$31","v":1},"meter","Worksheet A01"]
["Volume of Pond","VPM",{"$f":"C6*C7","v":1000},"m3","Eq"]
[null,"VPL",{"$f":"1000*C8","v":1000000},"liters","Eq"]
["Application Rate","ApRt",{"$f":"'A01'!ApRt_C","v":0.105},"lbs","Worksheet A01"]
["Number of treated acres of pesticide involved in the  spill.","Acres"]
[null,"Central ",{"$f":"'A01'!C$58","v":5},"acres","Worksheet A01"]
[null,"Lower ",{"$f":"'A01'!C$59","v":1},null,"Worksheet A01"]
[null,"Upper ",{"$f":"'A01'!C$60","v":10},null,"Worksheet A01"]
["Pounds of compound spilled into water","Lbs"]
[null,"Central ",{"$f":"$C$10*C12","v":0.52500000000000002},"lbs a.i. or a.e","Eq."]
[null,"Lower ",{"$f":"$C$10*C13","v":0.105},null,"Eq."]
[null,"Upper ",1.05,null,"Eq."]
["mg per lb","MgLbs",453600,"mg/lbs"]
["Toxic Equivalency Factor for formulation:  (See risk assessment if this has a value other than 1.)","TEF"]
[null,"Central ",{"$f":"'A01'!C$42","v":1},"unitless","Worksheet A01"]
[null,"Lower ",{"$f":"'A01'!C$43","v":1},null,"Worksheet A01"]
[null,"Upper ",{"$f":"'A01'!C$44","v":1},null,"Worksheet A01"]
["Concentration in pond water","ConcWat","Lbs  × TEF x MgLbs ÷ VPL"]
[null,"Central ",{"$f":"C16*C21*C$19/C$9","v":0.23813999999999999},"mg/L","Eq"]
[null,"Lower ",{"$f":"C17*C22*C$19/C$9","v":4.7627999999999997E-2},null,"Eq"]
[null,"Upper ",{"$f":"C18*C23*C$19/C$9","v":0.47627999999999998},null,"Eq"]

{"sheet":"C01a","index":19,"n_rows":30,"n_cols":5,"rows_kept":30,"cut":false,"hidden":false,"merged":[[26,0,29,0],[0,0,0,4],[1,1,1,3],[2,1,2,3],[3,1,3,3],[6,0,9,0],[10,0,13,0],[14,0,17,0],[18,0,21,0],[19,3,21,3],[22,0,25,0],[23,3,25,3]]}
["Exposure estimates for Stump Applicator based on the amount of material handled per day"]
["Short Title","Wet Stump Application",null,null,"WkAltGenExp"]
["Receptor","Worker"]
["Duration","Chronic"]
["Parameter/Assumption","Code / Range","Equation/ Value","Units","Reference/Equation"]
["Stump Application Rate","StumpApRt",{"$f":"'A01'!C$4","v":5.2499999999999997E-4},"lb/ft2","Worksheet A01"]
["Stump Surface Treated per Day","StumpFt","Hrs × APH"]
[null,"Central ",{"$f":"'A01'!C$24","v":500},"ft2/day","Worksheet A01"]
[null,"Lower ",{"$f":"'A01'!C$25","v":200},null,"Worksheet A01"]
[null,"Upper ",{"$f":"'A01'!C$26","v":1000},null,"Worksheet A01"]
["Toxic Equivalency Factor for formulation:  (See risk assessment if this has a value other than 1.)","TEF"]
[null,"Central ",{"$f":"'A01'!C$42","v":1},"unitless","Worksheet A01"]
[null,"Lower ",{"$f":"'A01'!C$43","v":1},null,"Worksheet A01"]
[null,"Upper ",{"$f":"'A01'!C$44","v":1},null,"Worksheet A01"]
["Amount handled per day: ","Amnt","ApRt × ATD  × TEF"]
[null,"Central ",{"$f":"C$6*C8 *C12","v":0.26250000000000001},"lb/day","Eq"]
[null,"Lower ",{"$f":"C$6*C9 *C13","v":0.105},null,"Eq"]
[null,"Upper ",{"$f":"C$6*C10 *C14","v":0.52500000000000002},null,"Eq"]
["Absorbed dose rate:","ADR"]
[null,"Central ",{"$f":"'A01'!C$50","v":6.0000000000000002E-5},"(mg agent/kg bw) ÷ (lbs agent handled per day)","Worksheet A01"]
[null,"Lower ",{"$f":"'A01'!C$51","v":1.0000000000000001E-5},null,"Worksheet A01"]
[null,"Upper ",{"$f":"'A01'!C$52","v":4.0000000000000002E-4},null,"Worksheet A01"]
["Clothing Protection Factor","Prot"]
[null,"Central ",{"$f":"'A01'!C$38","v":0},"Unitless (value between 0 [no protection] and 1 [complete protection])","Worksheet A01"]
[null,"Upper ",{"$f":"'A01'!C$40","v":0},null,"Worksheet A01"]
[null,"Lower ",{"$f":"'A01'!C$39","v":0},null,"Worksheet A01"]
["Absorbed dose","Dose","Amnt × ADR  × (1-Prot)"]
[null,"Central ",{"$f":"C16*C20*(1-C24)","v":1.575E-5},"mg/kg bw/day","Eq"]
[null,"Lower ",{"$f":"C17*C21*(1-C25)","v":1.0500000000000001E-6},null,"Eq"]
[null,"Upper ",{"$f":"C18*C22*(1-C26)","v":2.1000000000000001E-4},null,"Eq"]

{"sheet":"C01b","index":20,"n_rows":57,"n_cols":5,"rows_kept":57,"cut":false,"hidden":false,"merged":[[53,0,56,0],[15,0,18,0],[16,3,18,3],[19,0,22,0],[23,0,26,0],[24,3,26,3],[27,0,30,0],[32,0,35,0],[36,0,39,0],[40,0,43,0],[44,0,47,0],[49,0,52,0],[11,0,14,0],[0,0,0,4],[1,1,1,3],[2,1,2,3],[3,1,3,3],[7,0,10,0]]}
["Exposure estimates based on Pesticide Handlers Exposure Database (PHED) Method"]
["Short Title","Backpack Stump Application, PHED",null,null,"WkPHEDAlt01"]
["Receptor","Worker"]
["Duration","Chronic",null,null,"Scenario parameter"]
["Parameter/Assumption","Code / Range","Equation/ Value","Units","Reference/Equation"]
["Body Weight","BW",{"$f":"A02a!$C$39","v":70},null,"ICRP 1975"]
["Stump Application Rate","StumpApRt",{"$f":"'A01'!C$4","v":5.2499999999999997E-4},"lb/ft2","Worksheet A01"]
["Stump Surface Treated per Day","StumpFt"]
[null,"Central ",{"$f":"'A01'!C$24","v":500},"ft2/day","Worksheet A01"]
[null,"Lower ",{"$f":"'A01'!C$25","v":200},null,"Worksheet A01"]
[null,"Upper ",{"$f":"'A01'!C$26","v":1000},null,"Worksheet A01"]
["Amount a.i. handled per day: ","Amnt","StumpApRt × StumpFt"]
[null,"Central ",{"$f":"$C$7*C9","v":0.26250000000000001},"lb a.i.","Eq."]
[null,"Lower ",{"$f":"$C$7*C10","v":0.105},null,"Eq."]
[null,"Upper ",{"$f":"$C$7*C11","v":0.52500000000000002},null,"Eq."]
["Dermal Exposure Rate: ","DermRate"]
[null,"Central ",4.12,"mg per lb handled","Scenario parameter"]
[null,"Lower ",4.12,null,"Scenario parameter"]
[null,"Upper ",4.12,null,"Scenario parameter"]
["PPE Factor for Dermal Exposure: ","DermPPE"]
[null,"Central ",0,"Proportion"]
[null,"Upper ",0]
[null,"Lower ",0]
["Amount Deposited on Skin","DermAmnt","Amnt × DermRate × (1-DermPPE)"]
[null,"Central",{"$f":"C13*C17*(1-C21)","v":1.0815000000000001},"mg/day","Eq."]
[null,"Lower",{"$f":"C14*C18*(1-C22)","v":0.43259999999999998},null,"Eq."]
[null,"Upper",{"$f":"C15*C19*(1-C23)","v":2.1630000000000003},null,"Eq."]
["First-order dermal absorption rates ","ka"]
[null,"Central",{"$f":"'B01'!$C$11","v":8.7999999999999998E-5},"hour-1","Section 3.2.2.2"]
[null,"Lower",{"$f":"'B01'!$C$12","v":2.0000000000000002E-5},null,"Section 3.2.2.2"]
[null,"Upper",{"$f":"'B01'!$C$13","v":1.6000000000000001E-4},null,"Section 3.2.2.2"]
["Period of exposure","T",10,"hours","Scenario parameter"]
["Proportion absorbed by skin over period T","Prop","1-exp(-ka T)"]
[null,"Central",{"$f":"1-EXP(-C29*C$32)","v":8.7961291355365123E-4},"Proportion","Eq."]
[null,"Lower",{"$f":"1-EXP(-C30*C$32)","v":1.9998000133325533E-4},null,"Eq."]
[null,"Upper",{"$f":"1-EXP(-C31*C$32)","v":1.5987206823936395E-3},null,"Eq."]
["Absorbed Dermal Dose","DermAbs","Amnt × Prop"]
[null,"Central",{"$f":"C25*C34","v":9.5130136600827392E-4},"mg","Eq."]
[null,"Lower",{"$f":"C26*C35","v":8.6511348576766259E-5},"mg","Eq."]
[null,"Upper",{"$f":"C27*C36","v":3.4580328360174425E-3},"mg","Eq."]
["Inhalation Exposure Rate: ","InhExpRate"]
[null,"Central ",2.5799999999999998E-3,"mg/lb handled","Scenario parameter"]
[null,"Lower ",2.5799999999999998E-3,null,"Scenario parameter"]
[null,"Upper ",2.5799999999999998E-3,null,"Scenario parameter"]
["PPE Factor for Inhalation Exposure: ","InhPPE"]
[null,"Central ",0,"Proportion"]
[null,"Upper ",0]
[null,"Lower ",0]
["Inhalation Absorption Rate: ","InhRate",1,"Proportion"]
["Absorbed Inhalation Dose","InhAbs","Amnt × InhExpRate × (1-InhPPE)"]
[null,"Central",{"$f":"C13*C42*C$49","v":6.7725000000000001E-4},"mg","Eq."]
[null,"Lower",{"$f":"C14*C43*C$49","v":2.7089999999999997E-4},null,"Eq."]
[null,"Upper",{"$f":"C15*C44*C$49","v":1.3545E-3},null,"Eq."]
["Total Absorbed dose","Dose","(DermAbs + InhAbs) ÷ BW"]
[null,"Central ",{"$f":"(C38+C51)/$C$6","v":2.3265019514403912E-5},"mg/kg bw/day","Eq"]
[null,"Lower ",{"$f":"(C39+C52)/$C$6","v":5.1058764082395177E-6},null,"Eq"]
[null,"Upper ",6.8750469085963463E-5,null,"Eq"]

{"sheet":"C01c","index":21,"n_rows":57,"n_cols":5,"rows_kept":57,"cut":false,"hidden":false,"merged":[[53,0,56,0],[15,0,18,0],[16,3,18,3],[19,0,22,0],[23,0,26,0],[24,3,26,3],[27,0,30,0],[32,0,35,0],[36,0,39,0],[40,0,43,0],[44,0,47,0],[49,0,52,0],[11,0,14,0],[0,0,0,4],[1,1,1,3],[2,1,2,3],[3,1,3,3],[7,0,10,0]]}
["Exposure estimates based on Pesticide Handlers Exposure Database (PHED) Method"]
["Short Title","Wet Stump Application, HED/PHED",null,null,"WkPHEDAlt01"]
["Receptor","Worker"]
["Duration","Chronic",null,null,"Scenario parameter"]
["Parameter/Assumption","Code / Range","Equation/ Value","Units","Reference/Equation"]
["Body Weight","BW",{"$f":"A02a!$C$39","v":70},null,"ICRP 1975"]
["Stump Application Rate","StumpApRt",{"$f":"'A01'!C$4","v":5.2499999999999997E-4},"lb/ft2","Worksheet A01"]
["Stump Surface Treated per Day","StumpFt"]
[null,"Central ",{"$f":"'A01'!C$24","v":500},"ft2/day","Worksheet A01"]
[null,"Lower ",{"$f":"'A01'!C$25","v":200},null,"Worksheet A01"]
[null,"Upper ",{"$f":"'A01'!C$26","v":1000},null,"Worksheet A01"]
["Amount a.i. handled per day: ","Amnt","StumpApRt × StumpFt"]
[null,"Central ",{"$f":"$C$7*C9","v":0.26250000000000001},"lb a.i.","Eq."]
[null,"Lower ",{"$f":"$C$7*C10","v":0.105},null,"Eq."]
[null,"Upper ",{"$f":"$C$7*C11","v":0.52500000000000002},null,"Eq."]
["Dermal Exposure Rate: ","DermRate"]
[null,"Central ",0,"mg per lb handled","Scenario parameter"]
[null,"Lower ",0,null,"Scenario parameter"]
[null,"Upper ",0,null,"Scenario parameter"]
["PPE Factor for Dermal Exposure: ","DermPPE"]
[null,"Central ",0,"Proportion"]
[null,"Upper ",0]
[null,"Lower ",0]
["Amount Deposited on Skin","DermAmnt","Amnt × DermRate × (1-DermPPE)"]
[null,"Central",{"$f":"C13*C17*(1-C21)","v":0},"mg/day","Eq."]
[null,"Lower",{"$f":"C14*C18*(1-C22)","v":0},null,"Eq."]
[null,"Upper",{"$f":"C15*C19*(1-C23)","v":0},null,"Eq."]
["First-order dermal absorption rates ","ka"]
[null,"Central",{"$f":"'B01'!$C$11","v":8.7999999999999998E-5},"hour-1","Section 3.2.2.2"]
[null,"Lower",{"$f":"'B01'!$C$12","v":2.0000000000000002E-5},null,"Section 3.2.2.2"]
[null,"Upper",{"$f":"'B01'!$C$13","v":1.6000000000000001E-4},null,"Section 3.2.2.2"]
["Period of exposure","T",10,"hours","Scenario parameter"]
["Proportion absorbed by skin over period T","Prop","1-exp(-ka T)"]
[null,"Central",{"$f":"1-EXP(-C29*C$32)","v":8.7961291355365123E-4},"Proportion","Eq."]
[null,"Lower",{"$f":"1-EXP(-C30*C$32)","v":1.9998000133325533E-4},null,"Eq."]
[null,"Upper",{"$f":"1-EXP(-C31*C$32)","v":1.5987206823936395E-3},null,"Eq."]
["Absorbed Dermal Dose","DermAbs","Amnt × Prop"]
[null,"Central",{"$f":"C25*C34","v":0},"mg","Eq."]
[null,"Lower",{"$f":"C26*C35","v":0},"mg","Eq."]
[null,"Upper",{"$f":"C27*C36","v":0},"mg","Eq."]
["Inhalation Exposure Rate: ","InhExpRate"]
[null,"Central ",0.03,"mg/lb handled","Scenario parameter"]
[null,"Lower ",0.03,null,"Scenario parameter"]
[null,"Upper ",0.03,null,"Scenario parameter"]
["PPE Factor for Inhalation Exposure: ","InhPPE"]
[null,"Central ",0,"Proportion"]
[null,"Upper ",0]
[null,"Lower ",0]
["Inhalation Absorption Rate: ","InhRate",1,"Proportion"]
["Absorbed Inhalation Dose","InhAbs","Amnt × InhExpRate × (1-InhPPE)"]
[null,"Central",{"$f":"C13*C42*C$49","v":7.8750000000000001E-3},"mg","Eq."]
[null,"Lower",{"$f":"C14*C43*C$49","v":3.1499999999999996E-3},null,"Eq."]
[null,"Upper",{"$f":"C15*C44*C$49","v":1.575E-2},null,"Eq."]
["Total Absorbed dose","Dose","(DermAbs + InhAbs) ÷ BW"]
[null,"Central ",{"$f":"(C38+C51)/$C$6","v":1.125E-4},"mg/kg bw/day","Eq"]
[null,"Lower ",{"$f":"(C39+C52)/$C$6","v":4.4999999999999996E-5},null,"Eq"]
[null,"Upper ",2.2499999999999999E-4,null,"Eq"]

{"sheet":"C01d_Ac","index":22,"n_rows":57,"n_cols":5,"rows_kept":57,"cut":false,"hidden":false,"merged":[[53,0,56,0],[15,0,18,0],[16,3,18,3],[19,0,22,0],[23,0,26,0],[24,3,26,3],[27,0,30,0],[32,0,35,0],[36,0,39,0],[40,0,43,0],[44,0,47,0],[49,0,52,0],[11,0,14,0],[0,0,0,4],[1,1,1,3],[2,1,2,3],[3,1,3,3],[7,0,10,0]]}
["Exposure estimates based on Pesticide Handlers Exposure Database (PHED) Method"]
["Short Title","Dry Stump Application, HED",null,null,"WkPHEDAlt01"]
["Receptor","Worker"]
["Duration","Acute",null,null,"Scenario parameter"]
["Parameter/Assumption","Code / Range","Equation/ Value","Units","Reference/Equation"]
["Body Weight","BW",{"$f":"A02a!$C$39","v":70},null,"ICRP 1975"]
["Stump Application Rate","StumpApRt",{"$f":"'A01'!C$4","v":5.2499999999999997E-4},"lb/ft2","Worksheet A01"]
["Stump Surface Treated per Day","StumpFt"]
[null,"Central ",{"$f":"'A01'!C$24","v":500},"ft2/day","Worksheet A01"]
[null,"Lower ",{"$f":"'A01'!C$25","v":200},null,"Worksheet A01"]
[null,"Upper ",{"$f":"'A01'!C$26","v":1000},null,"Worksheet A01"]
["Amount a.i. handled per day: ","Amnt","StumpApRt × StumpFt"]
[null,"Central ",{"$f":"$C$7*C9","v":0.26250000000000001},"lb a.i.","Eq."]
[null,"Lower ",{"$f":"$C$7*C10","v":0.105},null,"Eq."]
[null,"Upper ",{"$f":"$C$7*C11","v":0.52500000000000002},null,"Eq."]
["Dermal Exposure Rate: ","DermRate"]
[null,"Central ",0,"mg per lb handled","Scenario parameter"]
[null,"Lower ",0,null,"Scenario parameter"]
[null,"Upper ",0,null,"Scenario parameter"]
["PPE Factor for Dermal Exposure: ","DermPPE"]
[null,"Central ",0,"Proportion"]
[null,"Upper ",0]
[null,"Lower ",0]
["Amount Deposited on Skin","DermAmnt","Amnt × DermRate × (1-DermPPE)"]
[null,"Central",{"$f":"C13*C17*(1-C21)","v":0},"mg/day","Eq."]
[null,"Lower",{"$f":"C14*C18*(1-C22)","v":0},null,"Eq."]
[null,"Upper",{"$f":"C15*C19*(1-C23)","v":0},null,"Eq."]
["First-order dermal absorption rates ","ka"]
[null,"Central",{"$f":"'B01'!$C$11","v":8.7999999999999998E-5},"hour-1","Section 3.2.2.2"]
[null,"Lower",{"$f":"'B01'!$C$12","v":2.0000000000000002E-5},null,"Section 3.2.2.2"]
[null,"Upper",{"$f":"'B01'!$C$13","v":1.6000000000000001E-4},null,"Section 3.2.2.2"]
["Period of exposure","T",10,"hours","Scenario parameter"]
["Proportion absorbed by skin over period T","Prop","1-exp(-ka T)"]
[null,"Central",{"$f":"1-EXP(-C29*C$32)","v":8.7961291355365123E-4},"Proportion","Eq."]
[null,"Lower",{"$f":"1-EXP(-C30*C$32)","v":1.9998000133325533E-4},null,"Eq."]
[null,"Upper",{"$f":"1-EXP(-C31*C$32)","v":1.5987206823936395E-3},null,"Eq."]
["Absorbed Dermal Dose","DermAbs","Amnt × Prop"]
[null,"Central",{"$f":"C25*C34","v":0},"mg","Eq."]
[null,"Lower",{"$f":"C26*C35","v":0},"mg","Eq."]
[null,"Upper",{"$f":"C27*C36","v":0},"mg","Eq."]
["Inhalation Exposure Rate: ","InhExpRate"]
[null,"Central ",3.5,"mg/lb handled","Scenario parameter"]
[null,"Lower ",1.75,null,"Scenario parameter"]
[null,"Upper ",17.5,null,"Scenario parameter"]
["PPE Factor for Inhalation Exposure: ","InhPPE"]
[null,"Central ",0,"Proportion"]
[null,"Upper ",0]
[null,"Lower ",0]
["Inhalation Absorption Rate: ","InhRate",1,"Proportion"]
["Absorbed Inhalation Dose","InhAbs","Amnt × InhExpRate × (1-InhPPE)"]
[null,"Central",{"$f":"C13*C42*C$49","v":0.91875000000000007},"mg","Eq."]
[null,"Lower",{"$f":"C14*C43*C$49","v":0.18375},null,"Eq."]
[null,"Upper",{"$f":"C15*C44*C$49","v":9.1875},null,"Eq."]
["Total Absorbed dose","Dose","(DermAbs + InhAbs) ÷ BW"]
[null,"Central ",{"$f":"(C38+C51)/$C$6","v":1.3125000000000001E-2},"mg/kg bw/day","Eq"]
[null,"Lower ",{"$f":"(C39+C52)/$C$6","v":2.6250000000000002E-3},null,"Eq"]
[null,"Upper ",0.13125000000000001,null,"Eq"]

{"sheet":"C01d_Ch","index":23,"n_rows":57,"n_cols":5,"rows_kept":57,"cut":false,"hidden":false,"merged":[[53,0,56,0],[15,0,18,0],[16,3,18,3],[19,0,22,0],[23,0,26,0],[24,3,26,3],[27,0,30,0],[32,0,35,0],[36,0,39,0],[40,0,43,0],[44,0,47,0],[49,0,52,0],[11,0,14,0],[0,0,0,4],[1,1,1,3],[2,1,2,3],[3,1,3,3],[7,0,10,0]]}
["Exposure estimates based on Pesticide Handlers Exposure Database (PHED) Method"]
["Short Title","Dry Stump Application, HED",null,null,"WkPHEDAlt01"]
["Receptor","Worker"]
["Duration","Chronic",null,null,"Scenario parameter"]
["Parameter/Assumption","Code / Range","Equation/ Value","Units","Reference/Equation"]
["Body Weight","BW",{"$f":"A02a!$C$39","v":70},null,"ICRP 1975"]
["Stump Application Rate","StumpApRt",{"$f":"'A01'!C$4","v":5.2499999999999997E-4},"lb/ft2","Worksheet A01"]
["Stump Surface Treated per Day","StumpFt"]
[null,"Central ",{"$f":"'A01'!C$24","v":500},"ft2/day","Worksheet A01"]
[null,"Lower ",{"$f":"'A01'!C$25","v":200},null,"Worksheet A01"]
[null,"Upper ",{"$f":"'A01'!C$26","v":1000},null,"Worksheet A01"]
["Amount a.i. handled per day: ","Amnt","StumpApRt × StumpFt"]
[null,"Central ",{"$f":"$C$7*C9","v":0.26250000000000001},"lb a.i.","Eq."]
[null,"Lower ",{"$f":"$C$7*C10","v":0.105},null,"Eq."]
[null,"Upper ",{"$f":"$C$7*C11","v":0.52500000000000002},null,"Eq."]
["Dermal Exposure Rate: ","DermRate"]
[null,"Central ",0,"mg per lb handled","Scenario parameter"]
[null,"Lower ",0,null,"Scenario parameter"]
[null,"Upper ",0,null,"Scenario parameter"]
["PPE Factor for Dermal Exposure: ","DermPPE"]
[null,"Central ",0,"Proportion"]
[null,"Upper ",0]
[null,"Lower ",0]
["Amount Deposited on Skin","DermAmnt","Amnt × DermRate × (1-DermPPE)"]
[null,"Central",{"$f":"C13*C17*(1-C21)","v":0},"mg/day","Eq."]
[null,"Lower",{"$f":"C14*C18*(1-C22)","v":0},null,"Eq."]
[null,"Upper",{"$f":"C15*C19*(1-C23)","v":0},null,"Eq."]
["First-order dermal absorption rates ","ka"]
[null,"Central",{"$f":"'B01'!$C$11","v":8.7999999999999998E-5},"hour-1","Section 3.2.2.2"]
[null,"Lower",{"$f":"'B01'!$C$12","v":2.0000000000000002E-5},null,"Section 3.2.2.2"]
[null,"Upper",{"$f":"'B01'!$C$13","v":1.6000000000000001E-4},null,"Section 3.2.2.2"]
["Period of exposure","T",10,"hours","Scenario parameter"]
["Proportion absorbed by skin over period T","Prop","1-exp(-ka T)"]
[null,"Central",{"$f":"1-EXP(-C29*C$32)","v":8.7961291355365123E-4},"Proportion","Eq."]
[null,"Lower",{"$f":"1-EXP(-C30*C$32)","v":1.9998000133325533E-4},null,"Eq."]
[null,"Upper",{"$f":"1-EXP(-C31*C$32)","v":1.5987206823936395E-3},null,"Eq."]
["Absorbed Dermal Dose","DermAbs","Amnt × Prop"]
[null,"Central",{"$f":"C25*C34","v":0},"mg","Eq."]
[null,"Lower",{"$f":"C26*C35","v":0},"mg","Eq."]
[null,"Upper",{"$f":"C27*C36","v":0},"mg","Eq."]
["Inhalation Exposure Rate: ","InhExpRate"]
[null,"Central ",3.5,"mg/lb handled","Scenario parameter"]
[null,"Lower ",1.75,null,"Scenario parameter"]
[null,"Upper ",17.5,null,"Scenario parameter"]
["PPE Factor for Inhalation Exposure: ","InhPPE"]
[null,"Central ",0,"Proportion"]
[null,"Upper ",0]
[null,"Lower ",0]
["Inhalation Absorption Rate: ","InhRate",1,"Proportion"]
["Absorbed Inhalation Dose","InhAbs","Amnt × InhExpRate × (1-InhPPE)"]
[null,"Central",{"$f":"C13*C42*C$49","v":0.91875000000000007},"mg","Eq."]
[null,"Lower",{"$f":"C14*C43*C$49","v":0.18375},null,"Eq."]
[null,"Upper",{"$f":"C15*C44*C$49","v":9.1875},null,"Eq."]
["Total Absorbed dose","Dose","(DermAbs + InhAbs) ÷ BW"]
[null,"Central ",{"$f":"(C38+C51)/$C$6","v":1.3125000000000001E-2},"mg/kg bw/day","Eq"]
[null,"Lower ",{"$f":"(C39+C52)/$C$6","v":2.6250000000000002E-3},null,"Eq"]
[null,"Upper ",0.13125000000000001,null,"Eq"]

{"sheet":"C02aD","index":24,"n_rows":23,"n_cols":5,"rows_kept":23,"cut":false,"hidden":false,"merged":[[11,0,14,0],[15,0,18,0],[19,0,22,0],[0,0,0,4],[1,1,1,3],[2,1,2,3],[3,1,3,3],[4,1,4,3],[7,0,8,0]]}
["Dermal Exposure Assessment for a Granular Exposure Using Zero-Order Absorption, Worker, Surface Area, Hands, for 1 minute(s)"]
["Short Title","Contaminated Gloves, 1 minute, Dry Ap.",null,null,"DrmZrGran"]
["Receptor","Worker"]
["Duration","Acute"]
["Surface Contaminated","Surface Area, Hands"]
["Parameter/Assumption","Code / Range","Equation/   Value","Units","Reference/Designation"]
["Surface Area","SA",{"$f":"A02a!$C$40","v":840},"cm2","U.S. EPA/ORD 1992"]
["Duration of Exposure","T_min",1,"minutes","Scenario parameter"]
[null,"T_hr",{"$f":"C8/60","v":1.6666666666666666E-2},"hours","Eq"]
["Body weight","BW",{"$f":"A02a!$C$39","v":70},"kg","ICRP 1975"]
["Water Solubility (mg/mL)","WS",{"$f":"'B01'!$C$10/1000","v":54.3},"mg/mL","Table 12"]
["Toxic Equivalency Factor for formulation:  (See risk assessment if this has a value other than 1.)","TEF"]
[null,"Central ",{"$f":"'A01'!C$42","v":1},"Unitless","Worksheet A01"]
[null,"Lower ",{"$f":"'A01'!C$43","v":1},null,"Worksheet A01"]
[null,"Upper ",{"$f":"'A01'!C$44","v":1},null,"Worksheet A01"]
["Dermal permeability","Kp"]
[null,"Central ",{"$f":"'B01'!$C$14","v":1.8E-7},"cm/hour","Section 3.2.2.2"]
[null,"Lower ",{"$f":"'B01'!$C$15","v":4.1000000000000003E-8},null,"Section 3.2.2.2"]
[null,"Upper ",{"$f":"'B01'!$C$16","v":3.2000000000000001E-7},null,"Section 3.2.2.2"]
["Absorbed Dose","Dose","Kp × WS × T_hr × SA x TEF ÷ BW"]
[null,"Central ",{"$f":"C17*C$11*C$9*C$7*C13/C$10","v":1.9548000000000003E-6},"mg/kg","Eq"]
[null,"Lower ",{"$f":"C18*C$11*C$9*C$7*C14/C$10","v":4.4525999999999995E-7},"mg/kg","Eq"]
[null,"Upper ",{"$f":"C19*C$11*C$9*C$7*C15/C$10","v":3.4752000000000002E-6},"mg/kg","Eq"]

{"sheet":"C02aW","index":25,"n_rows":26,"n_cols":5,"rows_kept":26,"cut":false,"hidden":false,"merged":[[10,0,13,0],[14,0,17,0],[18,0,21,0],[22,0,25,0],[0,0,0,4],[1,1,1,3],[2,1,2,3],[3,1,3,3],[4,1,4,3],[7,0,8,0]]}
["Accidental Dermal Exposure Assessment Using Zero-Order Absorption, Worker, Surface Area, Hands, for 1 minute(s)"]
["Short Title","Contaminated Gloves, 1 minute, Wet Ap.",null,null,"DrmZr"]
["Receptor","Worker"]
["Duration","Acute"]
["Surface Contaminated","Surface Area, Hands"]
["Parameter/Assumption","Code / Range","Equation/   Value","Units","Reference/Designation"]
["Surface Area","SA",{"$f":"A02a!$C$40","v":840},"cm2","U.S. EPA/ORD 1992"]
["Duration of Exposure","T_min",1,"minutes","Scenario parameter"]
[null,"T_hr",{"$f":"C8/60","v":1.6666666666666666E-2},"hours","Eq"]
["Body weight","BW",{"$f":"A02a!$C$39","v":70},"kg","ICRP 1975"]
["Concentration in solution (mg/mL)","Conc"]
[null,"Central ",{"$f":"'A01'!FldConc_C","v":13},"mg/mL","Worksheet A01"]
[null,"Lower ",{"$f":"'A01'!FldConc_L","v":13},null,"Worksheet A01"]
[null,"Upper ",{"$f":"'A01'!FldConc_U","v":13},null,"Worksheet A01"]
["Toxic Equivalency Factor for formulation:  (See risk assessment if this has a value other than 1.)","TEF"]
[null,"Central ",{"$f":"'A01'!C$42","v":1},"Unitless","Worksheet A01"]
[null,"Lower ",{"$f":"'A01'!C$43","v":1},null,"Worksheet A01"]
[null,"Upper ",{"$f":"'A01'!C$44","v":1},null,"Worksheet A01"]
["Dermal permeability","Kp"]
[null,"Central ",{"$f":"'B01'!$C$14","v":1.8E-7},"cm/hour","Section 3.2.2.2"]
[null,"Lower ",{"$f":"'B01'!$C$15","v":4.1000000000000003E-8},null,"Section 3.2.2.2"]
[null,"Upper ",{"$f":"'B01'!$C$16","v":3.2000000000000001E-7},null,"Section 3.2.2.2"]
["Absorbed Dose","Dose","Kp × Conc × T_hr × SA x TEF ÷ BW"]
[null,"Central ",{"$f":"C20*C12*C$9*C$7*C16/C$10","v":4.6799999999999996E-7},"mg/kg","Eq"]
[null,"Lower ",{"$f":"C21*C13*C$9*C$7*C17/C$10","v":1.066E-7},"mg/kg","Eq"]
[null,"Upper ",{"$f":"C22*C14*C$9*C$7*C18/C$10","v":8.3199999999999993E-7},"mg/kg","Eq"]

{"sheet":"C02bD","index":26,"n_rows":23,"n_cols":5,"rows_kept":23,"cut":false,"hidden":false,"merged":[[11,0,14,0],[15,0,18,0],[19,0,22,0],[0,0,0,4],[1,1,1,3],[2,1,2,3],[3,1,3,3],[4,1,4,3],[7,0,8,0]]}
["Dermal Exposure Assessment for a Granular Exposure Using Zero-Order Absorption, Worker, Surface Area, Hands, for 60 minute(s)"]
["Short Title","Contaminated Gloves, 1 hour, Dry Ap.",null,null,"DrmZrGran"]
["Receptor","Worker"]
["Duration","Acute"]
["Surface Contaminated","Surface Area, Hands"]
["Parameter/Assumption","Code / Range","Equation/   Value","Units","Reference/Designation"]
["Surface Area","SA",{"$f":"A02a!$C$40","v":840},"cm2","U.S. EPA/ORD 1992"]
["Duration of Exposure","T_min",60,"minutes","Scenario parameter"]
[null,"T_hr",{"$f":"C8/60","v":1},"hours","Eq"]
["Body weight","BW",{"$f":"A02a!$C$39","v":70},"kg","ICRP 1975"]
["Water Solubility (mg/mL)","WS",{"$f":"'B01'!$C$10/1000","v":54.3},"mg/mL","Table 12"]
["Toxic Equivalency Factor for formulation:  (See risk assessment if this has a value other than 1.)","TEF"]
[null,"Central ",{"$f":"'A01'!C$42","v":1},"Unitless","Worksheet A01"]
[null,"Lower ",{"$f":"'A01'!C$43","v":1},null,"Worksheet A01"]
[null,"Upper ",{"$f":"'A01'!C$44","v":1},null,"Worksheet A01"]
["Dermal permeability","Kp"]
[null,"Central ",{"$f":"'B01'!$C$14","v":1.8E-7},"cm/hour","Section 3.2.2.2"]
[null,"Lower ",{"$f":"'B01'!$C$15","v":4.1000000000000003E-8},null,"Section 3.2.2.2"]
[null,"Upper ",{"$f":"'B01'!$C$16","v":3.2000000000000001E-7},null,"Section 3.2.2.2"]
["Absorbed Dose","Dose","Kp × WS × T_hr × SA x TEF ÷ BW"]
[null,"Central ",{"$f":"C17*C$11*C$9*C$7*C13/C$10","v":1.1728799999999999E-4},"mg/kg","Eq"]
[null,"Lower ",{"$f":"C18*C$11*C$9*C$7*C14/C$10","v":2.6715600000000002E-5},"mg/kg","Eq"]
[null,"Upper ",{"$f":"C19*C$11*C$9*C$7*C15/C$10","v":2.08512E-4},"mg/kg","Eq"]

{"sheet":"C02bW","index":27,"n_rows":26,"n_cols":5,"rows_kept":26,"cut":false,"hidden":false,"merged":[[10,0,13,0],[14,0,17,0],[18,0,21,0],[22,0,25,0],[0,0,0,4],[1,1,1,3],[2,1,2,3],[3,1,3,3],[4,1,4,3],[7,0,8,0]]}
["Accidental Dermal Exposure Assessment Using Zero-Order Absorption, Worker, Surface Area, Hands, for 60 minute(s)"]
["Short Title","Contaminated Gloves, 1 hour, Wet Ap.",null,null,"DrmZr"]
["Receptor","Worker"]
["Duration","Acute"]
["Surface Contaminated","Surface Area, Hands"]
["Parameter/Assumption","Code / Range","Equation/   Value","Units","Reference/Designation"]
["Surface Area","SA",{"$f":"A02a!$C$40","v":840},"cm2","U.S. EPA/ORD 1992"]
["Duration of Exposure","T_min",60,"minutes","Scenario parameter"]
[null,"T_hr",{"$f":"C8/60","v":1},"hours","Eq"]
["Body weight","BW",{"$f":"A02a!$C$39","v":70},"kg","ICRP 1975"]
["Concentration in solution (mg/mL)","Conc"]
[null,"Central ",{"$f":"'A01'!FldConc_C","v":13},"mg/mL","Worksheet A01"]
[null,"Lower ",{"$f":"'A01'!FldConc_L","v":13},null,"Worksheet A01"]
[null,"Upper ",{"$f":"'A01'!FldConc_U","v":13},null,"Worksheet A01"]
["Toxic Equivalency Factor for formulation:  (See risk assessment if this has a value other than 1.)","TEF"]
[null,"Central ",{"$f":"'A01'!C$42","v":1},"Unitless","Worksheet A01"]
[null,"Lower ",{"$f":"'A01'!C$43","v":1},null,"Worksheet A01"]
[null,"Upper ",{"$f":"'A01'!C$44","v":1},null,"Worksheet A01"]
["Dermal permeability","Kp"]
[null,"Central ",{"$f":"'B01'!$C$14","v":1.8E-7},"cm/hour","Section 3.2.2.2"]
[null,"Lower ",{"$f":"'B01'!$C$15","v":4.1000000000000003E-8},null,"Section 3.2.2.2"]
[null,"Upper ",{"$f":"'B01'!$C$16","v":3.2000000000000001E-7},null,"Section 3.2.2.2"]
["Absorbed Dose","Dose","Kp × Conc × T_hr × SA x TEF ÷ BW"]
[null,"Central ",{"$f":"C20*C12*C$9*C$7*C16/C$10","v":2.8080000000000002E-5},"mg/kg","Eq"]
[null,"Lower ",{"$f":"C21*C13*C$9*C$7*C17/C$10","v":6.3960000000000003E-6},"mg/kg","Eq"]
[null,"Upper ",{"$f":"C22*C14*C$9*C$7*C18/C$10","v":4.9919999999999996E-5},"mg/kg","Eq"]

{"sheet":"C03a","index":28,"n_rows":39,"n_cols":5,"rows_kept":39,"cut":false,"hidden":false,"merged":[[35,0,38,0],[15,0,18,0],[19,0,22,0],[23,0,26,0],[27,0,30,0],[28,3,30,3],[31,0,34,0],[0,0,0,4],[1,1,1,3],[2,1,2,3],[3,1,3,3],[4,1,4,3],[11,0,14,0]]}
["Accidental Dermal Exposure Assessment Using First-Order Absorption, Worker, Surface Area, Hands, for 60 minute(s)"]
["Short Title","Spill on hands, 1 hour",null,null,"DrmFOA"]
["Receptor","Worker"]
["Duration","Acute"]
["Surface Contaminated","Surface Area, Hands"]
["Parameter/Assumption","Code / Range","Equation/   Value","Units","Reference/Designation"]
["Surface Area","SA",{"$f":"A02a!$C$40","v":840},"cm2","U.S. EPA/ORD 1992"]
["Duration of Exposure",null,60,"minutes","Scenario parameter"]
[null,"T",{"$f":"C8/60","v":1},"hours","Eq"]
["Body weight","BW",{"$f":"A02a!$C$39","v":70},"kg","ICRP 1975"]
["Liquid adhering to skin","L",{"$f":"A02d!$C$11","v":8.0000000000000002E-3},"mL/cm2","Mason and Johnson 1987"]
["Concentration in solution","Conc"]
[null,"Central ",{"$f":"'A01'!FldConc_C","v":13},"mg/mL","Worksheet A01"]
[null,"Lower ",{"$f":"'A01'!FldConc_L","v":13},null,"Worksheet A01"]
[null,"Upper ",{"$f":"'A01'!FldConc_U","v":13},null,"Worksheet A01"]
["First-order dermal absorption rates ","ka"]
[null,"Central",{"$f":"'B01'!$C$11","v":8.7999999999999998E-5},"hour-1","Section 3.2.2.2"]
[null,"Lower",{"$f":"'B01'!$C$12","v":2.0000000000000002E-5},null,"Section 3.2.2.2"]
[null,"Upper",{"$f":"'B01'!$C$13","v":1.6000000000000001E-4},null,"Section 3.2.2.2"]
["Toxic Equivalency Factor for formulation:  (See risk assessment if this has a value other than 1.)","TEF"]
[null,"Central ",{"$f":"'A01'!C$42","v":1},"Unitless","Worksheet A01"]
[null,"Lower ",{"$f":"'A01'!C$43","v":1},null,"Worksheet A01"]
[null,"Upper ",{"$f":"'A01'!C$44","v":1},null,"Worksheet A01"]
["Amount Deposited on Skin","Amnt","L × SA × Conc x TEF"]
[null,"Central",{"$f":"$C$11*$C$7*C13*C21","v":87.36},"mg","Eq"]
[null,"Lower",{"$f":"$C$11*$C$7*C14*C22","v":87.36},null,"Eq"]
[null,"Upper",{"$f":"$C$11*$C$7*C15*C23","v":87.36},null,"Eq"]
["Skin Loading","Loading"]
[null,"Central",{"$f":"C25/C$7","v":0.104},"mg/cm2","Eq"]
[null,"Lower",{"$f":"C26/C$7","v":0.104},null,"Eq"]
[null,"Upper",{"$f":"C27/C$7","v":0.104},null,"Eq"]
["Proportion absorbed over period T","Prop","1-exp(-ka T)"]
[null,"Central",{"$f":"1-EXP(-C17 *$C$9)","v":8.7996128113609906E-5},"hour-1","Eq"]
[null,"Lower",{"$f":"1-EXP(-C18 *$C$9)","v":1.9999800001335721E-5},null,"Eq"]
[null,"Upper",{"$f":"1-EXP(-C19 *$C$9)","v":1.5998720068266525E-4},null,"Eq"]
["Absorbed Dose","Dose","Amnt × Prop ÷ BW"]
[null,"Central",{"$f":"C25*C33/$C$10","v":1.0981916788578516E-4},"mg/kg bw","Eq"]
[null,"Lower",{"$f":"C26*C34/$C$10","v":2.4959750401666979E-5},null,"Eq"]
[null,"Upper",{"$f":"C27*C35/$C$10","v":1.9966402645196622E-4},null,"Eq"]

{"sheet":"C03b","index":29,"n_rows":39,"n_cols":5,"rows_kept":39,"cut":false,"hidden":false,"merged":[[35,0,38,0],[15,0,18,0],[19,0,22,0],[23,0,26,0],[27,0,30,0],[28,3,30,3],[31,0,34,0],[0,0,0,4],[1,1,1,3],[2,1,2,3],[3,1,3,3],[4,1,4,3],[11,0,14,0]]}
["Accidental Dermal Exposure Assessment Using First-Order Absorption, Worker, Surface Area, Lower legs, for 60 minute(s)"]
["Short Title","Spill on lower legs, 1 hour",null,null,"DrmFOA"]
["Receptor","Worker"]
["Duration","Acute"]
["Surface Contaminated","Surface Area, Lower legs"]
["Parameter/Assumption","Code / Range","Equation/   Value","Units","Reference/Designation"]
["Surface Area","SA",{"$f":"A02a!$C$41","v":2070},"cm2","U.S. EPA/ORD 1992"]
["Duration of Exposure",null,60,"minutes","Scenario parameter"]
[null,"T",{"$f":"C8/60","v":1},"hours","Eq"]
["Body weight","BW",{"$f":"A02a!$C$39","v":70},"kg","ICRP 1975"]
["Liquid adhering to skin","L",{"$f":"A02d!$C$11","v":8.0000000000000002E-3},"mL/cm2","Mason and Johnson 1987"]
["Concentration in solution","Conc"]
[null,"Central ",{"$f":"'A01'!FldConc_C","v":13},"mg/mL","Worksheet A01"]
[null,"Lower ",{"$f":"'A01'!FldConc_L","v":13},null,"Worksheet A01"]
[null,"Upper ",{"$f":"'A01'!FldConc_U","v":13},null,"Worksheet A01"]
["First-order dermal absorption rates ","ka"]
[null,"Central",{"$f":"'B01'!$C$11","v":8.7999999999999998E-5},"hour-1","Section 3.2.2.2"]
[null,"Lower",{"$f":"'B01'!$C$12","v":2.0000000000000002E-5},null,"Section 3.2.2.2"]
[null,"Upper",{"$f":"'B01'!$C$13","v":1.6000000000000001E-4},null,"Section 3.2.2.2"]
["Toxic Equivalency Factor for formulation:  (See risk assessment if this has a value other than 1.)","TEF"]
[null,"Central ",{"$f":"'A01'!C$42","v":1},"Unitless","Worksheet A01"]
[null,"Lower ",{"$f":"'A01'!C$43","v":1},null,"Worksheet A01"]
[null,"Upper ",{"$f":"'A01'!C$44","v":1},null,"Worksheet A01"]
["Amount Deposited on Skin","Amnt","L × SA × Conc x TEF"]
[null,"Central",{"$f":"$C$11*$C$7*C13*C21","v":215.27999999999997},"mg","Eq"]
[null,"Lower",{"$f":"$C$11*$C$7*C14*C22","v":215.27999999999997},null,"Eq"]
[null,"Upper",{"$f":"$C$11*$C$7*C15*C23","v":215.27999999999997},null,"Eq"]
["Skin Loading","Loading"]
[null,"Central",{"$f":"C25/C$7","v":0.10399999999999998},"mg/cm2","Eq"]
[null,"Lower",{"$f":"C26/C$7","v":0.10399999999999998},null,"Eq"]
[null,"Upper",{"$f":"C27/C$7","v":0.10399999999999998},null,"Eq"]
["Proportion absorbed over period T","Prop","1-exp(-ka T)"]
[null,"Central",{"$f":"1-EXP(-C17 *$C$9)","v":8.7996128113609906E-5},"hour-1","Eq"]
[null,"Lower",{"$f":"1-EXP(-C18 *$C$9)","v":1.9999800001335721E-5},null,"Eq"]
[null,"Upper",{"$f":"1-EXP(-C19 *$C$9)","v":1.5998720068266525E-4},null,"Eq"]
["Absorbed Dose","Dose","Amnt × Prop ÷ BW"]
[null,"Central",{"$f":"C25*C33/$C$10","v":2.7062580657568485E-4},"mg/kg bw","Eq"]
[null,"Lower",{"$f":"C26*C34/$C$10","v":6.1507956346965059E-5},null,"Eq"]
[null,"Upper",{"$f":"C27*C35/$C$10","v":4.9202920804234534E-4},null,"Eq"]

{"sheet":"D01a","index":30,"n_rows":39,"n_cols":5,"rows_kept":39,"cut":false,"hidden":false,"merged":[[35,0,38,0],[15,0,18,0],[19,0,22,0],[23,0,26,0],[27,0,30,0],[28,3,30,3],[31,0,34,0],[0,0,0,4],[1,1,1,3],[2,1,2,3],[3,1,3,3],[4,1,4,3],[11,0,14,0]]}
["Accidental Dermal Exposure Assessment Using First-Order Absorption, Child, Surface Area, Whole body, for 60 minute(s)"]
["Short Title","Child direct spray, 1 hour",null,null,"DrmFOA"]
["Receptor","Child"]
["Duration","Acute"]
["Surface Contaminated","Surface Area, Whole body"]
["Parameter/Assumption","Code / Range","Equation/   Value","Units","Reference/Designation"]
["Surface Area","SA",{"$f":"A02a!$C$29","v":6030},"cm2","U.S. EPA/ORD 1996"]
["Duration of Exposure",null,60,"minutes","Scenario parameter"]
[null,"T",{"$f":"C8/60","v":1},"hours","Eq"]
["Body weight","BW",{"$f":"A02a!$C$28","v":13.3},"kg","U.S. EPA/ORD 1996"]
["Liquid adhering to skin","L",{"$f":"A02d!$C$11","v":8.0000000000000002E-3},"mL/cm2","Mason and Johnson 1987"]
["Concentration in solution","Conc"]
[null,"Central ",{"$f":"'A01'!FldConc_C","v":13},"mg/mL","Worksheet A01"]
[null,"Lower ",{"$f":"'A01'!FldConc_L","v":13},null,"Worksheet A01"]
[null,"Upper ",{"$f":"'A01'!FldConc_U","v":13},null,"Worksheet A01"]
["First-order dermal absorption rates ","ka"]
[null,"Central",{"$f":"'B01'!$C$11","v":8.7999999999999998E-5},"hour-1","Section 3.2.2.2"]
[null,"Lower",{"$f":"'B01'!$C$12","v":2.0000000000000002E-5},null,"Section 3.2.2.2"]
[null,"Upper",{"$f":"'B01'!$C$13","v":1.6000000000000001E-4},null,"Section 3.2.2.2"]
["Toxic Equivalency Factor for formulation:  (See risk assessment if this has a value other than 1.)","TEF"]
[null,"Central ",{"$f":"'A01'!C$42","v":1},"Unitless","Worksheet A01"]
[null,"Lower ",{"$f":"'A01'!C$43","v":1},null,"Worksheet A01"]
[null,"Upper ",{"$f":"'A01'!C$44","v":1},null,"Worksheet A01"]
["Amount Deposited on Skin","Amnt","L × SA × Conc x TEF"]
[null,"Central",{"$f":"$C$11*$C$7*C13*C21","v":627.12},"mg","Eq"]
[null,"Lower",{"$f":"$C$11*$C$7*C14*C22","v":627.12},null,"Eq"]
[null,"Upper",{"$f":"$C$11*$C$7*C15*C23","v":627.12},null,"Eq"]
["Skin Loading","Loading"]
[null,"Central",{"$f":"C25/C$7","v":0.104},"mg/cm2","Eq"]
[null,"Lower",{"$f":"C26/C$7","v":0.104},null,"Eq"]
[null,"Upper",{"$f":"C27/C$7","v":0.104},null,"Eq"]
["Proportion absorbed over period T","Prop","1-exp(-ka T)"]
[null,"Central",{"$f":"1-EXP(-C17 *$C$9)","v":8.7996128113609906E-5},"hour-1","Eq"]
[null,"Lower",{"$f":"1-EXP(-C18 *$C$9)","v":1.9999800001335721E-5},null,"Eq"]
[null,"Upper",{"$f":"1-EXP(-C19 *$C$9)","v":1.5998720068266525E-4},null,"Eq"]
["Absorbed Dose","Dose","Amnt × Prop ÷ BW"]
[null,"Central",{"$f":"C25*C33/$C$10","v":4.1491828468125597E-3},"mg/kg bw","Eq"]
[null,"Lower",{"$f":"C26*C34/$C$10","v":9.4302816367200439E-4},null,"Eq"]
[null,"Upper",{"$f":"C27*C35/$C$10","v":7.5436972400084986E-3},null,"Eq"]

{"sheet":"D01b","index":31,"n_rows":39,"n_cols":5,"rows_kept":39,"cut":false,"hidden":false,"merged":[[35,0,38,0],[15,0,18,0],[19,0,22,0],[23,0,26,0],[27,0,30,0],[28,3,30,3],[31,0,34,0],[0,0,0,4],[1,1,1,3],[2,1,2,3],[3,1,3,3],[4,1,4,3],[11,0,14,0]]}
["Accidental Dermal Exposure Assessment Using First-Order Absorption, Adult Female, Surface Area, Feet and lower Legs, for 60 minute(s)"]
["Short Title","Adult female, lower legs, 1 hour",null,null,"DrmFOA"]
["Receptor","Adult Female"]
["Duration","Acute"]
["Surface Contaminated","Surface Area, Feet and lower Legs"]
["Parameter/Assumption","Code / Range","Equation/   Value","Units","Reference/Designation"]
["Surface Area","SA",{"$f":"A02a!$C$5","v":2915},"cm2","U.S. EPA/ORD 1992"]
["Duration of Exposure",null,60,"minutes","Scenario parameter"]
[null,"T",{"$f":"C8/60","v":1},"hours","Eq"]
["Body weight","BW",{"$f":"A02a!$C$4","v":64},"kg","U.S. EPA/ORD 1985"]
["Liquid adhering to skin","L",{"$f":"A02d!$C$11","v":8.0000000000000002E-3},"mL/cm2","Mason and Johnson 1987"]
["Concentration in solution","Conc"]
[null,"Central ",{"$f":"'A01'!FldConc_C","v":13},"mg/mL","Worksheet A01"]
[null,"Lower ",{"$f":"'A01'!FldConc_L","v":13},null,"Worksheet A01"]
[null,"Upper ",{"$f":"'A01'!FldConc_U","v":13},null,"Worksheet A01"]
["First-order dermal absorption rates ","ka"]
[null,"Central",{"$f":"'B01'!$C$11","v":8.7999999999999998E-5},"hour-1","Section 3.2.2.2"]
[null,"Lower",{"$f":"'B01'!$C$12","v":2.0000000000000002E-5},null,"Section 3.2.2.2"]
[null,"Upper",{"$f":"'B01'!$C$13","v":1.6000000000000001E-4},null,"Section 3.2.2.2"]
["Toxic Equivalency Factor for formulation:  (See risk assessment if this has a value other than 1.)","TEF"]
[null,"Central ",{"$f":"'A01'!C$42","v":1},"Unitless","Worksheet A01"]
[null,"Lower ",{"$f":"'A01'!C$43","v":1},null,"Worksheet A01"]
[null,"Upper ",{"$f":"'A01'!C$44","v":1},null,"Worksheet A01"]
["Amount Deposited on Skin","Amnt","L × SA × Conc x TEF"]
[null,"Central",{"$f":"$C$11*$C$7*C13*C21","v":303.16000000000003},"mg","Eq"]
[null,"Lower",{"$f":"$C$11*$C$7*C14*C22","v":303.16000000000003},null,"Eq"]
[null,"Upper",{"$f":"$C$11*$C$7*C15*C23","v":303.16000000000003},null,"Eq"]
["Skin Loading","Loading"]
[null,"Central",{"$f":"C25/C$7","v":0.10400000000000001},"mg/cm2","Eq"]
[null,"Lower",{"$f":"C26/C$7","v":0.10400000000000001},null,"Eq"]
[null,"Upper",{"$f":"C27/C$7","v":0.10400000000000001},null,"Eq"]
["Proportion absorbed over period T","Prop","1-exp(-ka T)"]
[null,"Central",{"$f":"1-EXP(-C17 *$C$9)","v":8.7996128113609906E-5},"hour-1","Eq"]
[null,"Lower",{"$f":"1-EXP(-C18 *$C$9)","v":1.9999800001335721E-5},null,"Eq"]
[null,"Upper",{"$f":"1-EXP(-C19 *$C$9)","v":1.5998720068266525E-4},null,"Eq"]
["Absorbed Dose","Dose","Amnt × Prop ÷ BW"]
[null,"Central",{"$f":"C25*C33/$C$10","v":4.1682665935815593E-4},"mg/kg bw","Eq"]
[null,"Lower",{"$f":"C26*C34/$C$10","v":9.4736552631327156E-5},null,"Eq"]
[null,"Upper",{"$f":"C27*C35/$C$10","v":7.5783937123369998E-4},null,"Eq"]

{"sheet":"D01c","index":32,"n_rows":19,"n_cols":5,"rows_kept":19,"cut":false,"hidden":false,"merged":[[15,0,18,0],[0,0,0,4],[2,1,2,3],[4,1,4,3],[7,0,10,0],[8,3,10,3],[11,0,14,0]]}
["Consumption of Fixed Amount of Compound by a Child, acute exposure"]
["Short Title","Direct Consumption",null,null,"DirConFixed"]
["Receptor","Child"]
["Duration","Acute"]
["Material consumed","Boxax as boron equivalents"]
["Parameter/Assumption","Code / Range","Equation/   Value","Units","Reference/Designation"]
["Body Weight","BW",11,"kg","Scenario parameter"]
["Amount of boronl consumed","Amnt"]
[null,"Central ",14,"mg B","Scenario parameter"]
[null,"Lower ",5.6,null,"Scenario parameter"]
[null,"Upper ",34,null,"Scenario parameter"]
["Toxic Equivalency Factor for formulation:  (See risk assessment if this has a value other than 1.)","TEF"]
[null,"Central ",{"$f":"'A01'!C$42","v":1},"Unitless","Worksheet A01"]
[null,"Lower ",{"$f":"'A01'!C$43","v":1},null,"Worksheet A01"]
[null,"Upper ",{"$f":"'A01'!C$44","v":1},null,"Worksheet A01"]
["Dose","Dose","Conc × Amnt ×TEF"]
[null,"Central",{"$f":"C9*C13/C$7","v":1.2727272727272727},"mg/kg bw","Eq"]
[null,"Lower",{"$f":"C10*C14/C$7","v":0.50909090909090904},null,"Eq"]
[null,"Upper",{"$f":"C11*C15/C$7","v":3.0909090909090908},null,"Eq"]

{"sheet":"D05","index":33,"n_rows":19,"n_cols":5,"rows_kept":19,"cut":false,"hidden":false,"merged":[[15,0,18,0],[0,0,0,4],[1,1,1,3],[2,1,2,3],[5,0,8,0],[10,0,13,0]]}
["Consumption of contaminated water by Child, Accidental Spill "]
["Short Title","Accidental Spill",null,null,"WatAmntV6"]
["Receptor","Child"]
["Duration","Acute",null,null,"Scenario parameter"]
["Parameter/Assumption","Code / Range","Equation/   Value","Units","Reference/Designation"]
["Concentration in water","ConcWat"]
[null,"Central ",{"$f":"B04b!Acute_C","v":0.23813999999999999},"mg/L","='B04b'!Acute_C"]
[null,"Lower ",{"$f":"B04b!Acute_L","v":4.7627999999999997E-2},null,"='B04b'!Acute_L"]
[null,"Upper ",{"$f":"B04b!Acute_U","v":0.47627999999999998},null,"='B04b'!Acute_U"]
["Receptor"]
["Amount of water consumed in one day","Amnt"]
[null,"Central ",{"$f":"'A03'!$E$44","v":1},"liters/day","U.S. EPA/ORD 1996"]
[null,"Lower ",{"$f":"'A03'!$E$45","v":0.61},null,"U.S. EPA/ORD 1996"]
[null,"Upper ",{"$f":"'A03'!$E$46","v":1.5},null,"U.S. EPA/ORD 1996"]
["Body weight","BW",{"$f":"A02a!$C$28","v":13.3},"kg","U.S. EPA/ORD 1996"]
["Dose","Dose","ConcWat  × Amnt ÷ BW"]
[null,"Central ",{"$f":"C7*C12/C$15","v":1.7905263157894737E-2},"mg/kg","Eq"]
[null,"Lower ",{"$f":"C8*C13/C$15","v":2.1844421052631575E-3},"mg/kg","Eq"]
[null,"Upper ",{"$f":"C9*C14/C$15","v":5.3715789473684203E-2},"mg/kg","Eq"]

{"sheet":"D06","index":34,"n_rows":19,"n_cols":5,"rows_kept":19,"cut":false,"hidden":false,"merged":[[15,0,18,0],[0,0,0,4],[1,1,1,3],[2,1,2,3],[5,0,8,0],[10,0,13,0]]}
["Consumption of contaminated water by Child, Peak Conentrations "]
["Short Title","Peak Conentrations",null,null,"WatAmntV6"]
["Receptor","Child"]
["Duration","Acute",null,null,"Scenario parameter"]
["Parameter/Assumption","Code / Range","Equation/   Value","Units","Reference/Designation"]
["Concentration in water","ConcWat"]
[null,"Central ",{"$f":"B04a!Acute_C","v":4.3049999999999998E-3},"mg/L","='B04a'!Acute_C"]
[null,"Lower ",{"$f":"B04a!Acute_L","v":1.26E-10},null,"='B04a'!Acute_L"]
[null,"Upper ",{"$f":"B04a!Acute_U","v":4.5149999999999996E-2},null,"='B04a'!Acute_U"]
["Receptor"]
["Amount of water consumed in one day","Amnt"]
[null,"Central ",{"$f":"'A03'!$E$44","v":1},"liters/day","U.S. EPA/ORD 1996"]
[null,"Lower ",{"$f":"'A03'!$E$45","v":0.61},null,"U.S. EPA/ORD 1996"]
[null,"Upper ",{"$f":"'A03'!$E$46","v":1.5},null,"U.S. EPA/ORD 1996"]
["Body weight","BW",{"$f":"A02a!$C$28","v":13.3},"kg","U.S. EPA/ORD 1996"]
["Dose","Dose","ConcWat  × Amnt ÷ BW"]
[null,"Central ",{"$f":"C7*C12/C$15","v":3.2368421052631575E-4},"mg/kg","Eq"]
[null,"Lower ",{"$f":"C8*C13/C$15","v":5.7789473684210528E-12},"mg/kg","Eq"]
[null,"Upper ",{"$f":"C9*C14/C$15","v":5.0921052631578943E-3},"mg/kg","Eq"]

{"sheet":"D07","index":35,"n_rows":19,"n_cols":5,"rows_kept":19,"cut":false,"hidden":false,"merged":[[15,0,18,0],[0,0,0,4],[1,1,1,3],[2,1,2,3],[5,0,8,0],[10,0,13,0]]}
["Consumption of contaminated water by Adult Male, Longer-term Conentrations "]
["Short Title","Longer-term Conentrations",null,null,"WatAmntV6"]
["Receptor","Adult Male"]
["Duration","Chronic",null,null,"Scenario parameter"]
["Parameter/Assumption","Code / Range","Equation/   Value","Units","Reference/Designation"]
["Concentration in water","ConcWat"]
[null,"Central ",{"$f":"B04a!Chronic_C","v":1.8899999999999998E-3},"mg/L","='B04a'!Chronic_C"]
[null,"Lower ",{"$f":"B04a!Chronic_L","v":6.3000000000000002E-11},null,"='B04a'!Chronic_L"]
[null,"Upper ",{"$f":"B04a!Chronic_U","v":2.4150000000000001E-2},null,"='B04a'!Chronic_U"]
["Receptor"]
["Amount of water consumed in one day","Amnt"]
[null,"Central ",{"$f":"'A03'!$E$31","v":2},"liters/day","U.S. EPA/ORD 1996"]
[null,"Lower ",{"$f":"'A03'!$E$32","v":1.4},null,"U.S. EPA/ORD 1996"]
[null,"Upper ",{"$f":"'A03'!$E$33","v":2.4},null,"U.S. EPA/ORD 1996"]
["Body weight","BW",{"$f":"A02a!$C$8","v":70},"kg","ICRP 1975"]
["Dose","Dose","ConcWat  × Amnt ÷ BW"]
[null,"Central ",{"$f":"C7*C12/C$15","v":5.3999999999999991E-5},"mg/kg","Eq"]
[null,"Lower ",{"$f":"C8*C13/C$15","v":1.2600000000000001E-12},"mg/kg","Eq"]
[null,"Upper ",{"$f":"C9*C14/C$15","v":8.2799999999999996E-4},"mg/kg","Eq"]

{"sheet":"D08a","index":36,"n_rows":34,"n_cols":5,"rows_kept":34,"cut":false,"hidden":false,"merged":[[15,0,18,0],[20,0,23,0],[24,0,27,0],[29,0,32,0],[0,0,0,4],[1,1,1,3],[2,1,2,3],[3,1,3,3],[6,0,9,0],[12,0,14,0]]}
["Consumption of Contaminated Fish (Accidental Spill), Adult Male, acute exposure"]
["Short Title","Fish consumption",null,null,"FishAmntV6"]
["Receptor","Adult Male"]
["Duration","acute"]
["Parameter/Assumption","Code / Range","Equation/   Value","Units","Reference/Designation"]
["Water"]
["Concentration in water","ConcWat","ApR × WCR"]
[null,"Central ",{"$f":"B04b!Acute_C","v":0.23813999999999999},"mg/L","='B04b'!Acute_C"]
[null,"Lower ",{"$f":"B04b!Acute_L","v":4.7627999999999997E-2},null,"='B04b'!Acute_L"]
[null,"Upper ",{"$f":"B04b!Acute_U","v":0.47627999999999998},null,"='B04b'!Acute_U"]
["Fish"]
["Bioconcentration factor","BCF"]
[null,"Central ",{"$f":"'B01'!$C$4","v":1},"L/kg","Section 3.2.3.5"]
[null,"Lower ",{"$f":"'B01'!$C$4","v":1},null,"Section 3.2.3.5"]
[null,"Upper ",{"$f":"'B01'!$C$4","v":1},null,"Section 3.2.3.5"]
["Concentration in fish","ConcFish","ConcWat × BCF"]
[null,"Central ",{"$f":"C8*C13","v":0.23813999999999999},"mg/kg","Eq"]
[null,"Lower ",{"$f":"C9*C14","v":4.7627999999999997E-2},null,"Eq"]
[null,"Upper ",{"$f":"C10*C15","v":0.47627999999999998},null,"Eq"]
["Receptor"]
["Amount of fish consumed","Amnt"]
[null,"Central ",{"$f":"'A03'!$E$20","v":0.158},"kg/day","Ruffle et al. 1994"]
[null,"Lower ",{"$f":"'A03'!$E$20","v":0.158},null,"Ruffle et al. 1994"]
[null,"Upper ",{"$f":"'A03'!$E$20","v":0.158},null,"Ruffle et al. 1994"]
["Toxic Equivalency Factor for formulation:  (See risk assessment if this has a value other than 1.)","TEF"]
[null,"Central ",{"$f":"'A01'!C$42","v":1},"Unitless","Worksheet A01"]
[null,"Lower ",{"$f":"'A01'!C$43","v":1},null,"Worksheet A01"]
[null,"Upper ",{"$f":"'A01'!C$44","v":1},null,"Worksheet A01"]
["Body weight","BW",{"$f":"A02a!$C$8","v":70},"kg","ICRP 1975"]
["Dose","Dose","ConcFish× Amnt x TEF ÷ BW"]
[null,"Central ",{"$f":"C17*C22*C26/C$29","v":5.3751600000000004E-4},"mg/kg","Eq"]
[null,"Lower ",{"$f":"C18*C23*C27/C$29","v":1.0750319999999999E-4},"mg/kg","Eq"]
[null,"Upper ",{"$f":"C19*C24*C28/C$29","v":1.0750320000000001E-3},"mg/kg","Eq"]
[null,null,null,null,"FishAmntV6"]

{"sheet":"D08b","index":37,"n_rows":34,"n_cols":5,"rows_kept":34,"cut":false,"hidden":false,"merged":[[15,0,18,0],[20,0,23,0],[24,0,27,0],[29,0,32,0],[0,0,0,4],[1,1,1,3],[2,1,2,3],[3,1,3,3],[6,0,9,0],[12,0,14,0]]}
["Consumption of Contaminated Fish (Accidental Spill), Subsistence Populations, acute exposure"]
["Short Title","Fish consumption",null,null,"FishAmntV6"]
["Receptor","Subsistence Populations"]
["Duration","acute"]
["Parameter/Assumption","Code / Range","Equation/   Value","Units","Reference/Designation"]
["Water"]
["Concentration in water","ConcWat","ApR × WCR"]
[null,"Central ",{"$f":"B04b!Acute_C","v":0.23813999999999999},"mg/L","='B04b'!Acute_C"]
[null,"Lower ",{"$f":"B04b!Acute_L","v":4.7627999999999997E-2},null,"='B04b'!Acute_L"]
[null,"Upper ",{"$f":"B04b!Acute_U","v":0.47627999999999998},null,"='B04b'!Acute_U"]
["Fish"]
["Bioconcentration factor","BCF"]
[null,"Central ",{"$f":"'B01'!$C$4","v":1},"L/kg","Section 3.2.3.5"]
[null,"Lower ",{"$f":"'B01'!$C$4","v":1},null,"Section 3.2.3.5"]
[null,"Upper ",{"$f":"'B01'!$C$4","v":1},null,"Section 3.2.3.5"]
["Concentration in fish","ConcFish","ConcWat × BCF"]
[null,"Central ",{"$f":"C8*C13","v":0.23813999999999999},"mg/kg","Eq"]
[null,"Lower ",{"$f":"C9*C14","v":4.7627999999999997E-2},null,"Eq"]
[null,"Upper ",{"$f":"C10*C15","v":0.47627999999999998},null,"Eq"]
["Receptor"]
["Amount of fish consumed","Amnt"]
[null,"Central ",{"$f":"'A03'!$E$35","v":0.77},"kg/day","U.S. EPA/ORD 1993"]
[null,"Lower ",{"$f":"'A03'!$E$35","v":0.77},null,"U.S. EPA/ORD 1993"]
[null,"Upper ",{"$f":"'A03'!$E$35","v":0.77},null,"U.S. EPA/ORD 1993"]
["Toxic Equivalency Factor for formulation:  (See risk assessment if this has a value other than 1.)","TEF"]
[null,"Central ",{"$f":"'A01'!C$42","v":1},"Unitless","Worksheet A01"]
[null,"Lower ",{"$f":"'A01'!C$43","v":1},null,"Worksheet A01"]
[null,"Upper ",{"$f":"'A01'!C$44","v":1},null,"Worksheet A01"]
["Body weight","BW",{"$f":"A02a!$C$9","v":70},"kg","ICRP 1975"]
["Dose","Dose","ConcFish× Amnt x TEF ÷ BW"]
[null,"Central ",{"$f":"C17*C22*C26/C$29","v":2.6195400000000001E-3},"mg/kg","Eq"]
[null,"Lower ",{"$f":"C18*C23*C27/C$29","v":5.2390800000000001E-4},"mg/kg","Eq"]
[null,"Upper ",{"$f":"C19*C24*C28/C$29","v":5.2390800000000001E-3},"mg/kg","Eq"]
[null,null,null,null,"FishAmntV6"]

{"sheet":"D09a","index":38,"n_rows":34,"n_cols":5,"rows_kept":34,"cut":false,"hidden":false,"merged":[[15,0,18,0],[20,0,23,0],[24,0,27,0],[29,0,32,0],[0,0,0,4],[1,1,1,3],[2,1,2,3],[3,1,3,3],[6,0,9,0],[12,0,14,0]]}
["Consumption of Contaminated Fish (Longer-term), Adult Male, chronic exposure"]
["Short Title","Fish consumption",null,null,"FishAmntV6"]
["Receptor","Adult Male"]
["Duration","chronic"]
["Parameter/Assumption","Code / Range","Equation/   Value","Units","Reference/Designation"]
["Water"]
["Concentration in water","ConcWat","ApR × WCR"]
[null,"Central ",{"$f":"B04a!Chronic_C","v":1.8899999999999998E-3},"mg/L","='B04a'!Chronic_C"]
[null,"Lower ",{"$f":"B04a!Chronic_L","v":6.3000000000000002E-11},null,"='B04a'!Chronic_L"]
[null,"Upper ",{"$f":"B04a!Chronic_U","v":2.4150000000000001E-2},null,"='B04a'!Chronic_U"]
["Fish"]
["Bioconcentration factor","BCF"]
[null,"Central ",{"$f":"'B01'!$C$5","v":1},"L/kg","Section 3.2.3.5"]
[null,"Lower ",{"$f":"'B01'!$C$5","v":1},null,"Section 3.2.3.5"]
[null,"Upper ",{"$f":"'B01'!$C$5","v":1},null,"Section 3.2.3.5"]
["Concentration in fish","ConcFish","ConcWat × BCF"]
[null,"Central ",{"$f":"C8*C13","v":1.8899999999999998E-3},"mg/kg","Eq"]
[null,"Lower ",{"$f":"C9*C14","v":6.3000000000000002E-11},null,"Eq"]
[null,"Upper ",{"$f":"C10*C15","v":2.4150000000000001E-2},null,"Eq"]
["Receptor"]
["Amount of fish consumed","Amnt"]
[null,"Central ",{"$f":"'A03'!$E$19","v":0.01},"kg/day","U.S. EPA/ORD 1996"]
[null,"Lower ",{"$f":"'A03'!$E$19","v":0.01},null,"U.S. EPA/ORD 1996"]
[null,"Upper ",{"$f":"'A03'!$E$19","v":0.01},null,"U.S. EPA/ORD 1996"]
["Toxic Equivalency Factor for formulation:  (See risk assessment if this has a value other than 1.)","TEF"]
[null,"Central ",{"$f":"'A01'!C$42","v":1},"Unitless","Worksheet A01"]
[null,"Lower ",{"$f":"'A01'!C$43","v":1},null,"Worksheet A01"]
[null,"Upper ",{"$f":"'A01'!C$44","v":1},null,"Worksheet A01"]
["Body weight","BW",{"$f":"A02a!$C$8","v":70},"kg","ICRP 1975"]
["Dose","Dose","ConcFish× Amnt x TEF ÷ BW"]
[null,"Central ",{"$f":"C17*C22*C26/C$29","v":2.6999999999999996E-7},"mg/kg","Eq"]
[null,"Lower ",{"$f":"C18*C23*C27/C$29","v":9.0000000000000011E-15},"mg/kg","Eq"]
[null,"Upper ",{"$f":"C19*C24*C28/C$29","v":3.4500000000000004E-6},"mg/kg","Eq"]
[null,null,null,null,"FishAmntV6"]

{"sheet":"D09b","index":39,"n_rows":34,"n_cols":5,"rows_kept":34,"cut":false,"hidden":false,"merged":[[15,0,18,0],[20,0,23,0],[24,0,27,0],[29,0,32,0],[0,0,0,4],[1,1,1,3],[2,1,2,3],[3,1,3,3],[6,0,9,0],[12,0,14,0]]}
["Consumption of Contaminated Fish (Longer-term), Subsistence Populations, chronic exposure"]
["Short Title","Fish consumption",null,null,"FishAmntV6"]
["Receptor","Subsistence Populations"]
["Duration","chronic"]
["Parameter/Assumption","Code / Range","Equation/   Value","Units","Reference/Designation"]
["Water"]
["Concentration in water","ConcWat","ApR × WCR"]
[null,"Central ",{"$f":"B04a!Chronic_C","v":1.8899999999999998E-3},"mg/L","='B04a'!Chronic_C"]
[null,"Lower ",{"$f":"B04a!Chronic_L","v":6.3000000000000002E-11},null,"='B04a'!Chronic_L"]
[null,"Upper ",{"$f":"B04a!Chronic_U","v":2.4150000000000001E-2},null,"='B04a'!Chronic_U"]
["Fish"]
["Bioconcentration factor","BCF"]
[null,"Central ",{"$f":"'B01'!$C$5","v":1},"L/kg","Section 3.2.3.5"]
[null,"Lower ",{"$f":"'B01'!$C$5","v":1},null,"Section 3.2.3.5"]
[null,"Upper ",{"$f":"'B01'!$C$5","v":1},null,"Section 3.2.3.5"]
["Concentration in fish","ConcFish","ConcWat × BCF"]
[null,"Central ",{"$f":"C8*C13","v":1.8899999999999998E-3},"mg/kg","Eq"]
[null,"Lower ",{"$f":"C9*C14","v":6.3000000000000002E-11},null,"Eq"]
[null,"Upper ",{"$f":"C10*C15","v":2.4150000000000001E-2},null,"Eq"]
["Receptor"]
["Amount of fish consumed","Amnt"]
[null,"Central ",{"$f":"'A03'!$E$34","v":8.1000000000000003E-2},"kg/day","U.S. EPA/ORD 1996"]
[null,"Lower ",{"$f":"'A03'!$E$34","v":8.1000000000000003E-2},null,"U.S. EPA/ORD 1996"]
[null,"Upper ",{"$f":"'A03'!$E$34","v":8.1000000000000003E-2},null,"U.S. EPA/ORD 1996"]
["Toxic Equivalency Factor for formulation:  (See risk assessment if this has a value other than 1.)","TEF"]
[null,"Central ",{"$f":"'A01'!C$42","v":1},"Unitless","Worksheet A01"]
[null,"Lower ",{"$f":"'A01'!C$43","v":1},null,"Worksheet A01"]
[null,"Upper ",{"$f":"'A01'!C$44","v":1},null,"Worksheet A01"]
["Body weight","BW",{"$f":"A02a!$C$9","v":70},"kg","ICRP 1975"]
["Dose","Dose","ConcFish× Amnt x TEF ÷ BW"]
[null,"Central ",{"$f":"C17*C22*C26/C$29","v":2.187E-6},"mg/kg","Eq"]
[null,"Lower ",{"$f":"C18*C23*C27/C$29","v":7.290000000000001E-14},"mg/kg","Eq"]
[null,"Upper ",{"$f":"C19*C24*C28/C$29","v":2.7945000000000004E-5},"mg/kg","Eq"]
[null,null,null,null,"FishAmntV6"]

{"sheet":"D09c","index":40,"n_rows":34,"n_cols":5,"rows_kept":34,"cut":false,"hidden":false,"merged":[[15,0,18,0],[20,0,23,0],[24,0,27,0],[29,0,32,0],[0,0,0,4],[1,1,1,3],[2,1,2,3],[3,1,3,3],[6,0,9,0],[12,0,14,0]]}
["Consumption of Contaminated Fish (Peak Exposure), Adult Male, acute exposure"]
["Short Title","Fish consumption",null,null,"FishAmntV6"]
["Receptor","Adult Male"]
["Duration","acute"]
["Parameter/Assumption","Code / Range","Equation/   Value","Units","Reference/Designation"]
["Water"]
["Concentration in water","ConcWat","ApR × WCR"]
[null,"Central ",{"$f":"B04a!Acute_C","v":4.3049999999999998E-3},"mg/L","='B04a'!Acute_C"]
[null,"Lower ",{"$f":"B04a!Acute_L","v":1.26E-10},null,"='B04a'!Acute_L"]
[null,"Upper ",{"$f":"B04a!Acute_U","v":4.5149999999999996E-2},null,"='B04a'!Acute_U"]
["Fish"]
["Bioconcentration factor","BCF"]
[null,"Central ",{"$f":"'B01'!$C$4","v":1},"L/kg","Section 3.2.3.5"]
[null,"Lower ",{"$f":"'B01'!$C$4","v":1},null,"Section 3.2.3.5"]
[null,"Upper ",{"$f":"'B01'!$C$4","v":1},null,"Section 3.2.3.5"]
["Concentration in fish","ConcFish","ConcWat × BCF"]
[null,"Central ",{"$f":"C8*C13","v":4.3049999999999998E-3},"mg/kg","Eq"]
[null,"Lower ",{"$f":"C9*C14","v":1.26E-10},null,"Eq"]
[null,"Upper ",{"$f":"C10*C15","v":4.5149999999999996E-2},null,"Eq"]
["Receptor"]
["Amount of fish consumed","Amnt"]
[null,"Central ",{"$f":"'A03'!$E$20","v":0.158},"kg/day","Ruffle et al. 1994"]
[null,"Lower ",{"$f":"'A03'!$E$20","v":0.158},null,"Ruffle et al. 1994"]
[null,"Upper ",{"$f":"'A03'!$E$20","v":0.158},null,"Ruffle et al. 1994"]
["Toxic Equivalency Factor for formulation:  (See risk assessment if this has a value other than 1.)","TEF"]
[null,"Central ",{"$f":"'A01'!C$42","v":1},"Unitless","Worksheet A01"]
[null,"Lower ",{"$f":"'A01'!C$43","v":1},null,"Worksheet A01"]
[null,"Upper ",{"$f":"'A01'!C$44","v":1},null,"Worksheet A01"]
["Body weight","BW",{"$f":"A02a!$C$8","v":70},"kg","ICRP 1975"]
["Dose","Dose","ConcFish× Amnt x TEF ÷ BW"]
[null,"Central ",{"$f":"C17*C22*C26/C$29","v":9.7170000000000003E-6},"mg/kg","Eq"]
[null,"Lower ",{"$f":"C18*C23*C27/C$29","v":2.8440000000000003E-13},"mg/kg","Eq"]
[null,"Upper ",{"$f":"C19*C24*C28/C$29","v":1.0190999999999999E-4},"mg/kg","Eq"]
[null,null,null,null,"FishAmntV6"]

{"sheet":"D09d","index":41,"n_rows":34,"n_cols":5,"rows_kept":34,"cut":false,"hidden":false,"merged":[[15,0,18,0],[20,0,23,0],[24,0,27,0],[29,0,32,0],[0,0,0,4],[1,1,1,3],[2,1,2,3],[3,1,3,3],[6,0,9,0],[12,0,14,0]]}
["Consumption of Contaminated Fish (Peak Exposure), Subsistence Populations, acute exposure"]
["Short Title","Fish consumption",null,null,"FishAmntV6"]
["Receptor","Subsistence Populations"]
["Duration","acute"]
["Parameter/Assumption","Code / Range","Equation/   Value","Units","Reference/Designation"]
["Water"]
["Concentration in water","ConcWat","ApR × WCR"]
[null,"Central ",{"$f":"B04a!Acute_C","v":4.3049999999999998E-3},"mg/L","='B04a'!Acute_C"]
[null,"Lower ",{"$f":"B04a!Acute_L","v":1.26E-10},null,"='B04a'!Acute_L"]
[null,"Upper ",{"$f":"B04a!Acute_U","v":4.5149999999999996E-2},null,"='B04a'!Acute_U"]
["Fish"]
["Bioconcentration factor","BCF"]
[null,"Central ",{"$f":"'B01'!$C$4","v":1},"L/kg","Section 3.2.3.5"]
[null,"Lower ",{"$f":"'B01'!$C$4","v":1},null,"Section 3.2.3.5"]
[null,"Upper ",{"$f":"'B01'!$C$4","v":1},null,"Section 3.2.3.5"]
["Concentration in fish","ConcFish","ConcWat × BCF"]
[null,"Central ",{"$f":"C8*C13","v":4.3049999999999998E-3},"mg/kg","Eq"]
[null,"Lower ",{"$f":"C9*C14","v":1.26E-10},null,"Eq"]
[null,"Upper ",{"$f":"C10*C15","v":4.5149999999999996E-2},null,"Eq"]
["Receptor"]
["Amount of fish consumed","Amnt"]
[null,"Central ",{"$f":"'A03'!$E$35","v":0.77},"kg/day","U.S. EPA/ORD 1993"]
[null,"Lower ",{"$f":"'A03'!$E$35","v":0.77},null,"U.S. EPA/ORD 1993"]
[null,"Upper ",{"$f":"'A03'!$E$35","v":0.77},null,"U.S. EPA/ORD 1993"]
["Toxic Equivalency Factor for formulation:  (See risk assessment if this has a value other than 1.)","TEF"]
[null,"Central ",{"$f":"'A01'!C$42","v":1},"Unitless","Worksheet A01"]
[null,"Lower ",{"$f":"'A01'!C$43","v":1},null,"Worksheet A01"]
[null,"Upper ",{"$f":"'A01'!C$44","v":1},null,"Worksheet A01"]
["Body weight","BW",{"$f":"A02a!$C$9","v":70},"kg","ICRP 1975"]
["Dose","Dose","ConcFish× Amnt x TEF ÷ BW"]
[null,"Central ",{"$f":"C17*C22*C26/C$29","v":4.7354999999999996E-5},"mg/kg","Eq"]
[null,"Lower ",{"$f":"C18*C23*C27/C$29","v":1.3860000000000002E-12},"mg/kg","Eq"]
[null,"Upper ",{"$f":"C19*C24*C28/C$29","v":4.9664999999999996E-4},"mg/kg","Eq"]
[null,null,null,null,"FishAmntV6"]

{"sheet":"D10","index":42,"n_rows":31,"n_cols":5,"rows_kept":31,"cut":false,"hidden":false,"merged":[[27,0,30,0],[0,0,0,4],[1,1,1,3],[2,1,2,3],[3,1,3,3],[4,1,4,3],[8,0,9,0],[11,0,14,0],[12,3,14,3],[15,0,18,0],[19,0,22,0],[23,0,26,0]]}
["Swimming Exposure Assessment Using Zero-Order Absorption, Adult Female, Surface Area, Whole body, for 60 minute(s)"]
["Short Title","Swimming",null,null,"DrmZrSwm"]
["Receptor","Adult Female"]
["Duration","Acute"]
["Surface Contaminated","Surface Area, Whole body"]
["Parameter/Assumption","Code / Range","Equation/   Value","Units","Reference/Designation"]
["Application Rate","ApRt",{"$f":"'A01'!ApRt_C","v":0.105},"lb/acre","Worksheet A01"]
["Surface Area","SA",{"$f":"A02a!$C$7","v":16900},"cm2","U.S. EPA/ORD 1997"]
["Duration of Exposure","T_min",{"$f":"'A01'!C$36","v":60},"minutes","Worksheet A01"]
[null,"T_hr",{"$f":"C9/60","v":1},"hours","Eq"]
["Body weight","BW",{"$f":"A02a!$C$4","v":64},"kg","U.S. EPA/ORD 1985"]
["Water contamination rate","WCR"]
[null,"Central ",{"$f":"B04Rt!$C$4","v":4.1000000000000002E-2},"mg/L per lb/acre","Section 3.2.3.4.6"]
[null,"Lower ",{"$f":"B04Rt!$C$5","v":1.2E-9},null,"Section 3.2.3.4.6"]
[null,"Upper ",{"$f":"B04Rt!$C$6","v":0.43},null,"Section 3.2.3.4.6"]
["Concentration in water in mg/mL","ConcWat","ApR × WCR / 1000"]
[null,"Central ",{"$f":"C$7*C13/1000","v":4.3049999999999994E-6},"mg/mL","Eq"]
[null,"Lower ",{"$f":"C$7*C14/1000","v":1.2599999999999999E-13},null,"Eq"]
[null,"Upper ",{"$f":"C$7*C15/1000","v":4.5149999999999993E-5},null,"Eq"]
["Toxic Equivalency Factor for formulation:  (See risk assessment if this has a value other than 1.)","TEF"]
[null,"Central ",{"$f":"'A01'!C$42","v":1},"Unitless","Worksheet A01"]
[null,"Lower ",{"$f":"'A01'!C$43","v":1},null,"Worksheet A01"]
[null,"Upper ",{"$f":"'A01'!C$44","v":1},null,"Worksheet A01"]
["Dermal permeability","Kp"]
[null,"Central ",{"$f":"'B01'!$C$14","v":1.8E-7},"cm/hour","Section 3.2.2.2"]
[null,"Lower ",{"$f":"'B01'!$C$15","v":4.1000000000000003E-8},null,"Section 3.2.2.2"]
[null,"Upper ",{"$f":"'B01'!$C$16","v":3.2000000000000001E-7},null,"Section 3.2.2.2"]
["Absorbed Dose","Dose","Kp × Conc × T_hr × SA × TEF ÷ BW"]
[null,"Central ",{"$f":"C25*C17*C$10*C$8*C21/C$11","v":2.0462203124999996E-10},"mg/kg"]
[null,"Lower ",{"$f":"C26*C18*C$10*C$8*C22/C$11","v":1.3641468750000002E-18},"mg/kg"]
[null,"Upper ",{"$f":"C27*C19*C$10*C$8*C23/C$11","v":3.8151749999999993E-9},"mg/kg"]

{"sheet":"E01","index":43,"n_rows":17,"n_cols":7,"rows_kept":17,"cut":false,"hidden":false,"merged":[[0,0,0,5],[1,2,1,4],[2,0,3,0],[2,1,3,1],[2,2,2,4],[2,5,3,5]]}
["Summary of Worker Exposure Assessments"]
["Application Rate:",{"$f":"'A01'!ApRt_C","v":0.105}," lb a.i./acre",null,null,"E01aV5-Borate"]
["Scenario","Receptor","mg/kg/day or mg/kg/event",null,null,"Detail Worksheet"]
[null,null,"Central","Lower","Upper"]
["Accidental/Incidental Exposures"]
["Contaminated Gloves, 1 minute","Worker",{"$f":"'C02aW'!Dose_C","v":4.6799999999999996E-7},{"$f":"'C02aW'!Dose_L","v":1.066E-7},{"$f":"'C02aW'!Dose_U","v":8.3199999999999993E-7},"C02aW","Wet"]
["Contaminated Gloves, 1 hour","Worker",{"$f":"'C02bW'!Dose_C","v":2.8080000000000002E-5},{"$f":"'C02bW'!Dose_L","v":6.3960000000000003E-6},{"$f":"'C02bW'!Dose_U","v":4.9919999999999996E-5},"C02bW","Wet"]
["Contaminated Gloves, 1 minute","Worker",{"$f":"'C02aD'!Dose_C","v":1.9548000000000003E-6},{"$f":"'C02aD'!Dose_L","v":4.4525999999999995E-7},{"$f":"'C02aD'!Dose_U","v":3.4752000000000002E-6},"C02aD","Dry"]
["Contaminated Gloves, 1 hour","Worker",{"$f":"'C02bD'!Dose_C","v":1.1728799999999999E-4},{"$f":"'C02bD'!Dose_L","v":2.6715600000000002E-5},{"$f":"'C02bD'!Dose_U","v":2.08512E-4},"C02bD","Dry"]
["Spill on Hands, 1 hour","Worker",{"$f":"'C03a'!Dose_C","v":1.0981916788578516E-4},{"$f":"'C03a'!Dose_L","v":2.4959750401666979E-5},{"$f":"'C03a'!Dose_U","v":1.9966402645196622E-4},"C03a","Wet"]
["Spill on lower legs, 1 hour","Worker",{"$f":"'C03b'!Dose_C","v":2.7062580657568485E-4},{"$f":"'C03b'!Dose_L","v":6.1507956346965059E-5},{"$f":"'C03b'!Dose_U","v":4.9202920804234534E-4},"C03b","Wet"]
["General Exposures"]
["Liquid Application, Standard","Worker",{"$f":"'C01a'!Dose_C","v":1.575E-5},{"$f":"'C01a'!Dose_L","v":1.0500000000000001E-6},{"$f":"'C01a'!Dose_U","v":2.1000000000000001E-4},"C01a","Wet"]
["Liquid Application, Backpack, PHED ","Worker",{"$f":"'C01b'!Dose_C","v":2.3265019514403912E-5},{"$f":"'C01b'!Dose_L","v":5.1058764082395177E-6},{"$f":"'C01b'!Dose_U","v":6.8750469085963463E-5},"C01b","Wet"]
["Liquid Application, HED, PHED ","Worker",{"$f":"'C01c'!Dose_C","v":1.125E-4},{"$f":"'C01c'!Dose_L","v":4.4999999999999996E-5},{"$f":"'C01c'!Dose_U","v":2.2499999999999999E-4},"C01c","Wet"]
["Dry Application, HED, Acute","Worker",{"$f":"'C01d_Ac'!Dose_C","v":1.3125000000000001E-2},{"$f":"'C01d_Ac'!Dose_L","v":2.6250000000000002E-3},{"$f":"'C01d_Ac'!Dose_U","v":0.13125000000000001},"C01d_Ac","Dry"]
["Dry Application, HED, Chronic","Worker",{"$f":"'C01d_Ch'!Dose_C","v":1.3125000000000001E-2},{"$f":"'C01d_Ch'!Dose_L","v":2.6250000000000002E-3},{"$f":"'C01d_Ch'!Dose_U","v":0.13125000000000001},"C01d_Ch","Dry"]

{"sheet":"E02","index":44,"n_rows":17,"n_cols":7,"rows_kept":17,"cut":false,"hidden":false,"merged":[[0,0,0,5],[1,2,1,4],[2,0,3,0],[2,1,3,1],[2,2,2,4],[2,5,3,5]]}
["Summary of Worker Hazard Quotients (Toxicity)"]
["Application Rate:",{"$f":"'A01'!ApRt_C","v":0.105}," lb a.i./acre",null,null,"E01aV5-Borate"]
["Scenario","Receptor","Hazard Quotients",null,null,"Toxicity Value"]
[null,null,"Central","Lower","Upper"]
["Accidental/Incidental Exposures"]
["Contaminated Gloves, 1 minute","Worker",{"$f":"'C02aW'!$C$24/$F$6","v":1.3371428571428571E-7},{"$f":"'C02aW'!$C$25/$F$6","v":3.045714285714286E-8},{"$f":"'C02aW'!$C$26/$F$6","v":2.3771428571428569E-7},{"$f":"'B02'!$E$4","v":3.5},"Wet"]
["Contaminated Gloves, 1 hour","Worker",{"$f":"'C02bW'!$C$24/$F$7","v":8.0228571428571428E-6},{"$f":"'C02bW'!$C$25/$F$7","v":1.8274285714285714E-6},{"$f":"'C02bW'!$C$26/$F$7","v":1.4262857142857142E-5},{"$f":"'B02'!$E$4","v":3.5},"Wet"]
["Contaminated Gloves, 1 minute","Worker",{"$f":"'C02aD'!$C$21/$F$8","v":5.5851428571428581E-7},{"$f":"'C02aD'!$C$22/$F$8","v":1.2721714285714285E-7},{"$f":"'C02aD'!$C$23/$F$8","v":9.9291428571428583E-7},{"$f":"'B02'!$E$4","v":3.5},"Dry"]
["Contaminated Gloves, 1 hour","Worker",{"$f":"'C02bD'!$C$21/$F$9","v":3.3510857142857142E-5},{"$f":"'C02bD'!$C$22/$F$9","v":7.6330285714285716E-6},{"$f":"'C02bD'!$C$23/$F$9","v":5.9574857142857141E-5},{"$f":"'B02'!$E$4","v":3.5},"Dry"]
["Spill on Hands, 1 hour","Worker",{"$f":"'C03a'!$C$37/$F$10","v":3.1376905110224331E-5},{"$f":"'C03a'!$C$38/$F$10","v":7.1313572576191365E-6},{"$f":"'C03a'!$C$39/$F$10","v":5.704686470056178E-5},{"$f":"'B02'!$E$4","v":3.5},"Wet"]
["Spill on lower legs, 1 hour","Worker",{"$f":"'C03b'!$C$37/$F$11","v":7.7321659021624246E-5},{"$f":"'C03b'!$C$38/$F$11","v":1.7573701813418587E-5},{"$f":"'C03b'!$C$39/$F$11","v":1.4057977372638439E-4},{"$f":"'B02'!$E$4","v":3.5},"Wet"]
["General Exposures"]
["Liquid Application, Standard","Worker",{"$f":"'C01a'!$C$28/$F$13","v":1.7897727272727274E-4},{"$f":"'C01a'!$C$29/$F$13","v":1.1931818181818184E-5},{"$f":"'C01a'!$C$30/$F$13","v":2.3863636363636366E-3},{"$f":"'B02'!$E$5","v":8.7999999999999995E-2},"Wet"]
["Liquid Application, Backpack, PHED ","Worker",{"$f":"'C01b'!$C$55/$F$14","v":2.6437522175458991E-4},{"$f":"'C01b'!$C$56/$F$14","v":5.8021322820903614E-5},{"$f":"'C01b'!$C$57/$F$14","v":7.8125533052231212E-4},{"$f":"'B02'!$E$5","v":8.7999999999999995E-2},"Wet"]
["Liquid Application, HED, PHED ","Worker",{"$f":"'C01c'!$C$55/$F$15","v":1.2784090909090909E-3},{"$f":"'C01c'!$C$56/$F$15","v":5.113636363636363E-4},{"$f":"'C01c'!$C$57/$F$15","v":2.5568181818181818E-3},{"$f":"'B02'!$E$5","v":8.7999999999999995E-2},"Wet"]
["Dry Application, HED, Acute","Worker",{"$f":"'C01d_Ac'!$C$55/$F$16","v":3.7500000000000003E-3},{"$f":"'C01d_Ac'!$C$56/$F$16","v":7.5000000000000002E-4},{"$f":"'C01d_Ac'!$C$57/$F$16","v":3.7499999999999999E-2},{"$f":"'B02'!$E$4","v":3.5},"Dry"]
["Dry Application, HED, Chronic","Worker",{"$f":"'C01d_Ch'!$C$55/$F$17","v":0.14914772727272729},{"$f":"'C01d_Ch'!$C$56/$F$17","v":2.9829545454545459E-2},{"$f":"'C01d_Ch'!$C$57/$F$17","v":1.4914772727272729},{"$f":"'B02'!$E$5","v":8.7999999999999995E-2},"Dry"]

{"sheet":"E03","index":45,"n_rows":25,"n_cols":14,"rows_kept":25,"cut":false,"hidden":false,"merged":[[0,0,0,5],[1,2,1,4],[2,0,3,0],[2,1,3,1],[2,2,2,4],[2,5,3,5]]}
["Summary of Exposure Assessments for the General Public"]
["Application Rate:",{"$f":"'A01'!ApRt_C","v":0.105}," lb a.i./acre",null,null,"E03bV6"]
["Scenario","Receptor","mg/kg/day or mg/kg/event",null,null,"Detail Worksheet"]
[null,null,"Central","Lower","Upper",null,null,null,null,null,"Lower","Central","Upper","Check"]
["Accidental Acute Exposures (dose in mg/kg/event)"]
["Direct Spray of Child, whole body","Child",{"$f":"D01a!Dose_C","v":4.1491828468125597E-3},{"$f":"D01a!Dose_L","v":9.4302816367200439E-4},{"$f":"D01a!Dose_U","v":7.5436972400084986E-3},"D01a","Wet",null,null,"Spray: Child",{"$f":"IF(D6>0,  D6, \"\")","v":9.4302816367200439E-4},{"$f":"IF(ISERROR(C6-K6), \"\", C6-K6)","v":3.2061546831405555E-3},{"$f":"IF(ISERROR(E6-C6), \"\", E6-C6)","v":3.3945143931959389E-3},{"$f":"E6-SUM(K6:M6)","v":0}]
["Direct Spray of Woman, feet and lower legs","Adult Female",{"$f":"D01b!Dose_C","v":4.1682665935815593E-4},{"$f":"D01b!Dose_L","v":9.4736552631327156E-5},{"$f":"D01b!Dose_U","v":7.5783937123369998E-4},"D01b","Wet",null,null,"Spray: Woman",{"$f":"IF(D7>0,  D7, \"\")","v":9.4736552631327156E-5},{"$f":"IF(ISERROR(C7-K7), \"\", C7-K7)","v":3.2209010672682879E-4},{"$f":"IF(ISERROR(E7-C7), \"\", E7-C7)","v":3.4101271187554405E-4},{"$f":"E7-SUM(K7:M7)","v":0}]
["Direct Consumption","Child",{"$f":"D01c!Dose_C","v":1.2727272727272727},{"$f":"D01c!Dose_L","v":0.50909090909090904},{"$f":"D01c!Dose_U","v":3.0909090909090908},"D01c","Dry"]
["Water consumption (spill)","Child",{"$f":"'D05'!Dose_C","v":1.7905263157894737E-2},{"$f":"'D05'!Dose_L","v":2.1844421052631575E-3},{"$f":"'D05'!Dose_U","v":5.3715789473684203E-2},"D05",null,null,null,"Water: Child",2.1844421052631575E-3,1.5720821052631579E-2,3.5810526315789466E-2,0]
["Fish consumption (spill)","Adult Male",{"$f":"D08a!Dose_C","v":5.3751600000000004E-4},{"$f":"D08a!Dose_L","v":1.0750319999999999E-4},{"$f":"D08a!Dose_U","v":1.0750320000000001E-3},"D08a",null,null,null,"Fish: General",1.0750319999999999E-4,4.3001280000000007E-4,5.3751600000000004E-4,0]
["Fish consumption (spill)","Subsistence Populations",{"$f":"D08b!Dose_C","v":2.6195400000000001E-3},{"$f":"D08b!Dose_L","v":5.2390800000000001E-4},{"$f":"D08b!Dose_U","v":5.2390800000000001E-3},"D08b",null,null,null,"Fish: Subsist",5.2390800000000001E-4,2.0956320000000001E-3,2.6195400000000001E-3,0]
["Non-Accidental Acute Exposures (dose in mg/kg/event)"]
["Vegetation Contact, shorts and T-shirt","Adult Female","No Exposure Assessment",null,null,null,null,null,null,"Contact: Female",{"$f":"IF(D13>0,  D13, \"\")","v":""},{"$f":"IF(ISERROR(C13-K13), \"\", C13-K13)","v":""},{"$f":"IF(ISERROR(E13-C13), \"\", E13-C13)","v":""},{"$f":"E13-SUM(K13:M13)","v":0}]
["Contaminated Fruit","Adult Female","No Exposure Assessment",null,null,null,null,null,null,"Fruit: Female","","","",0]
["Contaminated Vegetation","Adult Female","No Exposure Assessment",null,null,null,null,null,null,"Veg: Female","","","",0]
["Swimming, one hour","Adult Female",{"$f":"'D10'!Dose_C","v":2.0462203124999996E-10},{"$f":"'D10'!Dose_L","v":1.3641468750000002E-18},{"$f":"'D10'!Dose_U","v":3.8151749999999993E-9},"D10",null,null,null,"Swim: Female",1.3641468750000002E-18,2.0462202988585309E-10,3.6105529687499993E-9,0]
["Water consumption","Child",{"$f":"'D06'!Dose_C","v":3.2368421052631575E-4},{"$f":"'D06'!Dose_L","v":5.7789473684210528E-12},{"$f":"'D06'!Dose_U","v":5.0921052631578943E-3},"D06",null,null,null,"Water: Child",5.7789473684210528E-12,3.2368420474736839E-4,4.7684210526315789E-3,0]
["Fish consumption","Adult Male",{"$f":"D09c!Dose_C","v":9.7170000000000003E-6},{"$f":"D09c!Dose_L","v":2.8440000000000003E-13},{"$f":"D09c!Dose_U","v":1.0190999999999999E-4},"D09c",null,null,null,"Fish: Male",2.8440000000000003E-13,9.7169997156000011E-6,9.219299999999999E-5,0]
["Fish consumption","Subsistence Populations",{"$f":"D09d!Dose_C","v":4.7354999999999996E-5},{"$f":"D09d!Dose_L","v":1.3860000000000002E-12},{"$f":"D09d!Dose_U","v":4.9664999999999996E-4},"D09d",null,null,null,"Fish: Subsist",1.3860000000000002E-12,4.7354998613999998E-5,4.4929499999999995E-4,0]
["Chronic/Longer Term Exposures (dose in mg/kg/day)"]
["Contaminated Fruit","Adult Female","No Exposure Assessment",null,null,null,null,null,null,"Fruit: Female",{"$f":"IF(D21>0,  D21, \"\")","v":""},{"$f":"IF(ISERROR(C21-K21), \"\", C21-K21)","v":""},{"$f":"IF(ISERROR(E21-C21), \"\", E21-C21)","v":""},{"$f":"E21-SUM(K21:M21)","v":0}]
["Contaminated Vegetation","Adult Female","No Exposure Assessment",null,null,null,null,null,null,"Veg: Female","","","",0]
["Water consumption","Adult Male",{"$f":"'D07'!Dose_C","v":5.3999999999999991E-5},{"$f":"'D07'!Dose_L","v":1.2600000000000001E-12},{"$f":"'D07'!Dose_U","v":8.2799999999999996E-4},"D07",null,null,null,"Water: Male",1.2600000000000001E-12,5.3999998739999993E-5,7.7399999999999995E-4,0]
["Fish consumption","Adult Male",{"$f":"D09a!Dose_C","v":2.6999999999999996E-7},{"$f":"D09a!Dose_L","v":9.0000000000000011E-15},{"$f":"D09a!Dose_U","v":3.4500000000000004E-6},"D09a",null,null,null,"Fish: Male",9.0000000000000011E-15,2.6999999099999998E-7,3.1800000000000005E-6,0]
["Fish consumption","Subsistence Populations",{"$f":"D09b!Dose_C","v":2.187E-6},{"$f":"D09b!Dose_L","v":7.290000000000001E-14},{"$f":"D09b!Dose_U","v":2.7945000000000004E-5},"D09b",null,null,null,"Fish: Subsist",7.290000000000001E-14,2.1869999271000001E-6,2.5758000000000003E-5,0]

{"sheet":"E04","index":46,"n_rows":25,"n_cols":14,"rows_kept":25,"cut":false,"hidden":false,"merged":[[0,0,0,5],[1,2,1,4],[2,0,3,0],[2,1,3,1],[2,2,2,4],[2,5,3,5]]}
["Summary of Hazard Quotients (Toxicity) for the General Public"]
["Application Rate:",{"$f":"'A01'!ApRt_C","v":0.105}," lb a.i./acre",null,null,"E03bV6"]
["Scenario","Receptor","Hazard Quotients",null,null,"Toxicity Value"]
[null,null,"Central","Lower","Upper",null,null,null,null,null,"Lower","Central","Upper","Check"]
["Accidental Acute Exposures (dose in mg/kg/event)"]
["Direct Spray of Child, whole body","Child",{"$f":"D01a!$C$37/$F$6","v":1.1854808133750171E-3},{"$f":"D01a!$C$38/$F$6","v":2.6943661819200124E-4},{"$f":"D01a!$C$39/$F$6","v":2.1553420685738569E-3},{"$f":"'B02'!$E$4","v":3.5},"Wet",null,null,"Spray: Child",{"$f":"IF(D6>0,  D6, \"\")","v":2.6943661819200124E-4},{"$f":"IF(ISERROR(C6-K6), \"\", C6-K6)","v":9.1604419518301588E-4},{"$f":"IF(ISERROR(E6-C6), \"\", E6-C6)","v":9.6986125519883974E-4},{"$f":"E6-SUM(K6:M6)","v":0}]
["Direct Spray of Woman, feet and lower legs","Adult Female",{"$f":"D01b!$C$37/$F$7","v":1.1909333124518741E-4},{"$f":"D01b!$C$38/$F$7","v":2.7067586466093472E-5},{"$f":"D01b!$C$39/$F$7","v":2.1652553463819999E-4},{"$f":"'B02'!$E$4","v":3.5},"Wet",null,null,"Spray: Woman",{"$f":"IF(D7>0,  D7, \"\")","v":2.7067586466093472E-5},{"$f":"IF(ISERROR(C7-K7), \"\", C7-K7)","v":9.2025744779093948E-5},{"$f":"IF(ISERROR(E7-C7), \"\", E7-C7)","v":9.7432203393012581E-5},{"$f":"E7-SUM(K7:M7)","v":0}]
["Direct Consumption","Child",{"$f":"D01c!$C$17/$F$8","v":0.36363636363636365},{"$f":"D01c!$C$18/$F$8","v":0.14545454545454545},{"$f":"D01c!$C$19/$F$8","v":0.88311688311688308},{"$f":"'B02'!$E$4","v":3.5},"Dry"]
["Water consumption (spill)","Child",{"$f":"'D05'!$C$17/$F$9","v":5.1157894736842107E-3},{"$f":"'D05'!$C$18/$F$9","v":6.2412631578947358E-4},{"$f":"'D05'!$C$19/$F$9","v":1.5347368421052629E-2},{"$f":"'B02'!$E$4","v":3.5},null,null,null,"Water: Child",6.2412631578947358E-4,4.4916631578947371E-3,1.0231578947368418E-2,0]
["Fish consumption (spill)","Adult Male",{"$f":"D08a!$C$31/$F$10","v":1.5357600000000002E-4},{"$f":"D08a!$C$32/$F$10","v":3.07152E-5},{"$f":"D08a!$C$33/$F$10","v":3.0715200000000004E-4},{"$f":"'B02'!$E$4","v":3.5},null,null,null,"Fish: General",3.07152E-5,1.2286080000000003E-4,1.5357600000000002E-4,0]
["Fish consumption (spill)","Subsistence Populations",{"$f":"D08b!$C$31/$F$11","v":7.4844000000000006E-4},{"$f":"D08b!$C$32/$F$11","v":1.4968800000000001E-4},{"$f":"D08b!$C$33/$F$11","v":1.4968800000000001E-3},{"$f":"'B02'!$E$4","v":3.5},null,null,null,"Fish: Subsist",1.4968800000000001E-4,5.9875200000000003E-4,7.4844000000000006E-4,0]
["Non-Accidental Acute Exposures (dose in mg/kg/event)"]
["Vegetation Contact, shorts and T-shirt","Adult Female","No exposure assessment.",null,null,null,null,null,null,"Contact: Female",{"$f":"IF(D13>0,  D13, \"\")","v":""},{"$f":"IF(ISERROR(C13-K13), \"\", C13-K13)","v":""},{"$f":"IF(ISERROR(E13-C13), \"\", E13-C13)","v":""},{"$f":"E13-SUM(K13:M13)","v":0}]
["Contaminated Fruit","Adult Female","No exposure assessment.",null,null,null,null,null,null,"Fruit: Female","","","",0]
["Contaminated Vegetation","Adult Female","No exposure assessment.",null,null,null,null,null,null,"Veg: Female","","","",0]
["Swimming, one hour","Adult Female",{"$f":"'D10'!$C$29/$F$16","v":5.8463437499999995E-11},{"$f":"'D10'!$C$30/$F$16","v":3.8975625000000007E-19},{"$f":"'D10'!$C$31/$F$16","v":1.0900499999999998E-9},{"$f":"'B02'!$E$4","v":3.5},null,null,null,"Swim: Female",3.8975625000000007E-19,5.8463437110243748E-11,1.0315865624999997E-9,0]
["Water consumption","Child",{"$f":"'D06'!$C$17/$F$17","v":9.2481203007518793E-5},{"$f":"'D06'!$C$18/$F$17","v":1.6511278195488723E-12},{"$f":"'D06'!$C$19/$F$17","v":1.4548872180451128E-3},{"$f":"'B02'!$E$4","v":3.5},null,null,null,"Water: Child",1.6511278195488723E-12,9.2481201356390977E-5,1.362406015037594E-3,0]
["Fish consumption","Adult Male",{"$f":"D09c!$C$31/$F$18","v":2.7762857142857144E-6},{"$f":"D09c!$C$32/$F$18","v":8.1257142857142871E-14},{"$f":"D09c!$C$33/$F$18","v":2.9117142857142856E-5},{"$f":"'B02'!$E$4","v":3.5},null,null,null,"Fish: Male",8.1257142857142871E-14,2.7762856330285716E-6,2.6340857142857141E-5,0]
["Fish consumption","Subsistence Populations",{"$f":"D09d!$C$31/$F$19","v":1.3529999999999999E-5},{"$f":"D09d!$C$32/$F$19","v":3.9600000000000003E-13},{"$f":"D09d!$C$33/$F$19","v":1.4189999999999998E-4},{"$f":"'B02'!$E$4","v":3.5},null,null,null,"Fish: Subsist",3.9600000000000003E-13,1.3529999603999999E-5,1.2836999999999999E-4,0]
["Chronic/Longer Term Exposures (dose in mg/kg/day)"]
["Contaminated Fruit","Adult Female","No exposure assessment.",null,null,null,null,null,null,"Fruit: Female",{"$f":"IF(D21>0,  D21, \"\")","v":""},{"$f":"IF(ISERROR(C21-K21), \"\", C21-K21)","v":""},{"$f":"IF(ISERROR(E21-C21), \"\", E21-C21)","v":""},{"$f":"E21-SUM(K21:M21)","v":0}]
["Contaminated Vegetation","Adult Female","No exposure assessment.",null,null,null,null,null,null,"Veg: Female","","","",0]
["Water consumption","Adult Male",{"$f":"'D07'!$C$17/$F$23","v":6.1363636363636362E-4},{"$f":"'D07'!$C$18/$F$23","v":1.431818181818182E-11},{"$f":"'D07'!$C$19/$F$23","v":9.4090909090909086E-3},{"$f":"'B02'!$E$5","v":8.7999999999999995E-2},null,null,null,"Water: Male",1.431818181818182E-11,6.1363634931818178E-4,8.7954545454545455E-3,0]
["Fish consumption","Adult Male",{"$f":"D09a!$C$31/$F$24","v":3.0681818181818178E-6},{"$f":"D09a!$C$32/$F$24","v":1.0227272727272729E-13},{"$f":"D09a!$C$33/$F$24","v":3.9204545454545463E-5},{"$f":"'B02'!$E$5","v":8.7999999999999995E-2},null,null,null,"Fish: Male",1.0227272727272729E-13,3.0681817159090904E-6,3.6136363636363643E-5,0]
["Fish consumption","Subsistence Populations",{"$f":"D09b!$C$31/$F$25","v":2.485227272727273E-5},{"$f":"D09b!$C$32/$F$25","v":8.2840909090909108E-13},{"$f":"D09b!$C$33/$F$25","v":3.1755681818181823E-4},{"$f":"'B02'!$E$5","v":8.7999999999999995E-2},null,null,null,"Fish: Subsist",8.2840909090909108E-13,2.4852271898863639E-5,2.9270454545454549E-4,0]

{"sheet":"F01","index":47,"n_rows":31,"n_cols":5,"rows_kept":31,"cut":false,"hidden":false,"merged":[[23,0,26,0],[27,0,30,0],[0,0,0,4],[2,1,2,3],[4,1,4,3],[10,0,13,0],[15,0,18,0],[19,0,22,0],[20,3,22,3]]}
["Consumption of Fixed Amount of Compound by a Mammal, large, acute exposure"]
["Short Title","Direct Consumption",null,null,"DirConStump"]
["Receptor","Mammal, large"]
["Duration","Acute"]
["Material consumed","Boxax as boron equivalents"]
["Parameter/Assumption","Code / Range","Equation/   Value","Units","Reference/Designation"]
["Body Weight","BW",70,"kg","Scenario parameter"]
["Stump Application Rate","StumpRate",{"$f":"'A01'!C$4","v":5.2499999999999997E-4},"lb B/ft2","Worksheet A01"]
["Converation for lbs to mg.","Conv1",453592,"mg/lb"]
["Mg B/ft2","mg/ft",{"$f":"C8*C9","v":238.13579999999999},"mg/ft2","Eq"]
["Area (ft2) cleared by 70 kg deer","Area"]
[null,"Central ",1,"ft2","Scenario parameter"]
[null,"Lower ",0.5]
[null,"Upper ",2]
["Body Weight of deer","BWDeer",70,"kg","Scenario parameter"]
["Area (ft2) cleared","Area"]
[null,"Central ",{"$f":"C12*($C$7/$C$15)","v":1},"ft2","Eq"]
[null,"Lower ",{"$f":"C13*($C$7/$C$15)","v":0.5},null,"Eq"]
[null,"Upper ",2,null,"Eq"]
["Amount of boronl consumed","Amnt"]
[null,"Central ",{"$f":"$C$10 *C17","v":238.13579999999999},"mg B","Eq"]
[null,"Lower ",{"$f":"$C$10 *C18","v":119.06789999999999},null,"Eq"]
[null,"Upper ",476.27159999999998,null,"Eq"]
["Toxic Equivalency Factor for formulation:  (See risk assessment if this has a value other than 1.)","TEF"]
[null,"Central ",{"$f":"'A01'!C$42","v":1},"Unitless","Worksheet A01"]
[null,"Lower ",{"$f":"'A01'!C$43","v":1},null,"Worksheet A01"]
[null,"Upper ",{"$f":"'A01'!C$44","v":1},null,"Worksheet A01"]
["Dose","Dose","Conc × Amnt ×TEF"]
[null,"Central",{"$f":"C21*C25/C$7","v":3.4019399999999997},"mg B/kg bw","Eq"]
[null,"Lower",{"$f":"C22*C26/C$7","v":1.7009699999999999},null,"Eq"]
[null,"Upper",{"$f":"C23*C27/C$7","v":6.8038799999999995},null,"Eq"]

{"sheet":"F02","index":48,"n_rows":31,"n_cols":5,"rows_kept":31,"cut":false,"hidden":false,"merged":[[23,0,26,0],[27,0,30,0],[0,0,0,4],[2,1,2,3],[4,1,4,3],[10,0,13,0],[15,0,18,0],[19,0,22,0],[20,3,22,3]]}
["Consumption of Fixed Amount of Compound by a Bird, large, acute exposure"]
["Short Title","Direct Consumption",null,null,"DirConStump"]
["Receptor","Bird, large"]
["Duration","Acute"]
["Material consumed","Boxax as boron equivalents"]
["Parameter/Assumption","Code / Range","Equation/   Value","Units","Reference/Designation"]
["Body Weight","BW",4,"kg","Scenario parameter"]
["Stump Application Rate","StumpRate",{"$f":"'A01'!C$4","v":5.2499999999999997E-4},"lb B/ft2","Worksheet A01"]
["Converation for lbs to mg.","Conv1",453592,"mg/lb"]
["Mg B/ft2","mg/ft",{"$f":"C8*C9","v":238.13579999999999},"mg/ft2","Eq"]
["Area (ft2) cleared by 70 kg deer","Area"]
[null,"Central ",1,"ft2","Scenario parameter"]
[null,"Lower ",0.5]
[null,"Upper ",2]
["Body Weight of deer","BWDeer",70,"kg","Scenario parameter"]
["Area (ft2) cleared","Area"]
[null,"Central ",{"$f":"C12*($C$7/$C$15)","v":5.7142857142857141E-2},"ft2","Eq"]
[null,"Lower ",{"$f":"C13*($C$7/$C$15)","v":2.8571428571428571E-2},null,"Eq"]
[null,"Upper ",0.11428571428571428,null,"Eq"]
["Amount of boronl consumed","Amnt"]
[null,"Central ",{"$f":"$C$10 *C17","v":13.607759999999999},"mg B","Eq"]
[null,"Lower ",{"$f":"$C$10 *C18","v":6.8038799999999995},null,"Eq"]
[null,"Upper ",27.215519999999998,null,"Eq"]
["Toxic Equivalency Factor for formulation:  (See risk assessment if this has a value other than 1.)","TEF"]
[null,"Central ",{"$f":"'A01'!C$42","v":1},"Unitless","Worksheet A01"]
[null,"Lower ",{"$f":"'A01'!C$43","v":1},null,"Worksheet A01"]
[null,"Upper ",{"$f":"'A01'!C$44","v":1},null,"Worksheet A01"]
["Dose","Dose","Conc × Amnt ×TEF"]
[null,"Central",{"$f":"C21*C25/C$7","v":3.4019399999999997},"mg B/kg bw","Eq"]
[null,"Lower",{"$f":"C22*C26/C$7","v":1.7009699999999999},null,"Eq"]
[null,"Upper",{"$f":"C23*C27/C$7","v":6.8038799999999995},null,"Eq"]

{"sheet":"F03","index":49,"n_rows":31,"n_cols":5,"rows_kept":31,"cut":false,"hidden":false,"merged":[[23,0,26,0],[27,0,30,0],[0,0,0,4],[2,1,2,3],[4,1,4,3],[10,0,13,0],[15,0,18,0],[19,0,22,0],[20,3,22,3]]}
["Consumption of Fixed Amount of Compound by a Mammal, small, acute exposure"]
["Short Title","Direct Consumption",null,null,"DirConStump"]
["Receptor","Mammal, small"]
["Duration","Acute"]
["Material consumed","Boxax as boron equivalents"]
["Parameter/Assumption","Code / Range","Equation/   Value","Units","Reference/Designation"]
["Body Weight","BW",0.02,"kg","Scenario parameter"]
["Stump Application Rate","StumpRate",{"$f":"'A01'!C$4","v":5.2499999999999997E-4},"lb B/ft2","Worksheet A01"]
["Converation for lbs to mg.","Conv1",453592,"mg/lb"]
["Mg B/ft2","mg/ft",{"$f":"C8*C9","v":238.13579999999999},"mg/ft2","Eq"]
["Area (ft2) cleared by 70 kg deer","Area"]
[null,"Central ",1,"ft2","Scenario parameter"]
[null,"Lower ",0.5]
[null,"Upper ",2]
["Body Weight of deer","BWDeer",70,"kg","Scenario parameter"]
["Area (ft2) cleared","Area"]
[null,"Central ",{"$f":"C12*($C$7/$C$15)","v":2.8571428571428574E-4},"ft2","Eq"]
[null,"Lower ",{"$f":"C13*($C$7/$C$15)","v":1.4285714285714287E-4},null,"Eq"]
[null,"Upper ",5.7142857142857147E-4,null,"Eq"]
["Amount of boronl consumed","Amnt"]
[null,"Central ",{"$f":"$C$10 *C17","v":6.8038799999999997E-2},"mg B","Eq"]
[null,"Lower ",{"$f":"$C$10 *C18","v":3.4019399999999998E-2},null,"Eq"]
[null,"Upper ",0.13607759999999999,null,"Eq"]
["Toxic Equivalency Factor for formulation:  (See risk assessment if this has a value other than 1.)","TEF"]
[null,"Central ",{"$f":"'A01'!C$42","v":1},"Unitless","Worksheet A01"]
[null,"Lower ",{"$f":"'A01'!C$43","v":1},null,"Worksheet A01"]
[null,"Upper ",{"$f":"'A01'!C$44","v":1},null,"Worksheet A01"]
["Dose","Dose","Conc × Amnt ×TEF"]
[null,"Central",{"$f":"C21*C25/C$7","v":3.4019399999999997},"mg B/kg bw","Eq"]
[null,"Lower",{"$f":"C22*C26/C$7","v":1.7009699999999999},null,"Eq"]
[null,"Upper",{"$f":"C23*C27/C$7","v":6.8038799999999995},null,"Eq"]

{"sheet":"F04","index":50,"n_rows":31,"n_cols":5,"rows_kept":31,"cut":false,"hidden":false,"merged":[[23,0,26,0],[27,0,30,0],[0,0,0,4],[2,1,2,3],[4,1,4,3],[10,0,13,0],[15,0,18,0],[19,0,22,0],[20,3,22,3]]}
["Consumption of Fixed Amount of Compound by a Bird, small, acute exposure"]
["Short Title","Direct Consumption",null,null,"DirConStump"]
["Receptor","Bird, small"]
["Duration","Acute"]
["Material consumed","Boxax as boron equivalents"]
["Parameter/Assumption","Code / Range","Equation/   Value","Units","Reference/Designation"]
["Body Weight","BW",0.01,"kg","Scenario parameter"]
["Stump Application Rate","StumpRate",{"$f":"'A01'!C$4","v":5.2499999999999997E-4},"lb B/ft2","Worksheet A01"]
["Converation for lbs to mg.","Conv1",453592,"mg/lb"]
["Mg B/ft2","mg/ft",{"$f":"C8*C9","v":238.13579999999999},"mg/ft2","Eq"]
["Area (ft2) cleared by 70 kg deer","Area"]
[null,"Central ",1,"ft2","Scenario parameter"]
[null,"Lower ",0.5]
[null,"Upper ",2]
["Body Weight of deer","BWDeer",70,"kg","Scenario parameter"]
["Area (ft2) cleared","Area"]
[null,"Central ",{"$f":"C12*($C$7/$C$15)","v":1.4285714285714287E-4},"ft2","Eq"]
[null,"Lower ",{"$f":"C13*($C$7/$C$15)","v":7.1428571428571434E-5},null,"Eq"]
[null,"Upper ",2.8571428571428574E-4,null,"Eq"]
["Amount of boronl consumed","Amnt"]
[null,"Central ",{"$f":"$C$10 *C17","v":3.4019399999999998E-2},"mg B","Eq"]
[null,"Lower ",{"$f":"$C$10 *C18","v":1.7009699999999999E-2},null,"Eq"]
[null,"Upper ",6.8038799999999997E-2,null,"Eq"]
["Toxic Equivalency Factor for formulation:  (See risk assessment if this has a value other than 1.)","TEF"]
[null,"Central ",{"$f":"'A01'!C$42","v":1},"Unitless","Worksheet A01"]
[null,"Lower ",{"$f":"'A01'!C$43","v":1},null,"Worksheet A01"]
[null,"Upper ",{"$f":"'A01'!C$44","v":1},null,"Worksheet A01"]
["Dose","Dose","Conc × Amnt ×TEF"]
[null,"Central",{"$f":"C21*C25/C$7","v":3.4019399999999997},"mg B/kg bw","Eq"]
[null,"Lower",{"$f":"C22*C26/C$7","v":1.7009699999999999},null,"Eq"]
[null,"Upper",{"$f":"C23*C27/C$7","v":6.8038799999999995},null,"Eq"]

{"sheet":"F05a","index":51,"n_rows":20,"n_cols":5,"rows_kept":20,"cut":false,"hidden":false,"merged":[[16,0,19,0],[0,0,0,4],[1,1,1,3],[2,1,2,3],[5,0,8,0],[11,0,13,0],[14,0,15,0]]}
["Consumption of contaminated water by Mammal, small, Accidental Spill "]
["Short Title","Accidental Spill",null,null,"WatAlloV6"]
["Receptor","Mammal, small"]
["Duration","Acute",null,null,"Scenario parameter"]
["Parameter/Assumption","Code / Range","Equation/   Value","Units","Reference/Designation"]
["Concentration in water","ConcWat"]
[null,"Central ",{"$f":"B04b!Acute_C","v":0.23813999999999999},"mg/L","='B04b'!Acute_C"]
[null,"Lower ",{"$f":"B04b!Acute_L","v":4.7627999999999997E-2},null,"='B04b'!Acute_L"]
[null,"Upper ",{"$f":"B04b!Acute_U","v":0.47627999999999998},null,"='B04b'!Acute_U"]
["Receptor"]
["Body weight","BW",{"$f":"A02b!$C$71","v":0.02},"kg","Default"]
["Allometric coefficients forwater consumption per day in liters and BW in kilograms"]
[null,"alpha",{"$f":"A02b!$C$79","v":9.9000000000000005E-2},null,"U.S. EPA/ORD 1993"]
[null,"beta",{"$f":"A02b!$C$80","v":0.9},null,"U.S. EPA/ORD 1993"]
["Amount of water consumed per day",null,"Amnt = alpha BW beta"]
[null,"Amnt",{"$f":"C13*(C11^C14)","v":2.9279401205240612E-3},"liters","Eq"]
["Absorbed Dose","Dose","ConcWat  × Amnt ÷ BW"]
[null,"Central ",{"$f":"C7*C$16/C$11","v":3.486298301508E-2},"mg/kg","Eq"]
[null,"Lower ",{"$f":"C8*C$16/C$11","v":6.9725966030159984E-3},"mg/kg","Eq"]
[null,"Upper ",{"$f":"C9*C$16/C$11","v":6.972596603016E-2},"mg/kg","Eq"]

{"sheet":"F05b","index":52,"n_rows":20,"n_cols":5,"rows_kept":20,"cut":false,"hidden":false,"merged":[[16,0,19,0],[0,0,0,4],[1,1,1,3],[2,1,2,3],[5,0,8,0],[11,0,13,0],[14,0,15,0]]}
["Consumption of contaminated water by Mammal, small, Peak Concentrations "]
["Short Title","Peak Concentrations",null,null,"WatAlloV6"]
["Receptor","Mammal, small"]
["Duration","Acute",null,null,"Scenario parameter"]
["Parameter/Assumption","Code / Range","Equation/   Value","Units","Reference/Designation"]
["Concentration in water","ConcWat"]
[null,"Central ",{"$f":"B04a!Acute_C","v":4.3049999999999998E-3},"mg/L","='B04a'!Acute_C"]
[null,"Lower ",{"$f":"B04a!Acute_L","v":1.26E-10},null,"='B04a'!Acute_L"]
[null,"Upper ",{"$f":"B04a!Acute_U","v":4.5149999999999996E-2},null,"='B04a'!Acute_U"]
["Receptor"]
["Body weight","BW",{"$f":"A02b!$C$71","v":0.02},"kg","Default"]
["Allometric coefficients forwater consumption per day in liters and BW in kilograms"]
[null,"alpha",{"$f":"A02b!$C$79","v":9.9000000000000005E-2},null,"U.S. EPA/ORD 1993"]
[null,"beta",{"$f":"A02b!$C$80","v":0.9},null,"U.S. EPA/ORD 1993"]
["Amount of water consumed per day",null,"Amnt = alpha BW beta"]
[null,"Amnt",{"$f":"C13*(C11^C14)","v":2.9279401205240612E-3},"liters","Eq"]
["Absorbed Dose","Dose","ConcWat  × Amnt ÷ BW"]
[null,"Central ",{"$f":"C7*C$16/C$11","v":6.3023911094280409E-4},"mg/kg","Eq"]
[null,"Lower ",{"$f":"C8*C$16/C$11","v":1.8446022759301586E-11},"mg/kg","Eq"]
[null,"Upper ",{"$f":"C9*C$16/C$11","v":6.6098248220830677E-3},"mg/kg","Eq"]

{"sheet":"F05c","index":53,"n_rows":20,"n_cols":5,"rows_kept":20,"cut":false,"hidden":false,"merged":[[16,0,19,0],[0,0,0,4],[1,1,1,3],[2,1,2,3],[5,0,8,0],[11,0,13,0],[14,0,15,0]]}
["Consumption of contaminated water by Mammal, small, Longer-term Concentrations "]
["Short Title","Longer-term Concentrations",null,null,"WatAlloV6"]
["Receptor","Mammal, small"]
["Duration","Chronic",null,null,"Scenario parameter"]
["Parameter/Assumption","Code / Range","Equation/   Value","Units","Reference/Designation"]
["Concentration in water","ConcWat"]
[null,"Central ",{"$f":"B04a!Chronic_C","v":1.8899999999999998E-3},"mg/L","='B04a'!Chronic_C"]
[null,"Lower ",{"$f":"B04a!Chronic_L","v":6.3000000000000002E-11},null,"='B04a'!Chronic_L"]
[null,"Upper ",{"$f":"B04a!Chronic_U","v":2.4150000000000001E-2},null,"='B04a'!Chronic_U"]
["Receptor"]
["Body weight","BW",{"$f":"A02b!$C$71","v":0.02},"kg","Default"]
["Allometric coefficients forwater consumption per day in liters and BW in kilograms"]
[null,"alpha",{"$f":"A02b!$C$79","v":9.9000000000000005E-2},null,"U.S. EPA/ORD 1993"]
[null,"beta",{"$f":"A02b!$C$80","v":0.9},null,"U.S. EPA/ORD 1993"]
["Amount of water consumed per day",null,"Amnt = alpha BW beta"]
[null,"Amnt",{"$f":"C13*(C11^C14)","v":2.9279401205240612E-3},"liters","Eq"]
["Absorbed Dose","Dose","ConcWat  × Amnt ÷ BW"]
[null,"Central ",{"$f":"C7*C$16/C$11","v":2.766903413895237E-4},"mg/kg","Eq"]
[null,"Lower ",{"$f":"C8*C$16/C$11","v":9.223011379650793E-12},"mg/kg","Eq"]
[null,"Upper ",{"$f":"C9*C$16/C$11","v":3.5354876955328036E-3},"mg/kg","Eq"]

{"sheet":"F06a","index":54,"n_rows":20,"n_cols":5,"rows_kept":20,"cut":false,"hidden":false,"merged":[[16,0,19,0],[0,0,0,4],[1,1,1,3],[2,1,2,3],[5,0,8,0],[11,0,13,0],[14,0,15,0]]}
["Consumption of contaminated water by Bird, small, Accidental Spill "]
["Short Title","Accidental Spill",null,null,"WatAlloV6"]
["Receptor","Bird, small"]
["Duration","Acute",null,null,"Scenario parameter"]
["Parameter/Assumption","Code / Range","Equation/   Value","Units","Reference/Designation"]
["Concentration in water","ConcWat"]
[null,"Central ",{"$f":"B04b!Acute_C","v":0.23813999999999999},"mg/L","='B04b'!Acute_C"]
[null,"Lower ",{"$f":"B04b!Acute_L","v":4.7627999999999997E-2},null,"='B04b'!Acute_L"]
[null,"Upper ",{"$f":"B04b!Acute_U","v":0.47627999999999998},null,"='B04b'!Acute_U"]
["Receptor"]
["Body weight","BW",{"$f":"A02b!$C$31","v":0.01},"kg","Default"]
["Allometric coefficients forwater consumption per day in liters and BW in kilograms"]
[null,"alpha",{"$f":"A02b!$C$34","v":5.8999999999999997E-2},null,"U.S. EPA/ORD 1993"]
[null,"beta",{"$f":"A02b!$C$35","v":0.67},null,"U.S. EPA/ORD 1993"]
["Amount of water consumed per day",null,"Amnt = alpha BW beta"]
[null,"Amnt",{"$f":"C13*(C11^C14)","v":2.6968203187277624E-3},"liters","Eq"]
["Absorbed Dose","Dose","ConcWat  × Amnt ÷ BW"]
[null,"Central ",{"$f":"C7*C$16/C$11","v":6.422207907018293E-2},"mg/kg","Eq"]
[null,"Lower ",{"$f":"C8*C$16/C$11","v":1.2844415814036586E-2},"mg/kg","Eq"]
[null,"Upper ",{"$f":"C9*C$16/C$11","v":0.12844415814036586},"mg/kg","Eq"]

{"sheet":"F06b","index":55,"n_rows":20,"n_cols":5,"rows_kept":20,"cut":false,"hidden":false,"merged":[[16,0,19,0],[0,0,0,4],[1,1,1,3],[2,1,2,3],[5,0,8,0],[11,0,13,0],[14,0,15,0]]}
["Consumption of contaminated water by Bird, small, Peak Concentrations "]
["Short Title","Peak Concentrations",null,null,"WatAlloV6"]
["Receptor","Bird, small"]
["Duration","Acute",null,null,"Scenario parameter"]
["Parameter/Assumption","Code / Range","Equation/   Value","Units","Reference/Designation"]
["Concentration in water","ConcWat"]
[null,"Central ",{"$f":"B04a!Acute_C","v":4.3049999999999998E-3},"mg/L","='B04a'!Acute_C"]
[null,"Lower ",{"$f":"B04a!Acute_L","v":1.26E-10},null,"='B04a'!Acute_L"]
[null,"Upper ",{"$f":"B04a!Acute_U","v":4.5149999999999996E-2},null,"='B04a'!Acute_U"]
["Receptor"]
["Body weight","BW",{"$f":"A02b!$C$31","v":0.01},"kg","Default"]
["Allometric coefficients forwater consumption per day in liters and BW in kilograms"]
[null,"alpha",{"$f":"A02b!$C$34","v":5.8999999999999997E-2},null,"U.S. EPA/ORD 1993"]
[null,"beta",{"$f":"A02b!$C$35","v":0.67},null,"U.S. EPA/ORD 1993"]
["Amount of water consumed per day",null,"Amnt = alpha BW beta"]
[null,"Amnt",{"$f":"C13*(C11^C14)","v":2.6968203187277624E-3},"liters","Eq"]
["Absorbed Dose","Dose","ConcWat  × Amnt ÷ BW"]
[null,"Central ",{"$f":"C7*C$16/C$11","v":1.1609811472123018E-3},"mg/kg","Eq"]
[null,"Lower ",{"$f":"C8*C$16/C$11","v":3.3979936015969811E-11},"mg/kg","Eq"]
[null,"Upper ",{"$f":"C9*C$16/C$11","v":1.2176143739055846E-2},"mg/kg","Eq"]

{"sheet":"F06c","index":56,"n_rows":20,"n_cols":5,"rows_kept":20,"cut":false,"hidden":false,"merged":[[16,0,19,0],[0,0,0,4],[1,1,1,3],[2,1,2,3],[5,0,8,0],[11,0,13,0],[14,0,15,0]]}
["Consumption of contaminated water by Bird, small, Longer-term Concentrations "]
["Short Title","Longer-term Concentrations",null,null,"WatAlloV6"]
["Receptor","Bird, small"]
["Duration","Chronic",null,null,"Scenario parameter"]
["Parameter/Assumption","Code / Range","Equation/   Value","Units","Reference/Designation"]
["Concentration in water","ConcWat"]
[null,"Central ",{"$f":"B04a!Chronic_C","v":1.8899999999999998E-3},"mg/L","='B04a'!Chronic_C"]
[null,"Lower ",{"$f":"B04a!Chronic_L","v":6.3000000000000002E-11},null,"='B04a'!Chronic_L"]
[null,"Upper ",{"$f":"B04a!Chronic_U","v":2.4150000000000001E-2},null,"='B04a'!Chronic_U"]
["Receptor"]
["Body weight","BW",{"$f":"A02b!$C$31","v":0.01},"kg","Default"]
["Allometric coefficients forwater consumption per day in liters and BW in kilograms"]
[null,"alpha",{"$f":"A02b!$C$34","v":5.8999999999999997E-2},null,"U.S. EPA/ORD 1993"]
[null,"beta",{"$f":"A02b!$C$35","v":0.67},null,"U.S. EPA/ORD 1993"]
["Amount of water consumed per day",null,"Amnt = alpha BW beta"]
[null,"Amnt",{"$f":"C13*(C11^C14)","v":2.6968203187277624E-3},"liters","Eq"]
["Absorbed Dose","Dose","ConcWat  × Amnt ÷ BW"]
[null,"Central ",{"$f":"C7*C$16/C$11","v":5.0969904023954701E-4},"mg/kg","Eq"]
[null,"Lower ",{"$f":"C8*C$16/C$11","v":1.6989968007984906E-11},"mg/kg","Eq"]
[null,"Upper ",{"$f":"C9*C$16/C$11","v":6.5128210697275469E-3},"mg/kg","Eq"]

{"sheet":"F07a","index":57,"n_rows":50,"n_cols":5,"rows_kept":50,"cut":false,"hidden":false,"merged":[[36,0,39,0],[41,0,44,0],[45,0,48,0],[12,0,15,0],[16,0,19,0],[22,0,24,0],[27,0,28,0],[30,0,31,0],[32,0,33,0],[7,0,10,0],[0,0,0,4],[1,1,1,3],[2,1,2,3],[3,1,3,3],[4,1,4,3]]}
["Acute scenario for the consumption of Contaminated Fish (Accidental Spill) by Mammal, carnivorous "]
["Short Title","Fish consumption, accidental spill",null,null,"FishKcalV6"]
["Predator","Mammal, carnivorous"]
["Food Item (Prey)","Fish"]
["Duration","Acute",null,null,"Scenario parameter"]
["Parameter/Assumption","Code / Range","Equation/   Value","Units","Reference/Designation"]
["Water"]
["Concentration in water","ConcWat"]
[null,"Central ",{"$f":"B04b!Acute_C","v":0.23813999999999999},"mg/L","='B04b'!Acute_C"]
[null,"Lower ",{"$f":"B04b!Acute_L","v":4.7627999999999997E-2},null,"='B04b'!Acute_L"]
[null,"Upper ",{"$f":"B04b!Acute_U","v":0.47627999999999998},null,"='B04b'!Acute_U"]
["Fish"]
["Bioconcentration factor","BCF"]
[null,"Central ",{"$f":"'B01'!$C$6","v":1},"L/kg","Section 3.2.3.5"]
[null,"Lower ",{"$f":"'B01'!$C$6","v":1},null,"Section 3.2.3.5"]
[null,"Upper ",{"$f":"'B01'!$C$6","v":1},null,"Section 3.2.3.5"]
["Concentration in fish","ConcFish","ConcWat × BCF"]
[null,"Central ",{"$f":"C9*C14","v":0.23813999999999999},"mg/kg","Eq"]
[null,"Lower ",{"$f":"C10*C15","v":4.7627999999999997E-2},null,"Eq"]
[null,"Upper ",{"$f":"C11*C16","v":0.47627999999999998},null,"Eq"]
["Receptor"]
["Body weight","BW",{"$f":"A02b!$C$47","v":5},"kg","U.S. EPA/ORD 1993"]
["Allometric coefficients for caloric requirement per day in kilocalories and BW in grams"]
[null,"alpha",{"$f":"A02b!$C$48","v":0.61670000000000003},null,"U.S. EPA/ORD 1993"]
[null,"beta",{"$f":"A02b!$C$49","v":0.86199999999999999},null,"U.S. EPA/ORD 1993"]
["Caloric requirement per day","KR",{"$f":"C24*(C22*1000)^C25","v":951.88852658889334},"kcal/day","Eq"]
["Caloric content of commodity (dry weight)","KCD",{"$f":"'A03'!$E$59","v":4.47},"kcal/gdw [Note 1]","U.S. EPA/ORD 1993"]
["Food consumed per day (dry weight)","AmntDry"," = KR ÷ KCD"]
[null,null,{"$f":"C26/C27","v":212.95045337559137},"gdry/day","Eq"]
["Water content of vegetation as a proportion","PropWater",{"$f":"'A03'!$E$60","v":0.7},"gwater/gfood","Ali et al. 2005"]
["Dry weight content of vegetation as a proportion","PropDry"," = 1-PropWater"]
[null,null,{"$f":"1-C30","v":0.30000000000000004},"gdry/gfood","Eq"]
["Amount of fish consumed per day,  wet weight","AmntFish"," = (AmntDry ÷ PropDry) ÷ (1000g/kg)"]
[null,"Central ",{"$f":"(C29/C32)/1000","v":0.70983484458530455},"kgfood/day","Eq"]
[null,"Lower ",{"$f":"C34*0.3","v":0.21295045337559135},"Note 1","Eq"]
[null,"Upper ",{"$f":"C34*1.7","v":1.2067192357950176},"Note 1","Eq"]
["Proportion of diet that is contaminated","Prop"]
[null,"Central ",0.3,"Unitless","Scenario parameter"]
[null,"Lower ",0.1,null,"Scenario parameter"]
[null,"Upper ",1,null,"Scenario parameter"]
["Dose"]
["Toxic Equivalency Factor for formulation:  (See risk assessment if this has a value other than 1.)","TEF"]
[null,"Central ",{"$f":"'A01'!C$42","v":1},"Unitless","Worksheet A01"]
[null,"Lower ",{"$f":"'A01'!C$43","v":1},"Note 2","Worksheet A01"]
[null,"Upper ",{"$f":"'A01'!C$44","v":1},"Note 2","Worksheet A01"]
["Dose","Dose","= ConcFish × AmntFish × Prop ÷ BW"]
[null,"Central ",{"$f":"C18*C34*C38/C$22","v":1.0142404193372666E-2},"mg/kg","Eq"]
[null,"Lower ",{"$f":"C19*C35*C39/C$22","v":2.0284808386745331E-4},"mg/kg","Eq"]
[null,"Upper ",0.11494724752489019,"mg/kg","Eq"]
[null,null,null,null,"FishKcalV6"]

{"sheet":"F07b","index":58,"n_rows":50,"n_cols":5,"rows_kept":50,"cut":false,"hidden":false,"merged":[[36,0,39,0],[41,0,44,0],[45,0,48,0],[12,0,15,0],[16,0,19,0],[22,0,24,0],[27,0,28,0],[30,0,31,0],[32,0,33,0],[7,0,10,0],[0,0,0,4],[1,1,1,3],[2,1,2,3],[3,1,3,3],[4,1,4,3]]}
["Acute scenario for the consumption of Contaminated Fish (Peak) by Mammal, carnivorous "]
["Short Title","Fish consumption, accidental spill",null,null,"FishKcalV6"]
["Predator","Mammal, carnivorous"]
["Food Item (Prey)","Fish"]
["Duration","Acute",null,null,"Scenario parameter"]
["Parameter/Assumption","Code / Range","Equation/   Value","Units","Reference/Designation"]
["Water"]
["Concentration in water","ConcWat"]
[null,"Central ",{"$f":"B04a!Acute_C","v":4.3049999999999998E-3},"mg/L","='B04a'!Acute_C"]
[null,"Lower ",{"$f":"B04a!Acute_L","v":1.26E-10},null,"='B04a'!Acute_L"]
[null,"Upper ",{"$f":"B04a!Acute_U","v":4.5149999999999996E-2},null,"='B04a'!Acute_U"]
["Fish"]
["Bioconcentration factor","BCF"]
[null,"Central ",{"$f":"'B01'!$C$6","v":1},"L/kg","Section 3.2.3.5"]
[null,"Lower ",{"$f":"'B01'!$C$6","v":1},null,"Section 3.2.3.5"]
[null,"Upper ",{"$f":"'B01'!$C$6","v":1},null,"Section 3.2.3.5"]
["Concentration in fish","ConcFish","ConcWat × BCF"]
[null,"Central ",{"$f":"C9*C14","v":4.3049999999999998E-3},"mg/kg","Eq"]
[null,"Lower ",{"$f":"C10*C15","v":1.26E-10},null,"Eq"]
[null,"Upper ",{"$f":"C11*C16","v":4.5149999999999996E-2},null,"Eq"]
["Receptor"]
["Body weight","BW",{"$f":"A02b!$C$47","v":5},"kg","U.S. EPA/ORD 1993"]
["Allometric coefficients for caloric requirement per day in kilocalories and BW in grams"]
[null,"alpha",{"$f":"A02b!$C$48","v":0.61670000000000003},null,"U.S. EPA/ORD 1993"]
[null,"beta",{"$f":"A02b!$C$49","v":0.86199999999999999},null,"U.S. EPA/ORD 1993"]
["Caloric requirement per day","KR",{"$f":"C24*(C22*1000)^C25","v":951.88852658889334},"kcal/day","Eq"]
["Caloric content of commodity (dry weight)","KCD",{"$f":"'A03'!$E$59","v":4.47},"kcal/gdw [Note 1]","U.S. EPA/ORD 1993"]
["Food consumed per day (dry weight)","AmntDry"," = KR ÷ KCD"]
[null,null,{"$f":"C26/C27","v":212.95045337559137},"gdry/day","Eq"]
["Water content of vegetation as a proportion","PropWater",{"$f":"'A03'!$E$60","v":0.7},"gwater/gfood","Ali et al. 2005"]
["Dry weight content of vegetation as a proportion","PropDry"," = 1-PropWater"]
[null,null,{"$f":"1-C30","v":0.30000000000000004},"gdry/gfood","Eq"]
["Amount of fish consumed per day,  wet weight","AmntFish"," = (AmntDry ÷ PropDry) ÷ (1000g/kg)"]
[null,"Central ",{"$f":"(C29/C32)/1000","v":0.70983484458530455},"kgfood/day","Eq"]
[null,"Lower ",{"$f":"C34*0.3","v":0.21295045337559135},"Note 1","Eq"]
[null,"Upper ",{"$f":"C34*1.7","v":1.2067192357950176},"Note 1","Eq"]
["Proportion of diet that is contaminated","Prop"]
[null,"Central ",0.3,"Unitless","Scenario parameter"]
[null,"Lower ",0.1,null,"Scenario parameter"]
[null,"Upper ",1,null,"Scenario parameter"]
["Dose"]
["Toxic Equivalency Factor for formulation:  (See risk assessment if this has a value other than 1.)","TEF"]
[null,"Central ",{"$f":"'A01'!C$42","v":1},"Unitless","Worksheet A01"]
[null,"Lower ",{"$f":"'A01'!C$43","v":1},"Note 2","Worksheet A01"]
[null,"Upper ",{"$f":"'A01'!C$44","v":1},"Note 2","Worksheet A01"]
["Dose","Dose","= ConcFish × AmntFish × Prop ÷ BW"]
[null,"Central ",{"$f":"C18*C34*C38/C$22","v":1.8335034035638415E-4},"mg/kg","Eq"]
[null,"Lower ",{"$f":"C19*C35*C39/C$22","v":5.366351425064903E-13},"mg/kg","Eq"]
[null,"Upper ",1.0896674699229007E-2,"mg/kg","Eq"]
[null,null,null,null,"FishKcalV6"]

{"sheet":"F07c","index":59,"n_rows":50,"n_cols":5,"rows_kept":50,"cut":false,"hidden":false,"merged":[[36,0,39,0],[41,0,44,0],[45,0,48,0],[12,0,15,0],[16,0,19,0],[22,0,24,0],[27,0,28,0],[30,0,31,0],[32,0,33,0],[7,0,10,0],[0,0,0,4],[1,1,1,3],[2,1,2,3],[3,1,3,3],[4,1,4,3]]}
["Chronic scenario for the consumption of Contaminated Fish (Longer-term) by Mammal, carnivorous "]
["Short Title","Fish consumption, accidental spill",null,null,"FishKcalV6"]
["Predator","Mammal, carnivorous"]
["Food Item (Prey)","Fish"]
["Duration","Chronic",null,null,"Scenario parameter"]
["Parameter/Assumption","Code / Range","Equation/   Value","Units","Reference/Designation"]
["Water"]
["Concentration in water","ConcWat"]
[null,"Central ",{"$f":"B04a!Chronic_C","v":1.8899999999999998E-3},"mg/L","='B04a'!Chronic_C"]
[null,"Lower ",{"$f":"B04a!Chronic_L","v":6.3000000000000002E-11},null,"='B04a'!Chronic_L"]
[null,"Upper ",{"$f":"B04a!Chronic_U","v":2.4150000000000001E-2},null,"='B04a'!Chronic_U"]
["Fish"]
["Bioconcentration factor","BCF"]
[null,"Central ",{"$f":"'B01'!$C$6","v":1},"L/kg","Section 3.2.3.5"]
[null,"Lower ",{"$f":"'B01'!$C$6","v":1},null,"Section 3.2.3.5"]
[null,"Upper ",{"$f":"'B01'!$C$6","v":1},null,"Section 3.2.3.5"]
["Concentration in fish","ConcFish","ConcWat × BCF"]
[null,"Central ",{"$f":"C9*C14","v":1.8899999999999998E-3},"mg/kg","Eq"]
[null,"Lower ",{"$f":"C10*C15","v":6.3000000000000002E-11},null,"Eq"]
[null,"Upper ",{"$f":"C11*C16","v":2.4150000000000001E-2},null,"Eq"]
["Receptor"]
["Body weight","BW",{"$f":"A02b!$C$47","v":5},"kg","U.S. EPA/ORD 1993"]
["Allometric coefficients for caloric requirement per day in kilocalories and BW in grams"]
[null,"alpha",{"$f":"A02b!$C$48","v":0.61670000000000003},null,"U.S. EPA/ORD 1993"]
[null,"beta",{"$f":"A02b!$C$49","v":0.86199999999999999},null,"U.S. EPA/ORD 1993"]
["Caloric requirement per day","KR",{"$f":"C24*(C22*1000)^C25","v":951.88852658889334},"kcal/day","Eq"]
["Caloric content of commodity (dry weight)","KCD",{"$f":"'A03'!$E$59","v":4.47},"kcal/gdw [Note 1]","U.S. EPA/ORD 1993"]
["Food consumed per day (dry weight)","AmntDry"," = KR ÷ KCD"]
[null,null,{"$f":"C26/C27","v":212.95045337559137},"gdry/day","Eq"]
["Water content of vegetation as a proportion","PropWater",{"$f":"'A03'!$E$60","v":0.7},"gwater/gfood","Ali et al. 2005"]
["Dry weight content of vegetation as a proportion","PropDry"," = 1-PropWater"]
[null,null,{"$f":"1-C30","v":0.30000000000000004},"gdry/gfood","Eq"]
["Amount of fish consumed per day,  wet weight","AmntFish"," = (AmntDry ÷ PropDry) ÷ (1000g/kg)"]
[null,"Central ",{"$f":"(C29/C32)/1000","v":0.70983484458530455},"kgfood/day","Eq"]
[null,"Lower ",{"$f":"C34*0.3","v":0.21295045337559135},"Note 1","Eq"]
[null,"Upper ",{"$f":"C34*1.7","v":1.2067192357950176},"Note 1","Eq"]
["Proportion of diet that is contaminated","Prop"]
[null,"Central ",0.3,"Unitless","Scenario parameter"]
[null,"Lower ",0.1,null,"Scenario parameter"]
[null,"Upper ",1,null,"Scenario parameter"]
["Dose"]
["Toxic Equivalency Factor for formulation:  (See risk assessment if this has a value other than 1.)","TEF"]
[null,"Central ",{"$f":"'A01'!C$42","v":1},"Unitless","Worksheet A01"]
[null,"Lower ",{"$f":"'A01'!C$43","v":1},"Note 2","Worksheet A01"]
[null,"Upper ",{"$f":"'A01'!C$44","v":1},"Note 2","Worksheet A01"]
["Dose","Dose","= ConcFish × AmntFish × Prop ÷ BW"]
[null,"Central ",{"$f":"C18*C34*C38/C$22","v":8.0495271375973526E-5},"mg/kg","Eq"]
[null,"Lower ",{"$f":"C19*C35*C39/C$22","v":2.6831757125324515E-13},"mg/kg","Eq"]
[null,"Upper ",5.8284539088899355E-3,"mg/kg","Eq"]
[null,null,null,null,"FishKcalV6"]

{"sheet":"F08a","index":60,"n_rows":50,"n_cols":5,"rows_kept":50,"cut":false,"hidden":false,"merged":[[36,0,39,0],[41,0,44,0],[45,0,48,0],[12,0,15,0],[16,0,19,0],[22,0,24,0],[27,0,28,0],[30,0,31,0],[32,0,33,0],[7,0,10,0],[0,0,0,4],[1,1,1,3],[2,1,2,3],[3,1,3,3],[4,1,4,3]]}
["Acute scenario for the consumption of Contaminated Fish (Accidental Spill) by Bird, piscivorous "]
["Short Title","Fish consumption, accidental spill",null,null,"FishKcalV6"]
["Predator","Bird, piscivorous"]
["Food Item (Prey)","Fish"]
["Duration","Acute",null,null,"Scenario parameter"]
["Parameter/Assumption","Code / Range","Equation/   Value","Units","Reference/Designation"]
["Water"]
["Concentration in water","ConcWat"]
[null,"Central ",{"$f":"B04b!Acute_C","v":0.23813999999999999},"mg/L","='B04b'!Acute_C"]
[null,"Lower ",{"$f":"B04b!Acute_L","v":4.7627999999999997E-2},null,"='B04b'!Acute_L"]
[null,"Upper ",{"$f":"B04b!Acute_U","v":0.47627999999999998},null,"='B04b'!Acute_U"]
["Fish"]
["Bioconcentration factor","BCF"]
[null,"Central ",{"$f":"'B01'!$C$6","v":1},"L/kg","Section 3.2.3.5"]
[null,"Lower ",{"$f":"'B01'!$C$6","v":1},null,"Section 3.2.3.5"]
[null,"Upper ",{"$f":"'B01'!$C$6","v":1},null,"Section 3.2.3.5"]
["Concentration in fish","ConcFish","ConcWat × BCF"]
[null,"Central ",{"$f":"C9*C14","v":0.23813999999999999},"mg/kg","Eq"]
[null,"Lower ",{"$f":"C10*C15","v":4.7627999999999997E-2},null,"Eq"]
[null,"Upper ",{"$f":"C11*C16","v":0.47627999999999998},null,"Eq"]
["Receptor"]
["Body weight","BW",{"$f":"A02b!$C$24","v":2.4},"kg","Sibley 2000"]
["Allometric coefficients for caloric requirement per day in kilocalories and BW in grams"]
[null,"alpha",{"$f":"A02b!$C$27","v":1.9159999999999999},null,"U.S. EPA/ORD 1993"]
[null,"beta",{"$f":"A02b!$C$28","v":0.70399999999999996},null,"U.S. EPA/ORD 1993"]
["Caloric requirement per day","KR",{"$f":"C24*(C22*1000)^C25","v":459.26591923752829},"kcal/day","Eq"]
["Caloric content of commodity (dry weight)","KCD",{"$f":"'A03'!$E$36","v":3.87},"kcal/gdw [Note 1]","U.S. EPA/ORD 1993"]
["Food consumed per day (dry weight)","AmntDry"," = KR ÷ KCD"]
[null,null,{"$f":"C26/C27","v":118.67336414406415},"gdry/day","Eq"]
["Water content of vegetation as a proportion","PropWater",{"$f":"'A03'!$E$37","v":0.7},"gwater/gfood","Ali et al. 2005"]
["Dry weight content of vegetation as a proportion","PropDry"," = 1-PropWater"]
[null,null,{"$f":"1-C30","v":0.30000000000000004},"gdry/gfood","Eq"]
["Amount of fish consumed per day,  wet weight","AmntFish"," = (AmntDry ÷ PropDry) ÷ (1000g/kg)"]
[null,"Central ",{"$f":"(C29/C32)/1000","v":0.39557788048021375},"kgfood/day","Eq"]
[null,"Lower ",{"$f":"C34*0.3","v":0.11867336414406413},"Note 1","Eq"]
[null,"Upper ",{"$f":"C34*1.7","v":0.67248239681636335},"Note 1","Eq"]
["Proportion of diet that is contaminated","Prop"]
[null,"Central ",0.3,"Unitless","Scenario parameter"]
[null,"Lower ",0.1,null,"Scenario parameter"]
[null,"Upper ",1,null,"Scenario parameter"]
["Dose"]
["Toxic Equivalency Factor for formulation:  (See risk assessment if this has a value other than 1.)","TEF"]
[null,"Central ",{"$f":"'A01'!C$42","v":1},"Unitless","Worksheet A01"]
[null,"Lower ",{"$f":"'A01'!C$43","v":1},"Note 2","Worksheet A01"]
[null,"Upper ",{"$f":"'A01'!C$44","v":1},"Note 2","Worksheet A01"]
["Dose","Dose","= ConcFish × AmntFish × Prop ÷ BW"]
[null,"Central ",{"$f":"C18*C34*C38/C$22","v":1.1775364557194763E-2},"mg/kg","Eq"]
[null,"Lower ",{"$f":"C19*C35*C39/C$22","v":2.3550729114389524E-4},"mg/kg","Eq"]
[null,"Upper ",0.1334541316482073,"mg/kg","Eq"]
[null,null,null,null,"FishKcalV6"]

{"sheet":"F08b","index":61,"n_rows":50,"n_cols":5,"rows_kept":50,"cut":false,"hidden":false,"merged":[[36,0,39,0],[41,0,44,0],[45,0,48,0],[12,0,15,0],[16,0,19,0],[22,0,24,0],[27,0,28,0],[30,0,31,0],[32,0,33,0],[7,0,10,0],[0,0,0,4],[1,1,1,3],[2,1,2,3],[3,1,3,3],[4,1,4,3]]}
["Acute scenario for the consumption of Contaminated Fish (Peak) by Bird, piscivorous "]
["Short Title","Fish consumption, accidental spill",null,null,"FishKcalV6"]
["Predator","Bird, piscivorous"]
["Food Item (Prey)","Fish"]
["Duration","Acute",null,null,"Scenario parameter"]
["Parameter/Assumption","Code / Range","Equation/   Value","Units","Reference/Designation"]
["Water"]
["Concentration in water","ConcWat"]
[null,"Central ",{"$f":"B04a!Acute_C","v":4.3049999999999998E-3},"mg/L","='B04a'!Acute_C"]
[null,"Lower ",{"$f":"B04a!Acute_L","v":1.26E-10},null,"='B04a'!Acute_L"]
[null,"Upper ",{"$f":"B04a!Acute_U","v":4.5149999999999996E-2},null,"='B04a'!Acute_U"]
["Fish"]
["Bioconcentration factor","BCF"]
[null,"Central ",{"$f":"'B01'!$C$6","v":1},"L/kg","Section 3.2.3.5"]
[null,"Lower ",{"$f":"'B01'!$C$6","v":1},null,"Section 3.2.3.5"]
[null,"Upper ",{"$f":"'B01'!$C$6","v":1},null,"Section 3.2.3.5"]
["Concentration in fish","ConcFish","ConcWat × BCF"]
[null,"Central ",{"$f":"C9*C14","v":4.3049999999999998E-3},"mg/kg","Eq"]
[null,"Lower ",{"$f":"C10*C15","v":1.26E-10},null,"Eq"]
[null,"Upper ",{"$f":"C11*C16","v":4.5149999999999996E-2},null,"Eq"]
["Receptor"]
["Body weight","BW",{"$f":"A02b!$C$24","v":2.4},"kg","Sibley 2000"]
["Allometric coefficients for caloric requirement per day in kilocalories and BW in grams"]
[null,"alpha",{"$f":"A02b!$C$27","v":1.9159999999999999},null,"U.S. EPA/ORD 1993"]
[null,"beta",{"$f":"A02b!$C$28","v":0.70399999999999996},null,"U.S. EPA/ORD 1993"]
["Caloric requirement per day","KR",{"$f":"C24*(C22*1000)^C25","v":459.26591923752829},"kcal/day","Eq"]
["Caloric content of commodity (dry weight)","KCD",{"$f":"'A03'!$E$36","v":3.87},"kcal/gdw [Note 1]","U.S. EPA/ORD 1993"]
["Food consumed per day (dry weight)","AmntDry"," = KR ÷ KCD"]
[null,null,{"$f":"C26/C27","v":118.67336414406415},"gdry/day","Eq"]
["Water content of vegetation as a proportion","PropWater",{"$f":"'A03'!$E$37","v":0.7},"gwater/gfood","Ali et al. 2005"]
["Dry weight content of vegetation as a proportion","PropDry"," = 1-PropWater"]
[null,null,{"$f":"1-C30","v":0.30000000000000004},"gdry/gfood","Eq"]
["Amount of fish consumed per day,  wet weight","AmntFish"," = (AmntDry ÷ PropDry) ÷ (1000g/kg)"]
[null,"Central ",{"$f":"(C29/C32)/1000","v":0.39557788048021375},"kgfood/day","Eq"]
[null,"Lower ",{"$f":"C34*0.3","v":0.11867336414406413},"Note 1","Eq"]
[null,"Upper ",{"$f":"C34*1.7","v":0.67248239681636335},"Note 1","Eq"]
["Proportion of diet that is contaminated","Prop"]
[null,"Central ",0.3,"Unitless","Scenario parameter"]
[null,"Lower ",0.1,null,"Scenario parameter"]
[null,"Upper ",1,null,"Scenario parameter"]
["Dose"]
["Toxic Equivalency Factor for formulation:  (See risk assessment if this has a value other than 1.)","TEF"]
[null,"Central ",{"$f":"'A01'!C$42","v":1},"Unitless","Worksheet A01"]
[null,"Lower ",{"$f":"'A01'!C$43","v":1},"Note 2","Worksheet A01"]
[null,"Upper ",{"$f":"'A01'!C$44","v":1},"Note 2","Worksheet A01"]
["Dose","Dose","= ConcFish × AmntFish × Prop ÷ BW"]
[null,"Central ",{"$f":"C18*C34*C38/C$22","v":2.1287034693341501E-4},"mg/kg","Eq"]
[null,"Lower ",{"$f":"C19*C35*C39/C$22","v":6.2303516175633673E-13},"mg/kg","Eq"]
[null,"Upper ",1.2651075090107836E-2,"mg/kg","Eq"]
[null,null,null,null,"FishKcalV6"]

{"sheet":"F08c","index":62,"n_rows":50,"n_cols":5,"rows_kept":50,"cut":false,"hidden":false,"merged":[[36,0,39,0],[41,0,44,0],[45,0,48,0],[12,0,15,0],[16,0,19,0],[22,0,24,0],[27,0,28,0],[30,0,31,0],[32,0,33,0],[7,0,10,0],[0,0,0,4],[1,1,1,3],[2,1,2,3],[3,1,3,3],[4,1,4,3]]}
["Chronic scenario for the consumption of Contaminated Fish (Longer-term) by Bird, piscivorous "]
["Short Title","Fish consumption, accidental spill",null,null,"FishKcalV6"]
["Predator","Bird, piscivorous"]
["Food Item (Prey)","Fish"]
["Duration","Chronic",null,null,"Scenario parameter"]
["Parameter/Assumption","Code / Range","Equation/   Value","Units","Reference/Designation"]
["Water"]
["Concentration in water","ConcWat"]
[null,"Central ",{"$f":"B04a!Chronic_C","v":1.8899999999999998E-3},"mg/L","='B04a'!Chronic_C"]
[null,"Lower ",{"$f":"B04a!Chronic_L","v":6.3000000000000002E-11},null,"='B04a'!Chronic_L"]
[null,"Upper ",{"$f":"B04a!Chronic_U","v":2.4150000000000001E-2},null,"='B04a'!Chronic_U"]
["Fish"]
["Bioconcentration factor","BCF"]
[null,"Central ",{"$f":"'B01'!$C$6","v":1},"L/kg","Section 3.2.3.5"]
[null,"Lower ",{"$f":"'B01'!$C$6","v":1},null,"Section 3.2.3.5"]
[null,"Upper ",{"$f":"'B01'!$C$6","v":1},null,"Section 3.2.3.5"]
["Concentration in fish","ConcFish","ConcWat × BCF"]
[null,"Central ",{"$f":"C9*C14","v":1.8899999999999998E-3},"mg/kg","Eq"]
[null,"Lower ",{"$f":"C10*C15","v":6.3000000000000002E-11},null,"Eq"]
[null,"Upper ",{"$f":"C11*C16","v":2.4150000000000001E-2},null,"Eq"]
["Receptor"]
["Body weight","BW",{"$f":"A02b!$C$24","v":2.4},"kg","Sibley 2000"]
["Allometric coefficients for caloric requirement per day in kilocalories and BW in grams"]
[null,"alpha",{"$f":"A02b!$C$27","v":1.9159999999999999},null,"U.S. EPA/ORD 1993"]
[null,"beta",{"$f":"A02b!$C$28","v":0.70399999999999996},null,"U.S. EPA/ORD 1993"]
["Caloric requirement per day","KR",{"$f":"C24*(C22*1000)^C25","v":459.26591923752829},"kcal/day","Eq"]
["Caloric content of commodity (dry weight)","KCD",{"$f":"'A03'!$E$36","v":3.87},"kcal/gdw [Note 1]","U.S. EPA/ORD 1993"]
["Food consumed per day (dry weight)","AmntDry"," = KR ÷ KCD"]
[null,null,{"$f":"C26/C27","v":118.67336414406415},"gdry/day","Eq"]
["Water content of vegetation as a proportion","PropWater",{"$f":"'A03'!$E$37","v":0.7},"gwater/gfood","Ali et al. 2005"]
["Dry weight content of vegetation as a proportion","PropDry"," = 1-PropWater"]
[null,null,{"$f":"1-C30","v":0.30000000000000004},"gdry/gfood","Eq"]
["Amount of fish consumed per day,  wet weight","AmntFish"," = (AmntDry ÷ PropDry) ÷ (1000g/kg)"]
[null,"Central ",{"$f":"(C29/C32)/1000","v":0.39557788048021375},"kgfood/day","Eq"]
[null,"Lower ",{"$f":"C34*0.3","v":0.11867336414406413},"Note 1","Eq"]
[null,"Upper ",{"$f":"C34*1.7","v":0.67248239681636335},"Note 1","Eq"]
["Proportion of diet that is contaminated","Prop"]
[null,"Central ",0.3,"Unitless","Scenario parameter"]
[null,"Lower ",0.1,null,"Scenario parameter"]
[null,"Upper ",1,null,"Scenario parameter"]
["Dose"]
["Toxic Equivalency Factor for formulation:  (See risk assessment if this has a value other than 1.)","TEF"]
[null,"Central ",{"$f":"'A01'!C$42","v":1},"Unitless","Worksheet A01"]
[null,"Lower ",{"$f":"'A01'!C$43","v":1},"Note 2","Worksheet A01"]
[null,"Upper ",{"$f":"'A01'!C$44","v":1},"Note 2","Worksheet A01"]
["Dose","Dose","= ConcFish × AmntFish × Prop ÷ BW"]
[null,"Central ",{"$f":"C18*C34*C38/C$22","v":9.3455274263450484E-5},"mg/kg","Eq"]
[null,"Lower ",{"$f":"C19*C35*C39/C$22","v":3.1151758087816837E-13},"mg/kg","Eq"]
[null,"Upper ",6.7668541179646564E-3,"mg/kg","Eq"]
[null,null,null,null,"FishKcalV6"]

{"sheet":"F09a","index":63,"n_rows":42,"n_cols":5,"rows_kept":42,"cut":false,"hidden":false,"merged":[[34,0,37,0],[38,0,41,0],[14,0,15,0],[16,0,19,0],[21,0,24,0],[25,0,28,0],[29,0,32,0],[30,3,32,3],[0,0,0,4],[1,1,1,3],[2,1,2,3],[3,1,3,3],[8,0,10,0],[11,0,12,0]]}
["Direct spray of Mammal, small assuming first-order absorption kinetics with spray of 0.5 of the body surface"]
["Short Title","Direct spray, first-order absorption",null,null,"DrmFOA_Allo"]
["Receptor","Mammal, small"]
["Duration","Acute"]
["Parameter/Assumption","Code / Range","Equation/   Value","Units","Reference/Designation"]
["Application rate, lb/acre","ApRt",{"$f":"'A01'!ApRt_C","v":0.105},"lb/acre","Worksheet A01"]
["Duration of Exposure","T",24,"hours","Scenario parameter"]
["Body weight","BW",{"$f":"A02b!$C$71","v":0.02},"kg","Default"]
["Allometric coefficients for surface area"]
[null,"alpha",{"$f":"A02b!$C$77","v":0.11},null,"U.S. EPA/ORD 1993"]
[null,"beta",{"$f":"A02b!$C$78","v":0.65},null,"U.S. EPA/ORD 1993"]
["Surface Area",null,{"$f":"C10 * C8^C11","v":8.6509177386020729E-3},"meters"]
[null,"SA",{"$f":"C12*10000","v":86.509177386020724},"cm2","10,000 cm2/m2"]
["Conversion Factor for lbs/acre to mg/cm2","CnvF",1.1209999999999999E-2,"mg/cm2/lb/acre"]
["Application rate, mg/cm2","ApRmgcm","ApRlb/a × CnvF"]
[null,null,{"$f":"C6*C$14","v":1.1770499999999998E-3},"lb/acre","Eq"]
["First-order dermal absorption rates ","ka"]
[null,"Central",{"$f":"'B01'!$C$11","v":8.7999999999999998E-5},"hour-1","Section 3.2.2.2"]
[null,"Lower",{"$f":"'B01'!$C$12","v":2.0000000000000002E-5},null,"Section 3.2.2.2"]
[null,"Upper",{"$f":"'B01'!$C$13","v":1.6000000000000001E-4},null,"Section 3.2.2.2"]
["Proportion of body surface sprayed","PrpSA",0.5,"unitless","Scenario parameter"]
["Toxic Equivalency Factor for formulation:  (See risk assessment if this has a value other than 1.)","TEF"]
[null,"Central ",{"$f":"'A01'!C$42","v":1},"Unitless","Worksheet A01"]
[null,"Lower ",{"$f":"'A01'!C$43","v":1},null,"Worksheet A01"]
[null,"Upper ",{"$f":"'A01'!C$44","v":1},null,"Worksheet A01"]
["Amount Deposited on Skin","Amnt","ApRmgcm × SA × PrpSAx TEF"]
[null,"Central",{"$f":"C$13*C$16*C$21*C23","v":5.091281362110784E-2},"mg","Eq"]
[null,"Lower",{"$f":"C$13*C$16*C$21*C24","v":5.091281362110784E-2},null,"Eq"]
[null,"Upper",{"$f":"C$13*C$16*C$21*C25","v":5.091281362110784E-2},null,"Eq"]
["Skin Loading","Loading"]
[null,"Central",{"$f":"C27/C$13","v":5.885249999999999E-4},"mg/cm2","Eq"]
[null,"Lower",{"$f":"C28/C$13","v":5.885249999999999E-4},null,"Eq"]
[null,"Upper",{"$f":"C29/C$13","v":5.885249999999999E-4},null,"Eq"]
[]
["Proportion absorbed over period T","Prop","1-exp(-ka T)"]
[null,"Central",{"$f":"1-EXP(-C18 *C$7)","v":2.1097712972828475E-3},"hour-1","Eq"]
[null,"Lower",{"$f":"1-EXP(-C19 *C$7)","v":4.7988481842975439E-4},null,"Eq"]
[null,"Upper",{"$f":"1-EXP(-C20 *C$7)","v":3.8326366281312696E-3},null,"Eq"]
["Absorbed Dose","Dose","Amnt × Prop ÷ BW"]
[null,"Central",{"$f":"C27*C36/C$8","v":5.3707196420862257E-3},"mg/kg bw","Eq"]
[null,"Lower",{"$f":"C28*C37/C$8","v":1.2216143160156631E-3},null,"Eq"]
[null,"Upper",{"$f":"C29*C38/C$8","v":9.7565157162739259E-3},null,"Eq"]

{"sheet":"F09b","index":64,"n_rows":31,"n_cols":5,"rows_kept":31,"cut":false,"hidden":false,"merged":[[19,0,22,0],[23,0,26,0],[27,0,30,0],[0,0,0,4],[1,1,1,3],[2,1,2,3],[3,1,3,3],[10,0,12,0],[13,0,14,0]]}
["Direct spray of Mammal, small assuming 100% absorption"]
["Short Title","Direct spray, 100% absorption",null,null,"Drm100_Allo"]
["Receptor","Mammal, small"]
["Duration","Acute"]
["Parameter/Assumption","Code / Range","Equation/   Value","Units","Reference/Designation"]
["Application rate, lb/acre","ApRlb/ac",{"$f":"'A01'!ApRt_C","v":0.105},"lb/acre","Worksheet A01"]
["Conversion Factor for lbs/acre to mg/cm2","CnvF",1.1209999999999999E-2,"mg/cm2/lb/acre"]
["Application rate, mg/cm2","ApRmgcm","ApRlb/a × CnvF"]
[null,null,{"$f":"C6*C7","v":1.1770499999999998E-3},"lb/acre","Eq"]
["Body weight","BW",{"$f":"A02b!$C$71","v":0.02},"kg","Default"]
["Allometric coefficients for surface area"]
[null,"alpha",{"$f":"A02b!$C$77","v":0.11},null,"U.S. EPA/ORD 1993"]
[null,"beta",{"$f":"A02b!$C$78","v":0.65},null,"U.S. EPA/ORD 1993"]
["Surface Area",null,{"$f":"C12 * C10^C13","v":8.6509177386020729E-3},"meters"]
[null,"SA",{"$f":"C14*10000","v":86.509177386020724},"cm2[10000 cm2/m2]","Eq"]
["Proportion of body surface sprayed","PrpSA"]
[null,"Central ",0.5,"unitless","Scenario parameter"]
[null,"Lower ",0.25,null,"Scenario parameter"]
[null,"Upper ",1,null,"Scenario parameter"]
["Toxic Equivalency Factor for formulation:  (See risk assessment if this has a value other than 1.)","TEF"]
[null,"Central ",{"$f":"'A01'!C$42","v":1},"Unitless","Worksheet A01"]
[null,"Lower ",{"$f":"'A01'!C$43","v":1},null,"Worksheet A01"]
[null,"Upper ",{"$f":"'A01'!C$44","v":1},null,"Worksheet A01"]
["Amount Deposited on Skin","Amnt","ApRmgcm× SA × PrpSA× TEF"]
[null,"Central",{"$f":"C$9*C$15*C17*C21","v":5.091281362110784E-2},"mg","Eq"]
[null,"Lower",{"$f":"C$9*C$15*C18*C22","v":2.545640681055392E-2},null,"Eq"]
[null,"Upper",0.10182562724221568,null,"Eq"]
["Absorbed Dose","Dose","Amnt  ÷ BW"]
[null,"Central",{"$f":"C25/C$10","v":2.5456406810553918},"mg/kg bw","Eq"]
[null,"Lower",{"$f":"C26/C$10","v":1.2728203405276959},null,"Eq"]
[null,"Upper",{"$f":"C27/C$10","v":5.0912813621107835},null,"Eq"]

{"sheet":"G01","index":65,"n_rows":27,"n_cols":8,"rows_kept":27,"cut":false,"hidden":false,"merged":[[0,0,0,5],[2,0,3,0],[2,1,3,1],[2,2,2,4],[2,5,3,5]]}
["Summary of Exposure Assessments for the Terrestrial Animals"]
[null,null,null,null,null,"G01-Borax"]
["Scenario","Receptor","mg/kg/day or mg/kg/event",null,null,"Detail Worksheet"]
[null,null,"Central","Lower","Upper"]
["Acute/Accidental Exposures (mg/kg/event)"]
["   Direct Consumption from Stump"]
[null,"Large mammal (70 kg)",{"$f":"'F01'!Dose_C","v":3.4019399999999997},{"$f":"'F01'!Dose_L","v":1.7009699999999999},{"$f":"'F01'!Dose_U","v":6.8038799999999995},"F01"]
[null,"Large Bird (4 kg)",{"$f":"'F02'!Dose_C","v":3.4019399999999997},{"$f":"'F02'!Dose_L","v":1.7009699999999999},{"$f":"'F02'!Dose_U","v":6.8038799999999995},"F02"]
[null,"Small mammal (20 g)",{"$f":"'F03'!Dose_C","v":3.4019399999999997},{"$f":"'F03'!Dose_L","v":1.7009699999999999},{"$f":"'F03'!Dose_U","v":6.8038799999999995},"F03"]
[null,"Small Bird (10 g)",{"$f":"'F04'!Dose_C","v":3.4019399999999997},{"$f":"'F04'!Dose_L","v":1.7009699999999999},{"$f":"'F04'!Dose_U","v":6.8038799999999995},"F04"]
["Contaminated Water"]
["Accidental spill","Small mammal (20 g)",{"$f":"F05a!Dose_C","v":3.486298301508E-2},{"$f":"F05a!Dose_L","v":6.9725966030159984E-3},{"$f":"F05a!Dose_U","v":6.972596603016E-2},"F05a"]
["Expected Peak Conc.",null,{"$f":"F05b!Dose_C","v":6.3023911094280409E-4},{"$f":"F05b!Dose_L","v":1.8446022759301586E-11},{"$f":"F05b!Dose_U","v":6.6098248220830677E-3},"F05b"]
["Longer-term. Conc.",null,{"$f":"F05c!Dose_C","v":2.766903413895237E-4},{"$f":"F05c!Dose_L","v":9.223011379650793E-12},{"$f":"F05c!Dose_U","v":3.5354876955328036E-3},"F05c"]
["Accidental spill","Small Bird (10 g)",{"$f":"F06a!Dose_C","v":6.422207907018293E-2},{"$f":"F06a!Dose_L","v":1.2844415814036586E-2},{"$f":"F06a!Dose_U","v":0.12844415814036586},"F06a"]
["Expected Peak Conc.",null,{"$f":"F06b!Dose_C","v":1.1609811472123018E-3},{"$f":"F06b!Dose_L","v":3.3979936015969811E-11},{"$f":"F06b!Dose_U","v":1.2176143739055846E-2},"F06b"]
["Longer-term. Conc.",null,{"$f":"F06c!Dose_C","v":5.0969904023954701E-4},{"$f":"F06c!Dose_L","v":1.6989968007984906E-11},{"$f":"F06c!Dose_U","v":6.5128210697275469E-3},"F06c"]
["Consumption of contaminated Fish"]
["Accidental spill","Carnivorous Mammal (4 kg)",{"$f":"F07a!Dose_C","v":1.0142404193372666E-2},{"$f":"F07a!Dose_L","v":2.0284808386745331E-4},{"$f":"F07a!Dose_U","v":0.11494724752489019},"F07a"]
["Expected Peak Conc.",null,{"$f":"F07b!Dose_C","v":1.8335034035638415E-4},{"$f":"F07b!Dose_L","v":5.366351425064903E-13},{"$f":"F07b!Dose_U","v":1.0896674699229007E-2},"F07b"]
["Longer-term. Conc.",null,{"$f":"F07c!Dose_C","v":8.0495271375973526E-5},{"$f":"F07c!Dose_L","v":2.6831757125324515E-13},{"$f":"F07c!Dose_U","v":5.8284539088899355E-3},"F07c"]
["Accidental spill","Fish Eating Bird (2.4 kg)",{"$f":"F08a!Dose_C","v":1.1775364557194763E-2},{"$f":"F08a!Dose_L","v":2.3550729114389524E-4},{"$f":"F08a!Dose_U","v":0.1334541316482073},"F08a"]
["Expected Peak Conc.",null,{"$f":"F08b!Dose_C","v":2.1287034693341501E-4},{"$f":"F08b!Dose_L","v":6.2303516175633673E-13},{"$f":"F08b!Dose_U","v":1.2651075090107836E-2},"F08b"]
["Longer-term. Conc.",null,{"$f":"F08c!Dose_C","v":9.3455274263450484E-5},{"$f":"F08c!Dose_L","v":3.1151758087816837E-13},{"$f":"F08c!Dose_U","v":6.7668541179646564E-3},"F08c"]
["Direct Spray",null,null,null,null,null,null,"Wet"]
["first-order absorption","Small mammal (20g)",{"$f":"F09a!Dose_C","v":5.3707196420862257E-3},{"$f":"F09a!Dose_L","v":1.2216143160156631E-3},{"$f":"F09a!Dose_U","v":9.7565157162739259E-3},"F09a",null,"Wet"]
["100% absorption","Small mammal (20g)",{"$f":"F09b!Dose_C","v":2.5456406810553918},{"$f":"F09b!Dose_L","v":1.2728203405276959},{"$f":"F09b!Dose_U","v":5.0912813621107835},"F09b",null,"Wet"]

{"sheet":"G02","index":66,"n_rows":27,"n_cols":8,"rows_kept":27,"cut":false,"hidden":false,"merged":[[0,0,0,5],[2,0,3,0],[2,1,3,1],[2,2,2,4],[2,5,3,5]]}
["Summary of Hazard Quotients (Toxicity) for the Terrestrial Animals"]
[null,null,null,null,null,"G01-Borax"]
["Scenario","Receptor","Hazard Quotients",null,null,"Toxicity Value"]
[null,null,"Central","Lower","Upper"]
["Acute/Accidental Exposures (mg/kg/event)"]
["   Direct Consumption from Stump"]
[null,"Large mammal (70 kg)",{"$f":"'F01'!$C$29/$F$7","v":9.7198285714285709E-3},{"$f":"'F01'!$C$30/$F$7","v":4.8599142857142855E-3},{"$f":"'F01'!$C$31/$F$7","v":1.9439657142857142E-2},{"$f":"'B02'!$E$6","v":350},"NOAEL"]
[null,"Large Bird (4 kg)",{"$f":"'F02'!$C$29/$F$8","v":3.0105663716814158E-2},{"$f":"'F02'!$C$30/$F$8","v":1.5052831858407079E-2},{"$f":"'F02'!$C$31/$F$8","v":6.0211327433628316E-2},{"$f":"'B02'!$E$8","v":113},"NOAEL"]
[null,"Small mammal (20 g)",{"$f":"'F03'!$C$29/$F$9","v":9.7198285714285709E-3},{"$f":"'F03'!$C$30/$F$9","v":4.8599142857142855E-3},{"$f":"'F03'!$C$31/$F$9","v":1.9439657142857142E-2},{"$f":"'B02'!$E$6","v":350},"NOAEL"]
[null,"Small Bird (10 g)",{"$f":"'F04'!$C$29/$F$10","v":3.0105663716814158E-2},{"$f":"'F04'!$C$30/$F$10","v":1.5052831858407079E-2},{"$f":"'F04'!$C$31/$F$10","v":6.0211327433628316E-2},{"$f":"'B02'!$E$8","v":113},"NOAEL"]
["Contaminated Water"]
["Accidental spill","Small mammal (20 g)",{"$f":"F05a!$C$18/$F$12","v":9.9608522900228568E-5},{"$f":"F05a!$C$19/$F$12","v":1.992170458004571E-5},{"$f":"F05a!$C$20/$F$12","v":1.9921704580045714E-4},{"$f":"'B02'!$E$6","v":350},"NOAEL"]
["Expected Peak Conc.",null,{"$f":"F05b!$C$18/$F$13","v":1.8006831741222975E-6},{"$f":"F05b!$C$19/$F$13","v":5.2702922169433101E-14},{"$f":"F05b!$C$20/$F$13","v":1.8885213777380194E-5},{"$f":"'B02'!$E$6","v":350},"NOAEL"]
["Longer-term. Conc.",null,{"$f":"F05c!$C$18/$F$14","v":3.1442084248809509E-5},{"$f":"F05c!$C$19/$F$14","v":1.0480694749603172E-12},{"$f":"F05c!$C$20/$F$14","v":4.0175996540145492E-4},{"$f":"'B02'!$E$7","v":8.8000000000000007},"NOAEL"]
["Accidental spill","Small Bird (10 g)",{"$f":"F06a!$C$18/$F$15","v":5.6833698292197289E-4},{"$f":"F06a!$C$19/$F$15","v":1.1366739658439456E-4},{"$f":"F06a!$C$20/$F$15","v":1.1366739658439458E-3},{"$f":"'B02'!$E$8","v":113},"NOAEL"]
["Expected Peak Conc.",null,{"$f":"F06b!$C$18/$F$16","v":1.0274169444356653E-5},{"$f":"F06b!$C$19/$F$16","v":3.0070739837141426E-13},{"$f":"F06b!$C$20/$F$16","v":1.0775348441642342E-4},{"$f":"'B02'!$E$8","v":113},"NOAEL"]
["Longer-term. Conc.",null,{"$f":"F06c!$C$18/$F$17","v":1.3775649736203974E-4},{"$f":"F06c!$C$19/$F$17","v":4.5918832454013252E-12},{"$f":"F06c!$C$20/$F$17","v":1.7602219107371747E-3},{"$f":"'B02'!$E$9","v":3.7},"NOAEL"]
["Consumption of contaminated Fish"]
["Accidental spill","Carnivorous Mammal (4 kg)",{"$f":"F07a!$C$47/$F$19","v":2.8978297695350473E-5},{"$f":"F07a!$C$48/$F$19","v":5.7956595390700942E-7},{"$f":"F07a!$C$49/$F$19","v":3.2842070721397196E-4},{"$f":"'B02'!$E$6","v":350},"NOAEL"]
["Expected Peak Conc.",null,{"$f":"F07b!$C$47/$F$20","v":5.2385811530395467E-7},{"$f":"F07b!$C$48/$F$20","v":1.5332432643042581E-15},{"$f":"F07b!$C$49/$F$20","v":3.113335628351145E-5},{"$f":"'B02'!$E$6","v":350},"NOAEL"]
["Longer-term. Conc.",null,{"$f":"F07c!$C$47/$F$21","v":9.1471899290878996E-6},{"$f":"F07c!$C$48/$F$21","v":3.0490633096959674E-14},{"$f":"F07c!$C$49/$F$21","v":6.6232430782840171E-4},{"$f":"'B02'!$E$7","v":8.8000000000000007},"NOAEL"]
["Accidental spill","Fish Eating Bird (2.4 kg)",{"$f":"F08a!$C$47/$F$22","v":1.04206765992874E-4},{"$f":"F08a!$C$48/$F$22","v":2.0841353198574798E-6},{"$f":"F08a!$C$49/$F$22","v":1.1810100145859053E-3},{"$f":"'B02'!$E$8","v":113},"NOAEL"]
["Expected Peak Conc.",null,{"$f":"F08b!$C$47/$F$23","v":1.8838083799417258E-6},{"$f":"F08b!$C$48/$F$23","v":5.5135855022684663E-15},{"$f":"F08b!$C$49/$F$23","v":1.1195641672661801E-4},{"$f":"'B02'!$E$8","v":113},"NOAEL"]
["Longer-term. Conc.",null,{"$f":"F08c!$C$47/$F$24","v":2.5258182233364996E-5},{"$f":"F08c!$C$48/$F$24","v":8.4193940777883334E-14},{"$f":"F08c!$C$49/$F$24","v":1.8288794913417989E-3},{"$f":"'B02'!$E$9","v":3.7},"NOAEL"]
["Direct Spray",null,null,null,null,null,null,"Wet"]
["first-order absorption","Small mammal (20g)",{"$f":"F09a!$C$40/$F$26","v":1.5344913263103502E-5},{"$f":"F09a!$C$41/$F$26","v":3.4903266171876086E-6},{"$f":"F09a!$C$42/$F$26","v":2.7875759189354073E-5},{"$f":"'B02'!$E$6","v":350},"NOAEL","Wet"]
["100% absorption","Small mammal (20g)",{"$f":"F09b!$C$29/$F$27","v":7.2732590887296909E-3},{"$f":"F09b!$C$30/$F$27","v":3.6366295443648455E-3},{"$f":"F09b!$C$31/$F$27","v":1.4546518177459382E-2},{"$f":"'B02'!$E$6","v":350},"NOAEL","Wet"]

{"sheet":"G03","index":67,"n_rows":42,"n_cols":14,"rows_kept":42,"cut":false,"hidden":false,"merged":[[7,6,8,6],[0,0,0,5],[2,2,2,4],[7,0,8,0],[7,1,8,1],[7,2,7,4],[7,5,8,5]]}
["Worksheet G03: Summary of Hazard Quotients for Aquatic Species"]
[null,null,null,null,null,"AqToxSumV6"]
["Exposures",null,"Concentrations (mg/L)"]
[null,"Scenario","Central","Lower","Upper","Worksheet"]
[null,"Accidental Spill",{"$f":"B04b!Acute_C","v":0.23813999999999999},{"$f":"B04b!Acute_L","v":4.7627999999999997E-2},{"$f":"B04b!Acute_U","v":0.47627999999999998},"B04b"]
[null,"Peak EEC",{"$f":"B04a!Acute_C","v":4.3049999999999998E-3},{"$f":"B04a!Acute_L","v":1.26E-10},{"$f":"B04a!Acute_U","v":4.5149999999999996E-2},"B04a"]
[null,"Chronic",{"$f":"B04a!Chronic_C","v":1.8899999999999998E-3},{"$f":"B04a!Chronic_L","v":6.3000000000000002E-11},{"$f":"B04a!Chronic_U","v":2.4150000000000001E-2},"B04a"]
["Receptor","Type","Hazard Quotients",null,null,"Toxicity Value","Toxicity Endpoint"]
[null,null,"Central","Lower","Upper"]
["Accidental Acute Exposures",null,null,null,null,null,null,null,null,null,"Lower","Central","Upper","Check"]
["Fish","Sensitive",{"$f":"C$5/$F11","v":6.7461756373937684E-2},{"$f":"D$5/$F11","v":1.3492351274787534E-2},{"$f":"E$5/$F11","v":0.13492351274787537},{"$f":"'B02'!$E$11","v":3.53},"NOAEC*",null,null,"Fish Sn",{"$f":"IF(D11>0,  D11, \"\")","v":1.3492351274787534E-2},{"$f":"IF(ISERROR(C11-K11), \"\", C11-K11)","v":5.3969405099150151E-2},{"$f":"IF(ISERROR(E11-C11), \"\", E11-C11)","v":6.7461756373937684E-2},{"$f":"E11-SUM(K11:M11)","v":0}]
[null,"Tolerant",{"$f":"C$5/$F12","v":1.2403124999999999E-3},2.4806249999999996E-4,2.4806249999999998E-3,{"$f":"'B02'!$E$12","v":192},"NOAEC",null,null,"Fish Tl",2.4806249999999996E-4,9.9224999999999986E-4,1.2403124999999999E-3,{"$f":"E12-SUM(K12:M12)","v":0}]
["Amphibian","Sensitive",4.7627999999999997E-2,9.5255999999999987E-3,9.5255999999999993E-2,{"$f":"'B02'!$E$15","v":5},"NOEC",null,null,"Amph Sn",9.5255999999999987E-3,3.8102399999999995E-2,4.7627999999999997E-2,{"$f":"E13-SUM(K13:M13)","v":0}]
[null,"Tolerant",9.5256000000000004E-3,1.9051199999999999E-3,1.9051200000000001E-2,{"$f":"'B02'!$E$16","v":25},"NOEC",null,null,"Amph To",1.9051199999999999E-3,7.6204800000000007E-3,9.5256000000000004E-3,0]
["Invertebrate","Sensitive",0.3402,6.8040000000000003E-2,0.6804,{"$f":"'B02'!$E$19","v":0.7},"NOAEC",null,null,"Invt Sn",6.8040000000000003E-2,0.27216000000000001,0.3402,0]
[null,"Tolerant",2.3813999999999998E-2,4.7627999999999993E-3,4.7627999999999997E-2,{"$f":"'B02'!$E$20","v":10},"NOAEC",null,null,"Invt Tl",4.7627999999999993E-3,1.9051199999999997E-2,2.3813999999999998E-2,0]
["Macrophyte","Sensitive",5.9534999999999998E-2,1.1906999999999999E-2,0.11907,{"$f":"'B02'!$E$25","v":4},"NOEC",null,null,"Plant Sn",1.1906999999999999E-2,4.7627999999999997E-2,5.9534999999999998E-2,0]
[null,"Tolerant",2.1649090909090909E-2,4.3298181818181812E-3,4.3298181818181819E-2,{"$f":"'B02'!$E$26","v":11},"NOEC",null,null,"Plant Tl",4.3298181818181812E-3,1.7319272727272728E-2,2.1649090909090909E-2,0]
["Algae","Sensitive",0.14883749999999998,2.9767499999999995E-2,0.29767499999999997,{"$f":"'B02'!$E$23","v":1.6},"NOAEC",null,null,"Algae Sn",2.9767499999999995E-2,0.11906999999999998,0.14883749999999998,0]
[null,"Tolerant",5.0560509554140121E-3,1.0112101910828024E-3,1.0112101910828024E-2,{"$f":"'B02'!$E$24","v":47.1},"NOAEC",null,null,"Algae Tl",1.0112101910828024E-3,4.0448407643312095E-3,5.0560509554140121E-3,0]
["Non-Accidental Acute Exposures"]
["Fish","Sensitive",{"$f":"C$6/$F22","v":1.2195467422096318E-3},{"$f":"D$6/$F22","v":3.5694050991501418E-11},1.2790368271954674E-2,{"$f":"'B02'!$E$11","v":3.53},"NOAEC*",null,null,"Fish Sn",{"$f":"IF(D22>0,  D22, \"\")","v":3.5694050991501418E-11},{"$f":"IF(ISERROR(C22-K22), \"\", C22-K22)","v":1.2195467065155808E-3},{"$f":"IF(ISERROR(E22-C22), \"\", E22-C22)","v":1.1570821529745041E-2},0]
[null,"Tolerant",{"$f":"C$6/$F23","v":2.2421874999999998E-5},6.5625000000000006E-13,2.3515624999999999E-4,{"$f":"'B02'!$E$12","v":192},"NOAEC",null,null,"Fish Tl",6.5625000000000006E-13,2.2421874343749997E-5,2.1273437499999998E-4,0]
["Amphibian","Sensitive",8.61E-4,2.5200000000000001E-11,9.0299999999999998E-3,{"$f":"'B02'!$E$15","v":5},"NOEC",null,null,"Amph Sn",2.5200000000000001E-11,8.6099997480000004E-4,8.1689999999999992E-3,0]
[null,"Tolerant",1.7219999999999998E-4,5.0400000000000003E-12,1.8059999999999999E-3,{"$f":"'B02'!$E$16","v":25},"NOEC",null,null,"Amph To",5.0400000000000003E-12,1.7219999495999999E-4,1.6337999999999999E-3,0]
["Invertebrate","Sensitive",6.1500000000000001E-3,1.8000000000000002E-10,6.4500000000000002E-2,{"$f":"'B02'!$E$19","v":0.7},"NOAEC",null,null,"Invt Sn",1.8000000000000002E-10,6.1499998199999999E-3,5.8349999999999999E-2,0]
[null,"Tolerant",4.305E-4,1.26E-11,4.5149999999999999E-3,{"$f":"'B02'!$E$20","v":10},"NOAEC",null,null,"Invt Tl",1.26E-11,4.3049998740000002E-4,4.0844999999999996E-3,0]
["Macrophyte","Sensitive",1.0762499999999999E-3,3.1500000000000001E-11,1.1287499999999999E-2,{"$f":"'B02'!$E$25","v":4},"NOEC",null,null,"Plant Sn",3.1500000000000001E-11,1.0762499684999999E-3,1.0211249999999998E-2,0]
[null,"Tolerant",3.9136363636363636E-4,1.1454545454545454E-11,4.1045454545454545E-3,{"$f":"'B02'!$E$26","v":11},"NOEC",null,null,"Plant Tl",1.1454545454545454E-11,3.9136362490909093E-4,3.7131818181818182E-3,0]
["Algae","Sensitive",2.6906249999999999E-3,7.8749999999999999E-11,2.8218749999999997E-2,{"$f":"'B02'!$E$23","v":1.6},"NOAEC",null,null,"Algae Sn",7.8749999999999999E-11,2.6906249212499999E-3,2.5528124999999999E-2,0]
[null,"Tolerant",9.1401273885350314E-5,2.6751592356687898E-12,9.5859872611464959E-4,{"$f":"'B02'!$E$24","v":47.1},"NOAEC",null,null,"Algae Tl",2.6751592356687898E-12,9.1401271210191079E-5,8.6719745222929925E-4,0]
["Chronic/Longer Term Exposures"]
["Fish","Sensitive",{"$f":"C$7/$F33","v":1.7181818181818179E-3},{"$f":"D$7/$F33","v":5.7272727272727268E-11},2.1954545454545452E-2,{"$f":"'B02'!$E$13","v":1.1000000000000001},"LC01",null,null,"Fish Sn",{"$f":"IF(D33>0,  D33, \"\")","v":5.7272727272727268E-11},{"$f":"IF(ISERROR(C33-K33), \"\", C33-K33)","v":1.7181817609090906E-3},{"$f":"IF(ISERROR(E33-C33), \"\", E33-C33)","v":2.0236363636363636E-2},0]
[null,"Tolerant",{"$f":"C$7/$F34","v":2.5540540540540537E-4},8.5135135135135129E-12,3.2635135135135134E-3,{"$f":"'B02'!$E$14","v":7.4},"NOAEC",null,null,"Fish Tl",8.5135135135135129E-12,2.5540539689189185E-4,3.0081081081081082E-3,0]
["Amphibian","Sensitive",1.0799999999999998E-3,3.5999999999999998E-11,1.3800000000000002E-2,{"$f":"'B02'!$E$17","v":1.75},"NOEC",null,null,"Amph Sn",3.5999999999999998E-11,1.0799999639999997E-3,1.2720000000000002E-2,0]
[null,"Tolerant",7.5599999999999994E-5,2.5200000000000002E-12,9.6600000000000006E-4,{"$f":"'B02'!$E$18","v":25},"NOEC",null,null,"Amph To",2.5200000000000002E-12,7.5599997479999998E-5,8.9040000000000007E-4,0]
["Invertebrate","Sensitive",2.6999999999999997E-3,9.0000000000000012E-11,3.4500000000000003E-2,{"$f":"'B02'!$E$21","v":0.7},"NOAEC",null,null,"Invt Sn",9.0000000000000012E-11,2.6999999099999996E-3,3.1800000000000002E-2,0]
[null,"Tolerant",1.8899999999999999E-4,6.3000000000000002E-12,2.415E-3,{"$f":"'B02'!$E$22","v":10},"NOAEC",null,null,"Invt Tl",6.3000000000000002E-12,1.889999937E-4,2.2260000000000001E-3,0]
["Macrophyte","Sensitive",4.7249999999999994E-4,1.5750000000000001E-11,6.0375000000000003E-3,{"$f":"'B02'!$E$25","v":4},"NOEC",null,null,"Plant Sn",1.5750000000000001E-11,4.7249998424999995E-4,5.5650000000000005E-3,0]
[null,"Tolerant",1.7181818181818181E-4,5.7272727272727272E-12,2.1954545454545456E-3,{"$f":"'B02'!$E$26","v":11},"NOEC",null,null,"Plant Tl",5.7272727272727272E-12,1.7181817609090909E-4,2.0236363636363637E-3,0]
["Algae","Sensitive",1.1812499999999998E-3,3.9375E-11,1.509375E-2,{"$f":"'B02'!$E$23","v":1.6},"NOAEC",null,null,"Algae Sn",3.9375E-11,1.1812499606249998E-3,1.39125E-2,0]
[null,"Tolerant",4.0127388535031843E-5,1.3375796178343949E-12,5.1273885350318468E-4,{"$f":"'B02'!$E$24","v":47.1},"NOAEC",null,null,"Algae Tl",{"$f":"IF(D42>0,  D42, \"\")","v":1.3375796178343949E-12},{"$f":"IF(ISERROR(C42-K42), \"\", C42-K42)","v":4.0127387197452226E-5},{"$f":"IF(ISERROR(E42-C42), \"\", E42-C42)","v":4.7261146496815285E-4},0]

{"sheet":"G04","index":68,"n_rows":41,"n_cols":5,"rows_kept":41,"cut":false,"hidden":false,"merged":[[0,0,0,4],[2,1,2,3],[3,1,3,3]]}
["Summary of Exposure Assessment and Risk Characterization for Terrestrial Plants from Drift"]
["Short Title","Drift to terrestrial plants"]
["Receptor","Terrestrial vegetation"]
["Duration","Acute"]
["Parameter/ Assumption","Code / Range","Equation/   Value","Units","Reference/ Designation"]
["Application Rate","ApRt",{"$f":"'A01'!ApRt_C","v":0.105},"lb/acre","Worksheet A03"]
["Toxicity Values(Post-emergence in lb/ac)"]
["Sensitive species","ToxValSens",0.03,"lb/acre","Table 18"]
["Tolerant species","ToxValTol",0.03,"lb/acre","Table 18"]
["Proportion of Drift at distances downwind in feet [0 feet = direct spray]","Prop"]
[0,null,1,"unitless","Standard rates for backpack"]
[25,null,8.3199999999999993E-3]
[50,null,4.3299999999999996E-3]
[100,null,2.4099999999999998E-3]
[300,null,9.41E-4]
[500,null,5.7899999999999998E-4]
[900,null,3.1199999999999999E-4]
["Estimates of functional offsite application rate","OfApRt","=ApRt x Prop"]
["Direct Spray",null,{"$f":"$C$6*C11","v":0.105},"lb/acre","Eq"]
[25,null,8.7359999999999988E-4,null,"Eq"]
[50,null,4.5464999999999997E-4,null,"Eq"]
[100,null,2.5305E-4,null,"Eq"]
[300,null,9.8805E-5,null,"Eq"]
[500,null,6.0794999999999996E-5,null,"Eq"]
[900,null,3.2759999999999998E-5,null,"Eq"]
["Hazard Quotients (Sensitive Species)","HQSens","= ApRt / ToxValSens"]
["Direct Spray",null,{"$f":"  IF( ISNUMBER($C$8), C19/$C$8, \"N/A\")","v":3.5}]
[25,null,{"$f":"  IF(  ISNUMBER($C$8),   C20/$C$8, \"N/A\")","v":2.9119999999999997E-2}]
[50,null,1.5155E-2]
[100,null,8.4349999999999998E-3]
[300,null,3.2935E-3]
[500,null,2.0265000000000001E-3]
[900,null,1.0919999999999999E-3]
["Hazard Quotients (Tolerant Species)","HQTol","= ApRt / ToxValTol"]
["Direct Spray",null,{"$f":" IF(ISNUMBER($C$9),C19/$C$9,\"N/A\")","v":3.5}]
[25,null,2.9119999999999997E-2]
[50,null,1.5155E-2]
[100,null,8.4349999999999998E-3]
[300,null,3.2935E-3]
[500,null,2.0265000000000001E-3]
[900,null,1.0919999999999999E-3]

{"sheet":"References","index":69,"n_rows":43,"n_cols":2,"rows_kept":43,"cut":false,"hidden":false,"merged":[[0,0,0,1]]}
["References cited in workbook"]
["Citation","Full Reference"]
["Ali et al. 2005","Ali M; Iqbat F; Salam A; Iram S; Athar M.  2005.  Comparative study of body composition of different fish species from brackish water pond.  Int J Environ Sci Tech.  2(3): 229-232."]
["Boxenbaum and D’Souza 1990","Boxenbaum J; D'Souza R.  1990.  Interspecies pharmacokinetic scaling, biological design and neoteny.  Adv. Drug Res.  19: 139-195."]
["Budavari  1989","Budavari S. (Ed).  1989.  The Merck Index: An Encyclopedia of Chemicals, Drugs,and Biologicals, 11th ed.  Merck & Co., Inc., Rahway, New Jersey."]
["Burnmaster 1998","Burnmaster DE.  1998.  Lognormal distribution for total water intake and tap water intake by pregnant and lactating women in the United States.  Risk Analysis.  18(5): 215-219"]
["Chapman 1998","Chapman P.  1998.  The Insects: Structure and Function.  4th Edition.  Cambridge University Press, Cambridge, UK.  788 pp."]
["Default","These are plausible default values that are typically used in SERA risk assessments."]
["Dunning 1993","Dunning JB.  1993.  CRC Handbook of Avian Body Masses.  CRC Press, Boca Raton FL, 371 pp."]
["Durkin et al. 1995","Durkin PR; Rubin L; Withey J; Meylan W.  1995.  Methods of assessing dermal absorption with emphasis on uptake from contaminated vegetation.  Toxicol. Indust. Health.  11(1): 63-79."]
["Fletcher et al. 1994","Fletcher JS; Nellessen JE; Pfleeger TG. 1994. Literature review and evaluation of the EPA food-chain (Kenega) nomogram, an instrument for estimating pesticide residues on plants. Environ.  Toxicol. Chem. 13(9):1383-1391."]
["Harris and Solomon 1992","Harris SA; Solomon KR.  1992.  Human exposure to 2,4-D following controlled activities on recently sprayed turf.  J. Environ. Sci. Health.  B27(1): 9-22."]
["Hoerger and Kenaga 1972","Hoerger F; Kenaga EE.  1972.  Pesticide residues on plants: Correlation of representative data as a basis for estimation of their magnitude in the environment.  In: Environmental Quality and Safety, Volume I:  Global Aspects of Toxicology and Technology as Applied to the Environment.  F. Coulston and F. Kerte (eds.).  Academic Press, New York, NY.  pp. 9-28."]
["Humphery and Dykes 2008","Humphrey JAC; Dykes ES.  2008.  Thermal energy conduction in a honey bee comb due to cell-heating bees.  J Theoretical Biology.  250 (1): 194-208."]
["ICRP 1975","ICRP (International Commission on Radiologic Protection).  1975. Report of the Task Group on Reference Man.  Recommendations of the International Commission on Radiological Protection (ICRP) Publ. No. 23.   Pergamon Press, New York, NY."]
["Knisel et al. 1992","Knisel WG; Davis FM; Leonard RA.  1992.  GLEAMS Version 2.0 User Manual. U.S. Department of Agriculture, Agricultural Research Service, Southeast Watershed Research Laboratory, Tifton, GA.  202pp"]
["Manugistics 1995","Manugistics.  1995.  Statgraphics Plus for Windows. Version 3.  Available from Manugistics, Inc.  Rockville, Maryland."]
["Mason and Johnson 1987","Mason RW; Johnson BL.  1987.  Ergonomic factors in chemical hazard control.  In: Handbook of Human Factors.  Salveny, G; ed.  John Wiley and Sons, New York, NY.  pp. 772-741."]
["Mendenhall and Scheaffer 1973","Mendenhall W; Scheaffer RF.  1973.  Mathematical Statistics with Applications.  Duxbury Press, North Scituate, Massachusetts. 461 pp. plus appendices."]
["N/A","Not applicable"]
["Nagy 2005","Nagy KA.  2005.  Field metabolic rate and body size.  Journal of Experimental Biology.  208: 1621-1625."]
["Ratnapalan et al. 2003","Ratnapalan S; Potylitsina Y; Tan LH; Roifman M; Koren G.  2003.  Measuring a toddler's mouthful: toxicologic considerations.  J Pediatr.  142(6):729-30."]
["Reichle et al. 1973","Reichle DE, Goldstein RA; Van Hook RI; Dodson DJ.  1973.  Analysis of Insect Consumption in a Forest Canopy.  Ecology.  54: 1076-1084."]
["Reid 2006"," Reid FA. 2006.  A Field Guide to Mammals of North America North of Mexico.  Fourth Edition.  The Peterson Field Guide Series.  Houghton Mifflin Company, Boston MA.  570 pp."]
["Ruffle et al. 1994","Ruffle B; Burmaster DE; Anderson PD; Gordon HD.  1994.  Lognormal distributions for fish consumption by the general U.S. population.  Risk Analy.  14(4): 395-404."]
["SERA 1997","SERA (Syracuse Environmental Research Associates, Inc.).  1997. Reevaluation of Methods for Assessing Worker Exposure to Pesticides, SERA TR 96-21-08-01, draft dated December 31, 1997.  Prepared under USDA/FS Contract 53-3187-5-12.  Syracuse Environmental Research Associates, Inc., Fayetteville, NY."]
["SERA 2005","SERA (Syracuse Environmental Research Associates, Inc.).  2005. Hexazinone - Human Health and Ecological Risk Assessment– Final Report, SERA SERA TR 05-43-20-03d, Final Report dated October 25, 2005.  Available at: http://www.fs.fed.us/foresthealth/pesticide/risk.shtml."]
["SERA 2007","SERA (Syracuse Environmental Research Associates, Inc.).  2007. Preparation of Environmental Documentation and Risk Assessments, SERA MD 2007-01a, draft dated July 2001.  Syracuse Environmental Research Associates, Inc., Fayetteville, NY.  Available at www.sera-inc.com."]
["SERA 2010","SERA (Syracuse Environmental Research Associates, Inc.).  2010. Strychnine Human Health and Ecological Risk Assessment, SERA TR-052-17-02a, draft dated February 22, 2010.  Syracuse Environmental Research Associates, Inc., Manlius, NY.  Available at www.sera-inc.com."]
["Sibley 2000","Sibley DA.  2000.  The Sibley Guide to Birds.  National Audubon Society, Chanticleer Press Edition.  Alfred A. Knopf Inc., New York.  545 pp."]
["Teske et al. 2001","Teske ME; Bird SL; Esterly DM; Ray SL; Perry SG.  2001.  A User’s Guide for AgDRIFT 2.0: A Tiered Approach for the Assesment of Spray Drift.  Continuum Dynamics, Inc. Public Use Version.  C.D.I. Report No. 01-01.  Available, with executable model at: http://www.agdrift.com"]
["U.S. EPA/OPP 1999","U.S. EPA/OPP ((U.S. Environmental Protection Agency/Office of Pesticide Programs).  1999.  ECOFRAM:  Terrestrial ECOFRAM Terrestrial Draft Report.  Ecological Committee on FIFRA Risk Assessment Methods(ECOFRAM).  Report dated May 10, 1999.  Available at:  http://www.epa.gov/oppefed1/ ecorisk/terrreport.pdf."]
["U.S. EPA/ORD 1985","U.S. EPA/ORD (U.S. Environmental Protection Agency/Office of Research and Development).  1985. Development of Statistical Distributions or Ranges of Standard Factors Used in Exposure Assessments,  Report prepared by GCA Corp., Chapel Hill.  Available from NTIS: PB85-242667."]
["U.S. EPA/ORD 1992","U.S. EPA/ORD (U.S. Environmental Protection Agency/Office of Research and Development).  1992.  Dermal Exposure Assessment: Principles and Applications.  EPA/600/8-91/011B.  Interim Report.  Exposure Assessment Group, Office of Health and Environmental Assessment, Washington, DC."]
["U.S. EPA/ORD 1993","U.S. EPA/ORD (U.S. Environmental Protection Agency/Office of Research and Development).  1993.  Wildlife Exposure Factors Handbook.  Volumes 1 and 2.  EPA/600/R-93/187a,b.  Pagination not continuous.  Available NTIS: PB94-174778 and PB94-174779."]
["U.S. EPA/ORD 1996","U.S. EPA (U.S. Environmental Protection Agency/Office of Research and Development).  1996.  Exposure Factors Handbook. National Center for Environmental Assessment, U.S. EPA, Washington, DC.  EPA/600/P-95/002Ba-c.  Avail. NTIS: PB97-117683, 97-117691, PB97-117709."]
["U.S. EPA/ORD 1997","U.S. EPA (U.S. Environmental Protection Agency/Office of Research and Development).  1997.  Exposure Factors Handbook. National Center for Environmental Assessment, U.S. EPA, Washington, DC.  EPA/600/P-95/002Fa.  Available at: http://rais.ornl.gov/homepage/EFH_Final_1997_EPA600P95002Fa.pdf"]
["USDA 1989a","USDA (U.S. Department of Agriculture/Forest Service).  1989a.  Final Environmental Impact Statement: Vegetation Management in the Coastal Plain/Piedmont, Management Bulletin R8-MB-23, dated January, 1989.  1213 pp."]
["USDA 1989b","USDA (U.S. Department of Agriculture/Forest Service).  1989b.  Draft Environmental Impact Statement: Vegetation Management in the Ozark/Ouachita Mountains, Management Bulletin R8-MB-23, dated June, 1989.  499 pp."]
["USDA 1989c","USDA (U.S. Department of Agriculture/Forest Service).  1989c.  Final Environmental Impact Statement: Vegetation Management in the Appalachian Mountains, Management Bulletin R8-MB-38, dated July, 1989. 1104 pp."]
["Waldbauer 1968","Waldbauer GP.  1968.  The consumption and utilization of food by insects.  Advan Insect Physiol.  5: 229-288"]
["Winston 1987","Winston ML.  1987.  The Biology of the Honey Bee.  Harvard University Press, Cambridge, MA.  ISBN 0-674-07409-2  280 pp."]
["Wolfram Research 1997","Wolfram Research.  1997. Mathematica Version 3.0.1.  Available from Wolfram Research, Inc.  Champaign, IL."]